{"text_format":"1","workbook":"xlsx","n_sheets":2,"sheets":["CALENDARIO","DATOS"],"not_rendered":{"charts":0,"images":0,"macros":1,"external_links":0,"defined_names":14,"comments":0,"pivot_tables":0},"unopened":[],"bounds":{"document_bytes":16777216,"sheet_cells":100000,"rows_first":2000,"rows_last":500,"rows_between":2000,"halvings":0,"cell_chars":16384,"cell_head_chars":4096},"cells_cut":0,"cells_raw":0,"read":"whole","date_system":"1900"}

{"sheet":"CALENDARIO","index":0,"n_rows":410,"n_cols":39,"rows_kept":410,"cut":false,"hidden":false,"merged":[[7,0,8,2],[7,4,7,7],[7,14,7,16],[8,35,9,35],[7,8,7,10],[7,17,7,18],[7,20,7,28],[0,38,8,38],[1,9,1,14],[1,30,1,31],[4,30,4,31],[4,4,4,8],[4,10,4,14],[1,21,1,25],[4,21,4,25]]}
[null,null,null,null,null,null,null,null,null,null,null,null,null,null,null,null,null,null,null,null,null,null,null,null,null,null,null,null,null,null,null,null,null,null,null,null,null,null,"Códigos de Actividad:\n1: días no trabajados en el periodo.\n3: días trabajados en el periodo.\n4: días IT (excluidos del pago de la prestación por este sistema).\n5: festivos.\n6: vacaciones anuales retribuidas (excluidas del pago de la prestación)\n"]
[null,"NOMBRE DE LA EMPRESA:  ",null,null,null,null,null,null,"Nº C.C.C.:  ",null,null,null,null,null,null,null,null,null,null,null,"CIF Empresa:  ",null,null,null,null,null,null,null,null,"Día Desde:  "]
[]
[null,null,"Apellidos",null,"Nombre",null,null,null,null,null,"NIF Autorizado"]
[null,"AUTORIZADO CERTIFIC@:  ",null,null,null,null,null,null,null,null,null,null,null,null,null,null,null,null,null,null,"Nº ERTE:  ",null,null,null,null,null,null,null,null,"Día Hasta:  "]
[]
[]
["        DATOS DEL TRABAJADOR",null,null,null,"AÑO",null,null,null,2020,null,null,null,null,null,"MES",null,null,2,null,null,{"$f":"IF(R8<>\"\",VLOOKUP(R8,MES,2),\"\")","v":"Febrero"},null,null,null,null,null,null,null,null,null,null,null,null,null,null,"COEFICIENTE",1]
[null,null,null,{"$f":"IF(ISERROR(VLOOKUP(DATOS!M22,SEMANAS,2)),\"\",VLOOKUP(DATOS!M22,SEMANAS,2))","v":"S"},{"$f":"IF(ISERROR(VLOOKUP(DATOS!N22,SEMANAS,2)),\"\",VLOOKUP(DATOS!N22,SEMANAS,2))","v":"D"},{"$f":"IF(ISERROR(VLOOKUP(DATOS!O22,SEMANAS,2)),\"\",VLOOKUP(DATOS!O22,SEMANAS,2))","v":"L"},{"$f":"IF(ISERROR(VLOOKUP(DATOS!P22,SEMANAS,2)),\"\",VLOOKUP(DATOS!P22,SEMANAS,2))","v":"M"},{"$f":"IF(ISERROR(VLOOKUP(DATOS!Q22,SEMANAS,2)),\"\",VLOOKUP(DATOS!Q22,SEMANAS,2))","v":"X"},{"$f":"IF(ISERROR(VLOOKUP(DATOS!R22,SEMANAS,2)),\"\",VLOOKUP(DATOS!R22,SEMANAS,2))","v":"J"},{"$f":"IF(ISERROR(VLOOKUP(DATOS!S22,SEMANAS,2)),\"\",VLOOKUP(DATOS!S22,SEMANAS,2))","v":"V"},{"$f":"IF(ISERROR(VLOOKUP(DATOS!T22,SEMANAS,2)),\"\",VLOOKUP(DATOS!T22,SEMANAS,2))","v":"S"},{"$f":"IF(ISERROR(VLOOKUP(DATOS!U22,SEMANAS,2)),\"\",VLOOKUP(DATOS!U22,SEMANAS,2))","v":"D"},{"$f":"IF(ISERROR(VLOOKUP(DATOS!V22,SEMANAS,2)),\"\",VLOOKUP(DATOS!V22,SEMANAS,2))","v":"L"},{"$f":"IF(ISERROR(VLOOKUP(DATOS!W22,SEMANAS,2)),\"\",VLOOKUP(DATOS!W22,SEMANAS,2))","v":"M"},{"$f":"IF(ISERROR(VLOOKUP(DATOS!X22,SEMANAS,2)),\"\",VLOOKUP(DATOS!X22,SEMANAS,2))","v":"X"},{"$f":"IF(ISERROR(VLOOKUP(DATOS!Y22,SEMANAS,2)),\"\",VLOOKUP(DATOS!Y22,SEMANAS,2))","v":"J"},{"$f":"IF(ISERROR(VLOOKUP(DATOS!Z22,SEMANAS,2)),\"\",VLOOKUP(DATOS!Z22,SEMANAS,2))","v":"V"},{"$f":"IF(ISERROR(VLOOKUP(DATOS!AA22,SEMANAS,2)),\"\",VLOOKUP(DATOS!AA22,SEMANAS,2))","v":"S"},{"$f":"IF(ISERROR(VLOOKUP(DATOS!AB22,SEMANAS,2)),\"\",VLOOKUP(DATOS!AB22,SEMANAS,2))","v":"D"},{"$f":"IF(ISERROR(VLOOKUP(DATOS!AC22,SEMANAS,2)),\"\",VLOOKUP(DATOS!AC22,SEMANAS,2))","v":"L"},{"$f":"IF(ISERROR(VLOOKUP(DATOS!AD22,SEMANAS,2)),\"\",VLOOKUP(DATOS!AD22,SEMANAS,2))","v":"M"},{"$f":"IF(ISERROR(VLOOKUP(DATOS!AE22,SEMANAS,2)),\"\",VLOOKUP(DATOS!AE22,SEMANAS,2))","v":"X"},{"$f":"IF(ISERROR(VLOOKUP(DATOS!AF22,SEMANAS,2)),\"\",VLOOKUP(DATOS!AF22,SEMANAS,2))","v":"J"},{"$f":"IF(ISERROR(VLOOKUP(DATOS!AG22,SEMANAS,2)),\"\",VLOOKUP(DATOS!AG22,SEMANAS,2))","v":"V"},{"$f":"IF(ISERROR(VLOOKUP(DATOS!AH22,SEMANAS,2)),\"\",VLOOKUP(DATOS!AH22,SEMANAS,2))","v":"S"},{"$f":"IF(ISERROR(VLOOKUP(DATOS!AI22,SEMANAS,2)),\"\",VLOOKUP(DATOS!AI22,SEMANAS,2))","v":"D"},{"$f":"IF(ISERROR(VLOOKUP(DATOS!AJ22,SEMANAS,2)),\"\",VLOOKUP(DATOS!AJ22,SEMANAS,2))","v":"L"},{"$f":"IF(ISERROR(VLOOKUP(DATOS!AK22,SEMANAS,2)),\"\",VLOOKUP(DATOS!AK22,SEMANAS,2))","v":"M"},{"$f":"IF(ISERROR(VLOOKUP(DATOS!AL22,SEMANAS,2)),\"\",VLOOKUP(DATOS!AL22,SEMANAS,2))","v":"X"},{"$f":"IF(ISERROR(VLOOKUP(DATOS!AM22,SEMANAS,2)),\"\",VLOOKUP(DATOS!AM22,SEMANAS,2))","v":"J"},{"$f":"IF(ISERROR(VLOOKUP(DATOS!AN22,SEMANAS,2)),\"\",VLOOKUP(DATOS!AN22,SEMANAS,2))","v":"V"},{"$f":"IF(ISERROR(VLOOKUP(DATOS!AO22,SEMANAS,2)),\"\",VLOOKUP(DATOS!AO22,SEMANAS,2))","v":"S"},{"$f":"IF(ISERROR(VLOOKUP(DATOS!AP22,SEMANAS,2)),\"\",VLOOKUP(DATOS!AP22,SEMANAS,2))","v":""},{"$f":"IF(ISERROR(VLOOKUP(DATOS!AQ22,SEMANAS,2)),\"\",VLOOKUP(DATOS!AQ22,SEMANAS,2))","v":""},null,"Días de no\nActividad"]
["Orden","NIF / NIE","APELLIDOS  Y NOMBRE",{"$f":"IF(DATOS!M23,\"\",DATOS!M20)","v":1},{"$f":"IF(DATOS!N23,\"\",DATOS!N20)","v":2},{"$f":"IF(DATOS!O23,\"\",DATOS!O20)","v":3},{"$f":"IF(DATOS!P23,\"\",DATOS!P20)","v":4},{"$f":"IF(DATOS!Q23,\"\",DATOS!Q20)","v":5},{"$f":"IF(DATOS!R23,\"\",DATOS!R20)","v":6},{"$f":"IF(DATOS!S23,\"\",DATOS!S20)","v":7},{"$f":"IF(DATOS!T23,\"\",DATOS!T20)","v":8},{"$f":"IF(DATOS!U23,\"\",DATOS!U20)","v":9},{"$f":"IF(DATOS!V23,\"\",DATOS!V20)","v":10},{"$f":"IF(DATOS!W23,\"\",DATOS!W20)","v":11},{"$f":"IF(DATOS!X23,\"\",DATOS!X20)","v":12},{"$f":"IF(DATOS!Y23,\"\",DATOS!Y20)","v":13},{"$f":"IF(DATOS!Z23,\"\",DATOS!Z20)","v":14},{"$f":"IF(DATOS!AA23,\"\",DATOS!AA20)","v":15},{"$f":"IF(DATOS!AB23,\"\",DATOS!AB20)","v":16},{"$f":"IF(DATOS!AC23,\"\",DATOS!AC20)","v":17},{"$f":"IF(DATOS!AD23,\"\",DATOS!AD20)","v":18},{"$f":"IF(DATOS!AE23,\"\",DATOS!AE20)","v":19},{"$f":"IF(DATOS!AF23,\"\",DATOS!AF20)","v":20},{"$f":"IF(DATOS!AG23,\"\",DATOS!AG20)","v":21},{"$f":"IF(DATOS!AH23,\"\",DATOS!AH20)","v":22},{"$f":"IF(DATOS!AI23,\"\",DATOS!AI20)","v":23},{"$f":"IF(DATOS!AJ23,\"\",DATOS!AJ20)","v":24},{"$f":"IF(DATOS!AK23,\"\",DATOS!AK20)","v":25},{"$f":"IF(DATOS!AL23,\"\",DATOS!AL20)","v":26},{"$f":"IF(DATOS!AM23,\"\",DATOS!AM20)","v":27},{"$f":"IF(DATOS!AN23,\"\",DATOS!AN20)","v":28},{"$f":"IF(DATOS!AO23,\"\",DATOS!AO20)","v":29},{"$f":"IF(DATOS!AP23,\"\",DATOS!AP20)","v":""},{"$f":"IF(DATOS!AQ23,\"\",DATOS!AQ20)","v":""}]
[1,null,null,null,null,null,null,null,null,null,null,null,null,null,null,null,null,null,null,null,null,null,null,null,null,null,null,null,null,null,null,null,null,null,null,{"$f":"IF(B11=\"\",\"\",COUNTIF(D11:AH11,\"1\")+COUNTIF(D11:AH11,\"x\"))","v":""}]
[2,null,null,null,null,null,null,null,null,null,null,null,null,null,null,null,null,null,null,null,null,null,null,null,null,null,null,null,null,null,null,null,null,null,null,{"$f":"IF(B12=\"\",\"\",COUNTIF(D12:AH12,\"1\")+COUNTIF(D12:AH12,\"x\"))","v":""}]
[3,null,null,null,null,null,null,null,null,null,null,null,null,null,null,null,null,null,null,null,null,null,null,null,null,null,null,null,null,null,null,null,null,null,null,""]
[4,null,null,null,null,null,null,null,null,null,null,null,null,null,null,null,null,null,null,null,null,null,null,null,null,null,null,null,null,null,null,null,null,null,null,""]
[5,null,null,null,null,null,null,null,null,null,null,null,null,null,null,null,null,null,null,null,null,null,null,null,null,null,null,null,null,null,null,null,null,null,null,""]
[6,null,null,null,null,null,null,null,null,null,null,null,null,null,null,null,null,null,null,null,null,null,null,null,null,null,null,null,null,null,null,null,null,null,null,""]
[7,null,null,null,null,null,null,null,null,null,null,null,null,null,null,null,null,null,null,null,null,null,null,null,null,null,null,null,null,null,null,null,null,null,null,""]
[8,null,null,null,null,null,null,null,null,null,null,null,null,null,null,null,null,null,null,null,null,null,null,null,null,null,null,null,null,null,null,null,null,null,null,""]
[9,null,null,null,null,null,null,null,null,null,null,null,null,null,null,null,null,null,null,null,null,null,null,null,null,null,null,null,null,null,null,null,null,null,null,""]
[10,null,null,null,null,null,null,null,null,null,null,null,null,null,null,null,null,null,null,null,null,null,null,null,null,null,null,null,null,null,null,null,null,null,null,""]
[11,null,null,null,null,null,null,null,null,null,null,null,null,null,null,null,null,null,null,null,null,null,null,null,null,null,null,null,null,null,null,null,null,null,null,""]
[12,null,null,null,null,null,null,null,null,null,null,null,null,null,null,null,null,null,null,null,null,null,null,null,null,null,null,null,null,null,null,null,null,null,null,""]
[13,null,null,null,null,null,null,null,null,null,null,null,null,null,null,null,null,null,null,null,null,null,null,null,null,null,null,null,null,null,null,null,null,null,null,""]
[14,null,null,null,null,null,null,null,null,null,null,null,null,null,null,null,null,null,null,null,null,null,null,null,null,null,null,null,null,null,null,null,null,null,null,""]
[15,null,null,null,null,null,null,null,null,null,null,null,null,null,null,null,null,null,null,null,null,null,null,null,null,null,null,null,null,null,null,null,null,null,null,""]
[16,null,null,null,null,null,null,null,null,null,null,null,null,null,null,null,null,null,null,null,null,null,null,null,null,null,null,null,null,null,null,null,null,null,null,""]
[17,null,null,null,null,null,null,null,null,null,null,null,null,null,null,null,null,null,null,null,null,null,null,null,null,null,null,null,null,null,null,null,null,null,null,""]
[18,null,null,null,null,null,null,null,null,null,null,null,null,null,null,null,null,null,null,null,null,null,null,null,null,null,null,null,null,null,null,null,null,null,null,""]
[19,null,null,null,null,null,null,null,null,null,null,null,null,null,null,null,null,null,null,null,null,null,null,null,null,null,null,null,null,null,null,null,null,null,null,""]
[20,null,null,null,null,null,null,null,null,null,null,null,null,null,null,null,null,null,null,null,null,null,null,null,null,null,null,null,null,null,null,null,null,null,null,""]
[21,null,null,null,null,null,null,null,null,null,null,null,null,null,null,null,null,null,null,null,null,null,null,null,null,null,null,null,null,null,null,null,null,null,null,""]
[22,null,null,null,null,null,null,null,null,null,null,null,null,null,null,null,null,null,null,null,null,null,null,null,null,null,null,null,null,null,null,null,null,null,null,""]
[23,null,null,null,null,null,null,null,null,null,null,null,null,null,null,null,null,null,null,null,null,null,null,null,null,null,null,null,null,null,null,null,null,null,null,""]
[24,null,null,null,null,null,null,null,null,null,null,null,null,null,null,null,null,null,null,null,null,null,null,null,null,null,null,null,null,null,null,null,null,null,null,""]
[25,null,null,null,null,null,null,null,null,null,null,null,null,null,null,null,null,null,null,null,null,null,null,null,null,null,null,null,null,null,null,null,null,null,null,""]
[26,null,null,null,null,null,null,null,null,null,null,null,null,null,null,null,null,null,null,null,null,null,null,null,null,null,null,null,null,null,null,null,null,null,null,""]
[27,null,null,null,null,null,null,null,null,null,null,null,null,null,null,null,null,null,null,null,null,null,null,null,null,null,null,null,null,null,null,null,null,null,null,""]
[28,null,null,null,null,null,null,null,null,null,null,null,null,null,null,null,null,null,null,null,null,null,null,null,null,null,null,null,null,null,null,null,null,null,null,""]
[29,null,null,null,null,null,null,null,null,null,null,null,null,null,null,null,null,null,null,null,null,null,null,null,null,null,null,null,null,null,null,null,null,null,null,""]
[30,null,null,null,null,null,null,null,null,null,null,null,null,null,null,null,null,null,null,null,null,null,null,null,null,null,null,null,null,null,null,null,null,null,null,""]
[31,null,null,null,null,null,null,null,null,null,null,null,null,null,null,null,null,null,null,null,null,null,null,null,null,null,null,null,null,null,null,null,null,null,null,""]
[32,null,null,null,null,null,null,null,null,null,null,null,null,null,null,null,null,null,null,null,null,null,null,null,null,null,null,null,null,null,null,null,null,null,null,""]
[33,null,null,null,null,null,null,null,null,null,null,null,null,null,null,null,null,null,null,null,null,null,null,null,null,null,null,null,null,null,null,null,null,null,null,""]
[34,null,null,null,null,null,null,null,null,null,null,null,null,null,null,null,null,null,null,null,null,null,null,null,null,null,null,null,null,null,null,null,null,null,null,""]
[35,null,null,null,null,null,null,null,null,null,null,null,null,null,null,null,null,null,null,null,null,null,null,null,null,null,null,null,null,null,null,null,null,null,null,""]
[36,null,null,null,null,null,null,null,null,null,null,null,null,null,null,null,null,null,null,null,null,null,null,null,null,null,null,null,null,null,null,null,null,null,null,""]
[37,null,null,null,null,null,null,null,null,null,null,null,null,null,null,null,null,null,null,null,null,null,null,null,null,null,null,null,null,null,null,null,null,null,null,""]
[38,null,null,null,null,null,null,null,null,null,null,null,null,null,null,null,null,null,null,null,null,null,null,null,null,null,null,null,null,null,null,null,null,null,null,""]
[39,null,null,null,null,null,null,null,null,null,null,null,null,null,null,null,null,null,null,null,null,null,null,null,null,null,null,null,null,null,null,null,null,null,null,""]
[40,null,null,null,null,null,null,null,null,null,null,null,null,null,null,null,null,null,null,null,null,null,null,null,null,null,null,null,null,null,null,null,null,null,null,""]
[41,null,null,null,null,null,null,null,null,null,null,null,null,null,null,null,null,null,null,null,null,null,null,null,null,null,null,null,null,null,null,null,null,null,null,""]
[42,null,null,null,null,null,null,null,null,null,null,null,null,null,null,null,null,null,null,null,null,null,null,null,null,null,null,null,null,null,null,null,null,null,null,""]
[43,null,null,null,null,null,null,null,null,null,null,null,null,null,null,null,null,null,null,null,null,null,null,null,null,null,null,null,null,null,null,null,null,null,null,""]
[44,null,null,null,null,null,null,null,null,null,null,null,null,null,null,null,null,null,null,null,null,null,null,null,null,null,null,null,null,null,null,null,null,null,null,""]
[45,null,null,null,null,null,null,null,null,null,null,null,null,null,null,null,null,null,null,null,null,null,null,null,null,null,null,null,null,null,null,null,null,null,null,""]
[46,null,null,null,null,null,null,null,null,null,null,null,null,null,null,null,null,null,null,null,null,null,null,null,null,null,null,null,null,null,null,null,null,null,null,""]
[47,null,null,null,null,null,null,null,null,null,null,null,null,null,null,null,null,null,null,null,null,null,null,null,null,null,null,null,null,null,null,null,null,null,null,""]
[48,null,null,null,null,null,null,null,null,null,null,null,null,null,null,null,null,null,null,null,null,null,null,null,null,null,null,null,null,null,null,null,null,null,null,""]
[49,null,null,null,null,null,null,null,null,null,null,null,null,null,null,null,null,null,null,null,null,null,null,null,null,null,null,null,null,null,null,null,null,null,null,""]
[50,null,null,null,null,null,null,null,null,null,null,null,null,null,null,null,null,null,null,null,null,null,null,null,null,null,null,null,null,null,null,null,null,null,null,""]
[51,null,null,null,null,null,null,null,null,null,null,null,null,null,null,null,null,null,null,null,null,null,null,null,null,null,null,null,null,null,null,null,null,null,null,""]
[52,null,null,null,null,null,null,null,null,null,null,null,null,null,null,null,null,null,null,null,null,null,null,null,null,null,null,null,null,null,null,null,null,null,null,""]
[53,null,null,null,null,null,null,null,null,null,null,null,null,null,null,null,null,null,null,null,null,null,null,null,null,null,null,null,null,null,null,null,null,null,null,""]
[54,null,null,null,null,null,null,null,null,null,null,null,null,null,null,null,null,null,null,null,null,null,null,null,null,null,null,null,null,null,null,null,null,null,null,""]
[55,null,null,null,null,null,null,null,null,null,null,null,null,null,null,null,null,null,null,null,null,null,null,null,null,null,null,null,null,null,null,null,null,null,null,""]
[56,null,null,null,null,null,null,null,null,null,null,null,null,null,null,null,null,null,null,null,null,null,null,null,null,null,null,null,null,null,null,null,null,null,null,""]
[57,null,null,null,null,null,null,null,null,null,null,null,null,null,null,null,null,null,null,null,null,null,null,null,null,null,null,null,null,null,null,null,null,null,null,""]
[58,null,null,null,null,null,null,null,null,null,null,null,null,null,null,null,null,null,null,null,null,null,null,null,null,null,null,null,null,null,null,null,null,null,null,""]
[59,null,null,null,null,null,null,null,null,null,null,null,null,null,null,null,null,null,null,null,null,null,null,null,null,null,null,null,null,null,null,null,null,null,null,""]
[60,null,null,null,null,null,null,null,null,null,null,null,null,null,null,null,null,null,null,null,null,null,null,null,null,null,null,null,null,null,null,null,null,null,null,""]
[61,null,null,null,null,null,null,null,null,null,null,null,null,null,null,null,null,null,null,null,null,null,null,null,null,null,null,null,null,null,null,null,null,null,null,""]
[62,null,null,null,null,null,null,null,null,null,null,null,null,null,null,null,null,null,null,null,null,null,null,null,null,null,null,null,null,null,null,null,null,null,null,""]
[63,null,null,null,null,null,null,null,null,null,null,null,null,null,null,null,null,null,null,null,null,null,null,null,null,null,null,null,null,null,null,null,null,null,null,""]
[64,null,null,null,null,null,null,null,null,null,null,null,null,null,null,null,null,null,null,null,null,null,null,null,null,null,null,null,null,null,null,null,null,null,null,""]
[65,null,null,null,null,null,null,null,null,null,null,null,null,null,null,null,null,null,null,null,null,null,null,null,null,null,null,null,null,null,null,null,null,null,null,""]
[66,null,null,null,null,null,null,null,null,null,null,null,null,null,null,null,null,null,null,null,null,null,null,null,null,null,null,null,null,null,null,null,null,null,null,{"$f":"IF(B76=\"\",\"\",COUNTIF(D76:AH76,\"1\")+COUNTIF(D76:AH76,\"x\"))","v":""}]
[67,null,null,null,null,null,null,null,null,null,null,null,null,null,null,null,null,null,null,null,null,null,null,null,null,null,null,null,null,null,null,null,null,null,null,""]
[68,null,null,null,null,null,null,null,null,null,null,null,null,null,null,null,null,null,null,null,null,null,null,null,null,null,null,null,null,null,null,null,null,null,null,""]
[69,null,null,null,null,null,null,null,null,null,null,null,null,null,null,null,null,null,null,null,null,null,null,null,null,null,null,null,null,null,null,null,null,null,null,""]
[70,null,null,null,null,null,null,null,null,null,null,null,null,null,null,null,null,null,null,null,null,null,null,null,null,null,null,null,null,null,null,null,null,null,null,""]
[71,null,null,null,null,null,null,null,null,null,null,null,null,null,null,null,null,null,null,null,null,null,null,null,null,null,null,null,null,null,null,null,null,null,null,""]
[72,null,null,null,null,null,null,null,null,null,null,null,null,null,null,null,null,null,null,null,null,null,null,null,null,null,null,null,null,null,null,null,null,null,null,""]
[73,null,null,null,null,null,null,null,null,null,null,null,null,null,null,null,null,null,null,null,null,null,null,null,null,null,null,null,null,null,null,null,null,null,null,""]
[74,null,null,null,null,null,null,null,null,null,null,null,null,null,null,null,null,null,null,null,null,null,null,null,null,null,null,null,null,null,null,null,null,null,null,""]
[75,null,null,null,null,null,null,null,null,null,null,null,null,null,null,null,null,null,null,null,null,null,null,null,null,null,null,null,null,null,null,null,null,null,null,""]
[76,null,null,null,null,null,null,null,null,null,null,null,null,null,null,null,null,null,null,null,null,null,null,null,null,null,null,null,null,null,null,null,null,null,null,""]
[77,null,null,null,null,null,null,null,null,null,null,null,null,null,null,null,null,null,null,null,null,null,null,null,null,null,null,null,null,null,null,null,null,null,null,""]
[78,null,null,null,null,null,null,null,null,null,null,null,null,null,null,null,null,null,null,null,null,null,null,null,null,null,null,null,null,null,null,null,null,null,null,""]
[79,null,null,null,null,null,null,null,null,null,null,null,null,null,null,null,null,null,null,null,null,null,null,null,null,null,null,null,null,null,null,null,null,null,null,""]
[80,null,null,null,null,null,null,null,null,null,null,null,null,null,null,null,null,null,null,null,null,null,null,null,null,null,null,null,null,null,null,null,null,null,null,""]
[81,null,null,null,null,null,null,null,null,null,null,null,null,null,null,null,null,null,null,null,null,null,null,null,null,null,null,null,null,null,null,null,null,null,null,""]
[82,null,null,null,null,null,null,null,null,null,null,null,null,null,null,null,null,null,null,null,null,null,null,null,null,null,null,null,null,null,null,null,null,null,null,""]
[83,null,null,null,null,null,null,null,null,null,null,null,null,null,null,null,null,null,null,null,null,null,null,null,null,null,null,null,null,null,null,null,null,null,null,""]
[84,null,null,null,null,null,null,null,null,null,null,null,null,null,null,null,null,null,null,null,null,null,null,null,null,null,null,null,null,null,null,null,null,null,null,""]
[85,null,null,null,null,null,null,null,null,null,null,null,null,null,null,null,null,null,null,null,null,null,null,null,null,null,null,null,null,null,null,null,null,null,null,""]
[86,null,null,null,null,null,null,null,null,null,null,null,null,null,null,null,null,null,null,null,null,null,null,null,null,null,null,null,null,null,null,null,null,null,null,""]
[87,null,null,null,null,null,null,null,null,null,null,null,null,null,null,null,null,null,null,null,null,null,null,null,null,null,null,null,null,null,null,null,null,null,null,""]
[88,null,null,null,null,null,null,null,null,null,null,null,null,null,null,null,null,null,null,null,null,null,null,null,null,null,null,null,null,null,null,null,null,null,null,""]
[89,null,null,null,null,null,null,null,null,null,null,null,null,null,null,null,null,null,null,null,null,null,null,null,null,null,null,null,null,null,null,null,null,null,null,""]
[90,null,null,null,null,null,null,null,null,null,null,null,null,null,null,null,null,null,null,null,null,null,null,null,null,null,null,null,null,null,null,null,null,null,null,""]
[91,null,null,null,null,null,null,null,null,null,null,null,null,null,null,null,null,null,null,null,null,null,null,null,null,null,null,null,null,null,null,null,null,null,null,""]
[92,null,null,null,null,null,null,null,null,null,null,null,null,null,null,null,null,null,null,null,null,null,null,null,null,null,null,null,null,null,null,null,null,null,null,""]
[93,null,null,null,null,null,null,null,null,null,null,null,null,null,null,null,null,null,null,null,null,null,null,null,null,null,null,null,null,null,null,null,null,null,null,""]
[94,null,null,null,null,null,null,null,null,null,null,null,null,null,null,null,null,null,null,null,null,null,null,null,null,null,null,null,null,null,null,null,null,null,null,""]
[95,null,null,null,null,null,null,null,null,null,null,null,null,null,null,null,null,null,null,null,null,null,null,null,null,null,null,null,null,null,null,null,null,null,null,""]
[96,null,null,null,null,null,null,null,null,null,null,null,null,null,null,null,null,null,null,null,null,null,null,null,null,null,null,null,null,null,null,null,null,null,null,""]
[97,null,null,null,null,null,null,null,null,null,null,null,null,null,null,null,null,null,null,null,null,null,null,null,null,null,null,null,null,null,null,null,null,null,null,""]
[98,null,null,null,null,null,null,null,null,null,null,null,null,null,null,null,null,null,null,null,null,null,null,null,null,null,null,null,null,null,null,null,null,null,null,""]
[99,null,null,null,null,null,null,null,null,null,null,null,null,null,null,null,null,null,null,null,null,null,null,null,null,null,null,null,null,null,null,null,null,null,null,""]
[100,null,null,null,null,null,null,null,null,null,null,null,null,null,null,null,null,null,null,null,null,null,null,null,null,null,null,null,null,null,null,null,null,null,null,""]
[101,null,null,null,null,null,null,null,null,null,null,null,null,null,null,null,null,null,null,null,null,null,null,null,null,null,null,null,null,null,null,null,null,null,null,""]
[102,null,null,null,null,null,null,null,null,null,null,null,null,null,null,null,null,null,null,null,null,null,null,null,null,null,null,null,null,null,null,null,null,null,null,""]
[103,null,null,null,null,null,null,null,null,null,null,null,null,null,null,null,null,null,null,null,null,null,null,null,null,null,null,null,null,null,null,null,null,null,null,""]
[104,null,null,null,null,null,null,null,null,null,null,null,null,null,null,null,null,null,null,null,null,null,null,null,null,null,null,null,null,null,null,null,null,null,null,""]
[105,null,null,null,null,null,null,null,null,null,null,null,null,null,null,null,null,null,null,null,null,null,null,null,null,null,null,null,null,null,null,null,null,null,null,""]
[106,null,null,null,null,null,null,null,null,null,null,null,null,null,null,null,null,null,null,null,null,null,null,null,null,null,null,null,null,null,null,null,null,null,null,""]
[107,null,null,null,null,null,null,null,null,null,null,null,null,null,null,null,null,null,null,null,null,null,null,null,null,null,null,null,null,null,null,null,null,null,null,""]
[108,null,null,null,null,null,null,null,null,null,null,null,null,null,null,null,null,null,null,null,null,null,null,null,null,null,null,null,null,null,null,null,null,null,null,""]
[109,null,null,null,null,null,null,null,null,null,null,null,null,null,null,null,null,null,null,null,null,null,null,null,null,null,null,null,null,null,null,null,null,null,null,""]
[110,null,null,null,null,null,null,null,null,null,null,null,null,null,null,null,null,null,null,null,null,null,null,null,null,null,null,null,null,null,null,null,null,null,null,""]
[111,null,null,null,null,null,null,null,null,null,null,null,null,null,null,null,null,null,null,null,null,null,null,null,null,null,null,null,null,null,null,null,null,null,null,""]
[112,null,null,null,null,null,null,null,null,null,null,null,null,null,null,null,null,null,null,null,null,null,null,null,null,null,null,null,null,null,null,null,null,null,null,""]
[113,null,null,null,null,null,null,null,null,null,null,null,null,null,null,null,null,null,null,null,null,null,null,null,null,null,null,null,null,null,null,null,null,null,null,""]
[114,null,null,null,null,null,null,null,null,null,null,null,null,null,null,null,null,null,null,null,null,null,null,null,null,null,null,null,null,null,null,null,null,null,null,""]
[115,null,null,null,null,null,null,null,null,null,null,null,null,null,null,null,null,null,null,null,null,null,null,null,null,null,null,null,null,null,null,null,null,null,null,""]
[116,null,null,null,null,null,null,null,null,null,null,null,null,null,null,null,null,null,null,null,null,null,null,null,null,null,null,null,null,null,null,null,null,null,null,""]
[117,null,null,null,null,null,null,null,null,null,null,null,null,null,null,null,null,null,null,null,null,null,null,null,null,null,null,null,null,null,null,null,null,null,null,""]
[118,null,null,null,null,null,null,null,null,null,null,null,null,null,null,null,null,null,null,null,null,null,null,null,null,null,null,null,null,null,null,null,null,null,null,""]
[119,null,null,null,null,null,null,null,null,null,null,null,null,null,null,null,null,null,null,null,null,null,null,null,null,null,null,null,null,null,null,null,null,null,null,""]
[120,null,null,null,null,null,null,null,null,null,null,null,null,null,null,null,null,null,null,null,null,null,null,null,null,null,null,null,null,null,null,null,null,null,null,""]
[121,null,null,null,null,null,null,null,null,null,null,null,null,null,null,null,null,null,null,null,null,null,null,null,null,null,null,null,null,null,null,null,null,null,null,""]
[122,null,null,null,null,null,null,null,null,null,null,null,null,null,null,null,null,null,null,null,null,null,null,null,null,null,null,null,null,null,null,null,null,null,null,""]
[123,null,null,null,null,null,null,null,null,null,null,null,null,null,null,null,null,null,null,null,null,null,null,null,null,null,null,null,null,null,null,null,null,null,null,""]
[124,null,null,null,null,null,null,null,null,null,null,null,null,null,null,null,null,null,null,null,null,null,null,null,null,null,null,null,null,null,null,null,null,null,null,""]
[125,null,null,null,null,null,null,null,null,null,null,null,null,null,null,null,null,null,null,null,null,null,null,null,null,null,null,null,null,null,null,null,null,null,null,""]
[126,null,null,null,null,null,null,null,null,null,null,null,null,null,null,null,null,null,null,null,null,null,null,null,null,null,null,null,null,null,null,null,null,null,null,""]
[127,null,null,null,null,null,null,null,null,null,null,null,null,null,null,null,null,null,null,null,null,null,null,null,null,null,null,null,null,null,null,null,null,null,null,""]
[128,null,null,null,null,null,null,null,null,null,null,null,null,null,null,null,null,null,null,null,null,null,null,null,null,null,null,null,null,null,null,null,null,null,null,""]
[129,null,null,null,null,null,null,null,null,null,null,null,null,null,null,null,null,null,null,null,null,null,null,null,null,null,null,null,null,null,null,null,null,null,null,""]
[130,null,null,null,null,null,null,null,null,null,null,null,null,null,null,null,null,null,null,null,null,null,null,null,null,null,null,null,null,null,null,null,null,null,null,{"$f":"IF(B140=\"\",\"\",COUNTIF(D140:AH140,\"1\")+COUNTIF(D140:AH140,\"x\"))","v":""}]
[131,null,null,null,null,null,null,null,null,null,null,null,null,null,null,null,null,null,null,null,null,null,null,null,null,null,null,null,null,null,null,null,null,null,null,""]
[132,null,null,null,null,null,null,null,null,null,null,null,null,null,null,null,null,null,null,null,null,null,null,null,null,null,null,null,null,null,null,null,null,null,null,""]
[133,null,null,null,null,null,null,null,null,null,null,null,null,null,null,null,null,null,null,null,null,null,null,null,null,null,null,null,null,null,null,null,null,null,null,""]
[134,null,null,null,null,null,null,null,null,null,null,null,null,null,null,null,null,null,null,null,null,null,null,null,null,null,null,null,null,null,null,null,null,null,null,""]
[135,null,null,null,null,null,null,null,null,null,null,null,null,null,null,null,null,null,null,null,null,null,null,null,null,null,null,null,null,null,null,null,null,null,null,""]
[136,null,null,null,null,null,null,null,null,null,null,null,null,null,null,null,null,null,null,null,null,null,null,null,null,null,null,null,null,null,null,null,null,null,null,""]
[137,null,null,null,null,null,null,null,null,null,null,null,null,null,null,null,null,null,null,null,null,null,null,null,null,null,null,null,null,null,null,null,null,null,null,""]
[138,null,null,null,null,null,null,null,null,null,null,null,null,null,null,null,null,null,null,null,null,null,null,null,null,null,null,null,null,null,null,null,null,null,null,""]
[139,null,null,null,null,null,null,null,null,null,null,null,null,null,null,null,null,null,null,null,null,null,null,null,null,null,null,null,null,null,null,null,null,null,null,""]
[140,null,null,null,null,null,null,null,null,null,null,null,null,null,null,null,null,null,null,null,null,null,null,null,null,null,null,null,null,null,null,null,null,null,null,""]
[141,null,null,null,null,null,null,null,null,null,null,null,null,null,null,null,null,null,null,null,null,null,null,null,null,null,null,null,null,null,null,null,null,null,null,""]
[142,null,null,null,null,null,null,null,null,null,null,null,null,null,null,null,null,null,null,null,null,null,null,null,null,null,null,null,null,null,null,null,null,null,null,""]
[143,null,null,null,null,null,null,null,null,null,null,null,null,null,null,null,null,null,null,null,null,null,null,null,null,null,null,null,null,null,null,null,null,null,null,""]
[144,null,null,null,null,null,null,null,null,null,null,null,null,null,null,null,null,null,null,null,null,null,null,null,null,null,null,null,null,null,null,null,null,null,null,""]
[145,null,null,null,null,null,null,null,null,null,null,null,null,null,null,null,null,null,null,null,null,null,null,null,null,null,null,null,null,null,null,null,null,null,null,""]
[146,null,null,null,null,null,null,null,null,null,null,null,null,null,null,null,null,null,null,null,null,null,null,null,null,null,null,null,null,null,null,null,null,null,null,""]
[147,null,null,null,null,null,null,null,null,null,null,null,null,null,null,null,null,null,null,null,null,null,null,null,null,null,null,null,null,null,null,null,null,null,null,""]
[148,null,null,null,null,null,null,null,null,null,null,null,null,null,null,null,null,null,null,null,null,null,null,null,null,null,null,null,null,null,null,null,null,null,null,""]
[149,null,null,null,null,null,null,null,null,null,null,null,null,null,null,null,null,null,null,null,null,null,null,null,null,null,null,null,null,null,null,null,null,null,null,""]
[150,null,null,null,null,null,null,null,null,null,null,null,null,null,null,null,null,null,null,null,null,null,null,null,null,null,null,null,null,null,null,null,null,null,null,""]
[151,null,null,null,null,null,null,null,null,null,null,null,null,null,null,null,null,null,null,null,null,null,null,null,null,null,null,null,null,null,null,null,null,null,null,""]
[152,null,null,null,null,null,null,null,null,null,null,null,null,null,null,null,null,null,null,null,null,null,null,null,null,null,null,null,null,null,null,null,null,null,null,""]
[153,null,null,null,null,null,null,null,null,null,null,null,null,null,null,null,null,null,null,null,null,null,null,null,null,null,null,null,null,null,null,null,null,null,null,""]
[154,null,null,null,null,null,null,null,null,null,null,null,null,null,null,null,null,null,null,null,null,null,null,null,null,null,null,null,null,null,null,null,null,null,null,""]
[155,null,null,null,null,null,null,null,null,null,null,null,null,null,null,null,null,null,null,null,null,null,null,null,null,null,null,null,null,null,null,null,null,null,null,""]
[156,null,null,null,null,null,null,null,null,null,null,null,null,null,null,null,null,null,null,null,null,null,null,null,null,null,null,null,null,null,null,null,null,null,null,""]
[157,null,null,null,null,null,null,null,null,null,null,null,null,null,null,null,null,null,null,null,null,null,null,null,null,null,null,null,null,null,null,null,null,null,null,""]
[158,null,null,null,null,null,null,null,null,null,null,null,null,null,null,null,null,null,null,null,null,null,null,null,null,null,null,null,null,null,null,null,null,null,null,""]
[159,null,null,null,null,null,null,null,null,null,null,null,null,null,null,null,null,null,null,null,null,null,null,null,null,null,null,null,null,null,null,null,null,null,null,""]
[160,null,null,null,null,null,null,null,null,null,null,null,null,null,null,null,null,null,null,null,null,null,null,null,null,null,null,null,null,null,null,null,null,null,null,""]
[161,null,null,null,null,null,null,null,null,null,null,null,null,null,null,null,null,null,null,null,null,null,null,null,null,null,null,null,null,null,null,null,null,null,null,""]
[162,null,null,null,null,null,null,null,null,null,null,null,null,null,null,null,null,null,null,null,null,null,null,null,null,null,null,null,null,null,null,null,null,null,null,""]
[163,null,null,null,null,null,null,null,null,null,null,null,null,null,null,null,null,null,null,null,null,null,null,null,null,null,null,null,null,null,null,null,null,null,null,""]
[164,null,null,null,null,null,null,null,null,null,null,null,null,null,null,null,null,null,null,null,null,null,null,null,null,null,null,null,null,null,null,null,null,null,null,""]
[165,null,null,null,null,null,null,null,null,null,null,null,null,null,null,null,null,null,null,null,null,null,null,null,null,null,null,null,null,null,null,null,null,null,null,""]
[166,null,null,null,null,null,null,null,null,null,null,null,null,null,null,null,null,null,null,null,null,null,null,null,null,null,null,null,null,null,null,null,null,null,null,""]
[167,null,null,null,null,null,null,null,null,null,null,null,null,null,null,null,null,null,null,null,null,null,null,null,null,null,null,null,null,null,null,null,null,null,null,""]
[168,null,null,null,null,null,null,null,null,null,null,null,null,null,null,null,null,null,null,null,null,null,null,null,null,null,null,null,null,null,null,null,null,null,null,""]
[169,null,null,null,null,null,null,null,null,null,null,null,null,null,null,null,null,null,null,null,null,null,null,null,null,null,null,null,null,null,null,null,null,null,null,""]
[170,null,null,null,null,null,null,null,null,null,null,null,null,null,null,null,null,null,null,null,null,null,null,null,null,null,null,null,null,null,null,null,null,null,null,""]
[171,null,null,null,null,null,null,null,null,null,null,null,null,null,null,null,null,null,null,null,null,null,null,null,null,null,null,null,null,null,null,null,null,null,null,""]
[172,null,null,null,null,null,null,null,null,null,null,null,null,null,null,null,null,null,null,null,null,null,null,null,null,null,null,null,null,null,null,null,null,null,null,""]
[173,null,null,null,null,null,null,null,null,null,null,null,null,null,null,null,null,null,null,null,null,null,null,null,null,null,null,null,null,null,null,null,null,null,null,""]
[174,null,null,null,null,null,null,null,null,null,null,null,null,null,null,null,null,null,null,null,null,null,null,null,null,null,null,null,null,null,null,null,null,null,null,""]
[175,null,null,null,null,null,null,null,null,null,null,null,null,null,null,null,null,null,null,null,null,null,null,null,null,null,null,null,null,null,null,null,null,null,null,""]
[176,null,null,null,null,null,null,null,null,null,null,null,null,null,null,null,null,null,null,null,null,null,null,null,null,null,null,null,null,null,null,null,null,null,null,""]
[177,null,null,null,null,null,null,null,null,null,null,null,null,null,null,null,null,null,null,null,null,null,null,null,null,null,null,null,null,null,null,null,null,null,null,""]
[178,null,null,null,null,null,null,null,null,null,null,null,null,null,null,null,null,null,null,null,null,null,null,null,null,null,null,null,null,null,null,null,null,null,null,""]
[179,null,null,null,null,null,null,null,null,null,null,null,null,null,null,null,null,null,null,null,null,null,null,null,null,null,null,null,null,null,null,null,null,null,null,""]
[180,null,null,null,null,null,null,null,null,null,null,null,null,null,null,null,null,null,null,null,null,null,null,null,null,null,null,null,null,null,null,null,null,null,null,""]
[181,null,null,null,null,null,null,null,null,null,null,null,null,null,null,null,null,null,null,null,null,null,null,null,null,null,null,null,null,null,null,null,null,null,null,""]
[182,null,null,null,null,null,null,null,null,null,null,null,null,null,null,null,null,null,null,null,null,null,null,null,null,null,null,null,null,null,null,null,null,null,null,""]
[183,null,null,null,null,null,null,null,null,null,null,null,null,null,null,null,null,null,null,null,null,null,null,null,null,null,null,null,null,null,null,null,null,null,null,""]
[184,null,null,null,null,null,null,null,null,null,null,null,null,null,null,null,null,null,null,null,null,null,null,null,null,null,null,null,null,null,null,null,null,null,null,""]
[185,null,null,null,null,null,null,null,null,null,null,null,null,null,null,null,null,null,null,null,null,null,null,null,null,null,null,null,null,null,null,null,null,null,null,""]
[186,null,null,null,null,null,null,null,null,null,null,null,null,null,null,null,null,null,null,null,null,null,null,null,null,null,null,null,null,null,null,null,null,null,null,""]
[187,null,null,null,null,null,null,null,null,null,null,null,null,null,null,null,null,null,null,null,null,null,null,null,null,null,null,null,null,null,null,null,null,null,null,""]
[188,null,null,null,null,null,null,null,null,null,null,null,null,null,null,null,null,null,null,null,null,null,null,null,null,null,null,null,null,null,null,null,null,null,null,""]
[189,null,null,null,null,null,null,null,null,null,null,null,null,null,null,null,null,null,null,null,null,null,null,null,null,null,null,null,null,null,null,null,null,null,null,""]
[190,null,null,null,null,null,null,null,null,null,null,null,null,null,null,null,null,null,null,null,null,null,null,null,null,null,null,null,null,null,null,null,null,null,null,""]
[191,null,null,null,null,null,null,null,null,null,null,null,null,null,null,null,null,null,null,null,null,null,null,null,null,null,null,null,null,null,null,null,null,null,null,""]
[192,null,null,null,null,null,null,null,null,null,null,null,null,null,null,null,null,null,null,null,null,null,null,null,null,null,null,null,null,null,null,null,null,null,null,""]
[193,null,null,null,null,null,null,null,null,null,null,null,null,null,null,null,null,null,null,null,null,null,null,null,null,null,null,null,null,null,null,null,null,null,null,""]
[194,null,null,null,null,null,null,null,null,null,null,null,null,null,null,null,null,null,null,null,null,null,null,null,null,null,null,null,null,null,null,null,null,null,null,{"$f":"IF(B204=\"\",\"\",COUNTIF(D204:AH204,\"1\")+COUNTIF(D204:AH204,\"x\"))","v":""}]
[195,null,null,null,null,null,null,null,null,null,null,null,null,null,null,null,null,null,null,null,null,null,null,null,null,null,null,null,null,null,null,null,null,null,null,""]
[196,null,null,null,null,null,null,null,null,null,null,null,null,null,null,null,null,null,null,null,null,null,null,null,null,null,null,null,null,null,null,null,null,null,null,""]
[197,null,null,null,null,null,null,null,null,null,null,null,null,null,null,null,null,null,null,null,null,null,null,null,null,null,null,null,null,null,null,null,null,null,null,""]
[198,null,null,null,null,null,null,null,null,null,null,null,null,null,null,null,null,null,null,null,null,null,null,null,null,null,null,null,null,null,null,null,null,null,null,""]
[199,null,null,null,null,null,null,null,null,null,null,null,null,null,null,null,null,null,null,null,null,null,null,null,null,null,null,null,null,null,null,null,null,null,null,""]
[200,null,null,null,null,null,null,null,null,null,null,null,null,null,null,null,null,null,null,null,null,null,null,null,null,null,null,null,null,null,null,null,null,null,null,""]
[201,null,null,null,null,null,null,null,null,null,null,null,null,null,null,null,null,null,null,null,null,null,null,null,null,null,null,null,null,null,null,null,null,null,null,""]
[202,null,null,null,null,null,null,null,null,null,null,null,null,null,null,null,null,null,null,null,null,null,null,null,null,null,null,null,null,null,null,null,null,null,null,""]
[203,null,null,null,null,null,null,null,null,null,null,null,null,null,null,null,null,null,null,null,null,null,null,null,null,null,null,null,null,null,null,null,null,null,null,""]
[204,null,null,null,null,null,null,null,null,null,null,null,null,null,null,null,null,null,null,null,null,null,null,null,null,null,null,null,null,null,null,null,null,null,null,""]
[205,null,null,null,null,null,null,null,null,null,null,null,null,null,null,null,null,null,null,null,null,null,null,null,null,null,null,null,null,null,null,null,null,null,null,""]
[206,null,null,null,null,null,null,null,null,null,null,null,null,null,null,null,null,null,null,null,null,null,null,null,null,null,null,null,null,null,null,null,null,null,null,""]
[207,null,null,null,null,null,null,null,null,null,null,null,null,null,null,null,null,null,null,null,null,null,null,null,null,null,null,null,null,null,null,null,null,null,null,""]
[208,null,null,null,null,null,null,null,null,null,null,null,null,null,null,null,null,null,null,null,null,null,null,null,null,null,null,null,null,null,null,null,null,null,null,""]
[209,null,null,null,null,null,null,null,null,null,null,null,null,null,null,null,null,null,null,null,null,null,null,null,null,null,null,null,null,null,null,null,null,null,null,""]
[210,null,null,null,null,null,null,null,null,null,null,null,null,null,null,null,null,null,null,null,null,null,null,null,null,null,null,null,null,null,null,null,null,null,null,""]
[211,null,null,null,null,null,null,null,null,null,null,null,null,null,null,null,null,null,null,null,null,null,null,null,null,null,null,null,null,null,null,null,null,null,null,""]
[212,null,null,null,null,null,null,null,null,null,null,null,null,null,null,null,null,null,null,null,null,null,null,null,null,null,null,null,null,null,null,null,null,null,null,""]
[213,null,null,null,null,null,null,null,null,null,null,null,null,null,null,null,null,null,null,null,null,null,null,null,null,null,null,null,null,null,null,null,null,null,null,""]
[214,null,null,null,null,null,null,null,null,null,null,null,null,null,null,null,null,null,null,null,null,null,null,null,null,null,null,null,null,null,null,null,null,null,null,""]
[215,null,null,null,null,null,null,null,null,null,null,null,null,null,null,null,null,null,null,null,null,null,null,null,null,null,null,null,null,null,null,null,null,null,null,""]
[216,null,null,null,null,null,null,null,null,null,null,null,null,null,null,null,null,null,null,null,null,null,null,null,null,null,null,null,null,null,null,null,null,null,null,""]
[217,null,null,null,null,null,null,null,null,null,null,null,null,null,null,null,null,null,null,null,null,null,null,null,null,null,null,null,null,null,null,null,null,null,null,""]
[218,null,null,null,null,null,null,null,null,null,null,null,null,null,null,null,null,null,null,null,null,null,null,null,null,null,null,null,null,null,null,null,null,null,null,""]
[219,null,null,null,null,null,null,null,null,null,null,null,null,null,null,null,null,null,null,null,null,null,null,null,null,null,null,null,null,null,null,null,null,null,null,""]
[220,null,null,null,null,null,null,null,null,null,null,null,null,null,null,null,null,null,null,null,null,null,null,null,null,null,null,null,null,null,null,null,null,null,null,""]
[221,null,null,null,null,null,null,null,null,null,null,null,null,null,null,null,null,null,null,null,null,null,null,null,null,null,null,null,null,null,null,null,null,null,null,""]
[222,null,null,null,null,null,null,null,null,null,null,null,null,null,null,null,null,null,null,null,null,null,null,null,null,null,null,null,null,null,null,null,null,null,null,""]
[223,null,null,null,null,null,null,null,null,null,null,null,null,null,null,null,null,null,null,null,null,null,null,null,null,null,null,null,null,null,null,null,null,null,null,""]
[224,null,null,null,null,null,null,null,null,null,null,null,null,null,null,null,null,null,null,null,null,null,null,null,null,null,null,null,null,null,null,null,null,null,null,""]
[225,null,null,null,null,null,null,null,null,null,null,null,null,null,null,null,null,null,null,null,null,null,null,null,null,null,null,null,null,null,null,null,null,null,null,""]
[226,null,null,null,null,null,null,null,null,null,null,null,null,null,null,null,null,null,null,null,null,null,null,null,null,null,null,null,null,null,null,null,null,null,null,""]
[227,null,null,null,null,null,null,null,null,null,null,null,null,null,null,null,null,null,null,null,null,null,null,null,null,null,null,null,null,null,null,null,null,null,null,""]
[228,null,null,null,null,null,null,null,null,null,null,null,null,null,null,null,null,null,null,null,null,null,null,null,null,null,null,null,null,null,null,null,null,null,null,""]
[229,null,null,null,null,null,null,null,null,null,null,null,null,null,null,null,null,null,null,null,null,null,null,null,null,null,null,null,null,null,null,null,null,null,null,""]
[230,null,null,null,null,null,null,null,null,null,null,null,null,null,null,null,null,null,null,null,null,null,null,null,null,null,null,null,null,null,null,null,null,null,null,""]
[231,null,null,null,null,null,null,null,null,null,null,null,null,null,null,null,null,null,null,null,null,null,null,null,null,null,null,null,null,null,null,null,null,null,null,""]
[232,null,null,null,null,null,null,null,null,null,null,null,null,null,null,null,null,null,null,null,null,null,null,null,null,null,null,null,null,null,null,null,null,null,null,""]
[233,null,null,null,null,null,null,null,null,null,null,null,null,null,null,null,null,null,null,null,null,null,null,null,null,null,null,null,null,null,null,null,null,null,null,""]
[234,null,null,null,null,null,null,null,null,null,null,null,null,null,null,null,null,null,null,null,null,null,null,null,null,null,null,null,null,null,null,null,null,null,null,""]
[235,null,null,null,null,null,null,null,null,null,null,null,null,null,null,null,null,null,null,null,null,null,null,null,null,null,null,null,null,null,null,null,null,null,null,""]
[236,null,null,null,null,null,null,null,null,null,null,null,null,null,null,null,null,null,null,null,null,null,null,null,null,null,null,null,null,null,null,null,null,null,null,""]
[237,null,null,null,null,null,null,null,null,null,null,null,null,null,null,null,null,null,null,null,null,null,null,null,null,null,null,null,null,null,null,null,null,null,null,""]
[238,null,null,null,null,null,null,null,null,null,null,null,null,null,null,null,null,null,null,null,null,null,null,null,null,null,null,null,null,null,null,null,null,null,null,""]
[239,null,null,null,null,null,null,null,null,null,null,null,null,null,null,null,null,null,null,null,null,null,null,null,null,null,null,null,null,null,null,null,null,null,null,""]
[240,null,null,null,null,null,null,null,null,null,null,null,null,null,null,null,null,null,null,null,null,null,null,null,null,null,null,null,null,null,null,null,null,null,null,""]
[241,null,null,null,null,null,null,null,null,null,null,null,null,null,null,null,null,null,null,null,null,null,null,null,null,null,null,null,null,null,null,null,null,null,null,""]
[242,null,null,null,null,null,null,null,null,null,null,null,null,null,null,null,null,null,null,null,null,null,null,null,null,null,null,null,null,null,null,null,null,null,null,""]
[243,null,null,null,null,null,null,null,null,null,null,null,null,null,null,null,null,null,null,null,null,null,null,null,null,null,null,null,null,null,null,null,null,null,null,""]
[244,null,null,null,null,null,null,null,null,null,null,null,null,null,null,null,null,null,null,null,null,null,null,null,null,null,null,null,null,null,null,null,null,null,null,""]
[245,null,null,null,null,null,null,null,null,null,null,null,null,null,null,null,null,null,null,null,null,null,null,null,null,null,null,null,null,null,null,null,null,null,null,""]
[246,null,null,null,null,null,null,null,null,null,null,null,null,null,null,null,null,null,null,null,null,null,null,null,null,null,null,null,null,null,null,null,null,null,null,""]
[247,null,null,null,null,null,null,null,null,null,null,null,null,null,null,null,null,null,null,null,null,null,null,null,null,null,null,null,null,null,null,null,null,null,null,""]
[248,null,null,null,null,null,null,null,null,null,null,null,null,null,null,null,null,null,null,null,null,null,null,null,null,null,null,null,null,null,null,null,null,null,null,""]
[249,null,null,null,null,null,null,null,null,null,null,null,null,null,null,null,null,null,null,null,null,null,null,null,null,null,null,null,null,null,null,null,null,null,null,""]
[250,null,null,null,null,null,null,null,null,null,null,null,null,null,null,null,null,null,null,null,null,null,null,null,null,null,null,null,null,null,null,null,null,null,null,""]
[251,null,null,null,null,null,null,null,null,null,null,null,null,null,null,null,null,null,null,null,null,null,null,null,null,null,null,null,null,null,null,null,null,null,null,""]
[252,null,null,null,null,null,null,null,null,null,null,null,null,null,null,null,null,null,null,null,null,null,null,null,null,null,null,null,null,null,null,null,null,null,null,""]
[253,null,null,null,null,null,null,null,null,null,null,null,null,null,null,null,null,null,null,null,null,null,null,null,null,null,null,null,null,null,null,null,null,null,null,""]
[254,null,null,null,null,null,null,null,null,null,null,null,null,null,null,null,null,null,null,null,null,null,null,null,null,null,null,null,null,null,null,null,null,null,null,""]
[255,null,null,null,null,null,null,null,null,null,null,null,null,null,null,null,null,null,null,null,null,null,null,null,null,null,null,null,null,null,null,null,null,null,null,""]
[256,null,null,null,null,null,null,null,null,null,null,null,null,null,null,null,null,null,null,null,null,null,null,null,null,null,null,null,null,null,null,null,null,null,null,""]
[257,null,null,null,null,null,null,null,null,null,null,null,null,null,null,null,null,null,null,null,null,null,null,null,null,null,null,null,null,null,null,null,null,null,null,""]
[258,null,null,null,null,null,null,null,null,null,null,null,null,null,null,null,null,null,null,null,null,null,null,null,null,null,null,null,null,null,null,null,null,null,null,{"$f":"IF(B268=\"\",\"\",COUNTIF(D268:AH268,\"1\")+COUNTIF(D268:AH268,\"x\"))","v":""}]
[259,null,null,null,null,null,null,null,null,null,null,null,null,null,null,null,null,null,null,null,null,null,null,null,null,null,null,null,null,null,null,null,null,null,null,""]
[260,null,null,null,null,null,null,null,null,null,null,null,null,null,null,null,null,null,null,null,null,null,null,null,null,null,null,null,null,null,null,null,null,null,null,""]
[261,null,null,null,null,null,null,null,null,null,null,null,null,null,null,null,null,null,null,null,null,null,null,null,null,null,null,null,null,null,null,null,null,null,null,""]
[262,null,null,null,null,null,null,null,null,null,null,null,null,null,null,null,null,null,null,null,null,null,null,null,null,null,null,null,null,null,null,null,null,null,null,""]
[263,null,null,null,null,null,null,null,null,null,null,null,null,null,null,null,null,null,null,null,null,null,null,null,null,null,null,null,null,null,null,null,null,null,null,""]
[264,null,null,null,null,null,null,null,null,null,null,null,null,null,null,null,null,null,null,null,null,null,null,null,null,null,null,null,null,null,null,null,null,null,null,""]
[265,null,null,null,null,null,null,null,null,null,null,null,null,null,null,null,null,null,null,null,null,null,null,null,null,null,null,null,null,null,null,null,null,null,null,""]
[266,null,null,null,null,null,null,null,null,null,null,null,null,null,null,null,null,null,null,null,null,null,null,null,null,null,null,null,null,null,null,null,null,null,null,""]
[267,null,null,null,null,null,null,null,null,null,null,null,null,null,null,null,null,null,null,null,null,null,null,null,null,null,null,null,null,null,null,null,null,null,null,""]
[268,null,null,null,null,null,null,null,null,null,null,null,null,null,null,null,null,null,null,null,null,null,null,null,null,null,null,null,null,null,null,null,null,null,null,""]
[269,null,null,null,null,null,null,null,null,null,null,null,null,null,null,null,null,null,null,null,null,null,null,null,null,null,null,null,null,null,null,null,null,null,null,""]
[270,null,null,null,null,null,null,null,null,null,null,null,null,null,null,null,null,null,null,null,null,null,null,null,null,null,null,null,null,null,null,null,null,null,null,""]
[271,null,null,null,null,null,null,null,null,null,null,null,null,null,null,null,null,null,null,null,null,null,null,null,null,null,null,null,null,null,null,null,null,null,null,""]
[272,null,null,null,null,null,null,null,null,null,null,null,null,null,null,null,null,null,null,null,null,null,null,null,null,null,null,null,null,null,null,null,null,null,null,""]
[273,null,null,null,null,null,null,null,null,null,null,null,null,null,null,null,null,null,null,null,null,null,null,null,null,null,null,null,null,null,null,null,null,null,null,""]
[274,null,null,null,null,null,null,null,null,null,null,null,null,null,null,null,null,null,null,null,null,null,null,null,null,null,null,null,null,null,null,null,null,null,null,""]
[275,null,null,null,null,null,null,null,null,null,null,null,null,null,null,null,null,null,null,null,null,null,null,null,null,null,null,null,null,null,null,null,null,null,null,""]
[276,null,null,null,null,null,null,null,null,null,null,null,null,null,null,null,null,null,null,null,null,null,null,null,null,null,null,null,null,null,null,null,null,null,null,""]
[277,null,null,null,null,null,null,null,null,null,null,null,null,null,null,null,null,null,null,null,null,null,null,null,null,null,null,null,null,null,null,null,null,null,null,""]
[278,null,null,null,null,null,null,null,null,null,null,null,null,null,null,null,null,null,null,null,null,null,null,null,null,null,null,null,null,null,null,null,null,null,null,""]
[279,null,null,null,null,null,null,null,null,null,null,null,null,null,null,null,null,null,null,null,null,null,null,null,null,null,null,null,null,null,null,null,null,null,null,""]
[280,null,null,null,null,null,null,null,null,null,null,null,null,null,null,null,null,null,null,null,null,null,null,null,null,null,null,null,null,null,null,null,null,null,null,""]
[281,null,null,null,null,null,null,null,null,null,null,null,null,null,null,null,null,null,null,null,null,null,null,null,null,null,null,null,null,null,null,null,null,null,null,""]
[282,null,null,null,null,null,null,null,null,null,null,null,null,null,null,null,null,null,null,null,null,null,null,null,null,null,null,null,null,null,null,null,null,null,null,""]
[283,null,null,null,null,null,null,null,null,null,null,null,null,null,null,null,null,null,null,null,null,null,null,null,null,null,null,null,null,null,null,null,null,null,null,""]
[284,null,null,null,null,null,null,null,null,null,null,null,null,null,null,null,null,null,null,null,null,null,null,null,null,null,null,null,null,null,null,null,null,null,null,""]
[285,null,null,null,null,null,null,null,null,null,null,null,null,null,null,null,null,null,null,null,null,null,null,null,null,null,null,null,null,null,null,null,null,null,null,""]
[286,null,null,null,null,null,null,null,null,null,null,null,null,null,null,null,null,null,null,null,null,null,null,null,null,null,null,null,null,null,null,null,null,null,null,""]
[287,null,null,null,null,null,null,null,null,null,null,null,null,null,null,null,null,null,null,null,null,null,null,null,null,null,null,null,null,null,null,null,null,null,null,""]
[288,null,null,null,null,null,null,null,null,null,null,null,null,null,null,null,null,null,null,null,null,null,null,null,null,null,null,null,null,null,null,null,null,null,null,""]
[289,null,null,null,null,null,null,null,null,null,null,null,null,null,null,null,null,null,null,null,null,null,null,null,null,null,null,null,null,null,null,null,null,null,null,""]
[290,null,null,null,null,null,null,null,null,null,null,null,null,null,null,null,null,null,null,null,null,null,null,null,null,null,null,null,null,null,null,null,null,null,null,""]
[291,null,null,null,null,null,null,null,null,null,null,null,null,null,null,null,null,null,null,null,null,null,null,null,null,null,null,null,null,null,null,null,null,null,null,""]
[292,null,null,null,null,null,null,null,null,null,null,null,null,null,null,null,null,null,null,null,null,null,null,null,null,null,null,null,null,null,null,null,null,null,null,""]
[293,null,null,null,null,null,null,null,null,null,null,null,null,null,null,null,null,null,null,null,null,null,null,null,null,null,null,null,null,null,null,null,null,null,null,""]
[294,null,null,null,null,null,null,null,null,null,null,null,null,null,null,null,null,null,null,null,null,null,null,null,null,null,null,null,null,null,null,null,null,null,null,""]
[295,null,null,null,null,null,null,null,null,null,null,null,null,null,null,null,null,null,null,null,null,null,null,null,null,null,null,null,null,null,null,null,null,null,null,""]
[296,null,null,null,null,null,null,null,null,null,null,null,null,null,null,null,null,null,null,null,null,null,null,null,null,null,null,null,null,null,null,null,null,null,null,""]
[297,null,null,null,null,null,null,null,null,null,null,null,null,null,null,null,null,null,null,null,null,null,null,null,null,null,null,null,null,null,null,null,null,null,null,""]
[298,null,null,null,null,null,null,null,null,null,null,null,null,null,null,null,null,null,null,null,null,null,null,null,null,null,null,null,null,null,null,null,null,null,null,""]
[299,null,null,null,null,null,null,null,null,null,null,null,null,null,null,null,null,null,null,null,null,null,null,null,null,null,null,null,null,null,null,null,null,null,null,""]
[300,null,null,null,null,null,null,null,null,null,null,null,null,null,null,null,null,null,null,null,null,null,null,null,null,null,null,null,null,null,null,null,null,null,null,""]
[301,null,null,null,null,null,null,null,null,null,null,null,null,null,null,null,null,null,null,null,null,null,null,null,null,null,null,null,null,null,null,null,null,null,null,""]
[302,null,null,null,null,null,null,null,null,null,null,null,null,null,null,null,null,null,null,null,null,null,null,null,null,null,null,null,null,null,null,null,null,null,null,""]
[303,null,null,null,null,null,null,null,null,null,null,null,null,null,null,null,null,null,null,null,null,null,null,null,null,null,null,null,null,null,null,null,null,null,null,""]
[304,null,null,null,null,null,null,null,null,null,null,null,null,null,null,null,null,null,null,null,null,null,null,null,null,null,null,null,null,null,null,null,null,null,null,""]
[305,null,null,null,null,null,null,null,null,null,null,null,null,null,null,null,null,null,null,null,null,null,null,null,null,null,null,null,null,null,null,null,null,null,null,""]
[306,null,null,null,null,null,null,null,null,null,null,null,null,null,null,null,null,null,null,null,null,null,null,null,null,null,null,null,null,null,null,null,null,null,null,""]
[307,null,null,null,null,null,null,null,null,null,null,null,null,null,null,null,null,null,null,null,null,null,null,null,null,null,null,null,null,null,null,null,null,null,null,""]
[308,null,null,null,null,null,null,null,null,null,null,null,null,null,null,null,null,null,null,null,null,null,null,null,null,null,null,null,null,null,null,null,null,null,null,""]
[309,null,null,null,null,null,null,null,null,null,null,null,null,null,null,null,null,null,null,null,null,null,null,null,null,null,null,null,null,null,null,null,null,null,null,""]
[310,null,null,null,null,null,null,null,null,null,null,null,null,null,null,null,null,null,null,null,null,null,null,null,null,null,null,null,null,null,null,null,null,null,null,""]
[311,null,null,null,null,null,null,null,null,null,null,null,null,null,null,null,null,null,null,null,null,null,null,null,null,null,null,null,null,null,null,null,null,null,null,""]
[312,null,null,null,null,null,null,null,null,null,null,null,null,null,null,null,null,null,null,null,null,null,null,null,null,null,null,null,null,null,null,null,null,null,null,""]
[313,null,null,null,null,null,null,null,null,null,null,null,null,null,null,null,null,null,null,null,null,null,null,null,null,null,null,null,null,null,null,null,null,null,null,""]
[314,null,null,null,null,null,null,null,null,null,null,null,null,null,null,null,null,null,null,null,null,null,null,null,null,null,null,null,null,null,null,null,null,null,null,""]
[315,null,null,null,null,null,null,null,null,null,null,null,null,null,null,null,null,null,null,null,null,null,null,null,null,null,null,null,null,null,null,null,null,null,null,""]
[316,null,null,null,null,null,null,null,null,null,null,null,null,null,null,null,null,null,null,null,null,null,null,null,null,null,null,null,null,null,null,null,null,null,null,""]
[317,null,null,null,null,null,null,null,null,null,null,null,null,null,null,null,null,null,null,null,null,null,null,null,null,null,null,null,null,null,null,null,null,null,null,""]
[318,null,null,null,null,null,null,null,null,null,null,null,null,null,null,null,null,null,null,null,null,null,null,null,null,null,null,null,null,null,null,null,null,null,null,""]
[319,null,null,null,null,null,null,null,null,null,null,null,null,null,null,null,null,null,null,null,null,null,null,null,null,null,null,null,null,null,null,null,null,null,null,""]
[320,null,null,null,null,null,null,null,null,null,null,null,null,null,null,null,null,null,null,null,null,null,null,null,null,null,null,null,null,null,null,null,null,null,null,""]
[321,null,null,null,null,null,null,null,null,null,null,null,null,null,null,null,null,null,null,null,null,null,null,null,null,null,null,null,null,null,null,null,null,null,null,""]
[322,null,null,null,null,null,null,null,null,null,null,null,null,null,null,null,null,null,null,null,null,null,null,null,null,null,null,null,null,null,null,null,null,null,null,{"$f":"IF(B332=\"\",\"\",COUNTIF(D332:AH332,\"1\")+COUNTIF(D332:AH332,\"x\"))","v":""}]
[323,null,null,null,null,null,null,null,null,null,null,null,null,null,null,null,null,null,null,null,null,null,null,null,null,null,null,null,null,null,null,null,null,null,null,""]
[324,null,null,null,null,null,null,null,null,null,null,null,null,null,null,null,null,null,null,null,null,null,null,null,null,null,null,null,null,null,null,null,null,null,null,""]
[325,null,null,null,null,null,null,null,null,null,null,null,null,null,null,null,null,null,null,null,null,null,null,null,null,null,null,null,null,null,null,null,null,null,null,""]
[326,null,null,null,null,null,null,null,null,null,null,null,null,null,null,null,null,null,null,null,null,null,null,null,null,null,null,null,null,null,null,null,null,null,null,""]
[327,null,null,null,null,null,null,null,null,null,null,null,null,null,null,null,null,null,null,null,null,null,null,null,null,null,null,null,null,null,null,null,null,null,null,""]
[328,null,null,null,null,null,null,null,null,null,null,null,null,null,null,null,null,null,null,null,null,null,null,null,null,null,null,null,null,null,null,null,null,null,null,""]
[329,null,null,null,null,null,null,null,null,null,null,null,null,null,null,null,null,null,null,null,null,null,null,null,null,null,null,null,null,null,null,null,null,null,null,""]
[330,null,null,null,null,null,null,null,null,null,null,null,null,null,null,null,null,null,null,null,null,null,null,null,null,null,null,null,null,null,null,null,null,null,null,""]
[331,null,null,null,null,null,null,null,null,null,null,null,null,null,null,null,null,null,null,null,null,null,null,null,null,null,null,null,null,null,null,null,null,null,null,""]
[332,null,null,null,null,null,null,null,null,null,null,null,null,null,null,null,null,null,null,null,null,null,null,null,null,null,null,null,null,null,null,null,null,null,null,""]
[333,null,null,null,null,null,null,null,null,null,null,null,null,null,null,null,null,null,null,null,null,null,null,null,null,null,null,null,null,null,null,null,null,null,null,""]
[334,null,null,null,null,null,null,null,null,null,null,null,null,null,null,null,null,null,null,null,null,null,null,null,null,null,null,null,null,null,null,null,null,null,null,""]
[335,null,null,null,null,null,null,null,null,null,null,null,null,null,null,null,null,null,null,null,null,null,null,null,null,null,null,null,null,null,null,null,null,null,null,""]
[336,null,null,null,null,null,null,null,null,null,null,null,null,null,null,null,null,null,null,null,null,null,null,null,null,null,null,null,null,null,null,null,null,null,null,""]
[337,null,null,null,null,null,null,null,null,null,null,null,null,null,null,null,null,null,null,null,null,null,null,null,null,null,null,null,null,null,null,null,null,null,null,""]
[338,null,null,null,null,null,null,null,null,null,null,null,null,null,null,null,null,null,null,null,null,null,null,null,null,null,null,null,null,null,null,null,null,null,null,""]
[339,null,null,null,null,null,null,null,null,null,null,null,null,null,null,null,null,null,null,null,null,null,null,null,null,null,null,null,null,null,null,null,null,null,null,""]
[340,null,null,null,null,null,null,null,null,null,null,null,null,null,null,null,null,null,null,null,null,null,null,null,null,null,null,null,null,null,null,null,null,null,null,""]
[341,null,null,null,null,null,null,null,null,null,null,null,null,null,null,null,null,null,null,null,null,null,null,null,null,null,null,null,null,null,null,null,null,null,null,""]
[342,null,null,null,null,null,null,null,null,null,null,null,null,null,null,null,null,null,null,null,null,null,null,null,null,null,null,null,null,null,null,null,null,null,null,""]
[343,null,null,null,null,null,null,null,null,null,null,null,null,null,null,null,null,null,null,null,null,null,null,null,null,null,null,null,null,null,null,null,null,null,null,""]
[344,null,null,null,null,null,null,null,null,null,null,null,null,null,null,null,null,null,null,null,null,null,null,null,null,null,null,null,null,null,null,null,null,null,null,""]
[345,null,null,null,null,null,null,null,null,null,null,null,null,null,null,null,null,null,null,null,null,null,null,null,null,null,null,null,null,null,null,null,null,null,null,""]
[346,null,null,null,null,null,null,null,null,null,null,null,null,null,null,null,null,null,null,null,null,null,null,null,null,null,null,null,null,null,null,null,null,null,null,""]
[347,null,null,null,null,null,null,null,null,null,null,null,null,null,null,null,null,null,null,null,null,null,null,null,null,null,null,null,null,null,null,null,null,null,null,""]
[348,null,null,null,null,null,null,null,null,null,null,null,null,null,null,null,null,null,null,null,null,null,null,null,null,null,null,null,null,null,null,null,null,null,null,""]
[349,null,null,null,null,null,null,null,null,null,null,null,null,null,null,null,null,null,null,null,null,null,null,null,null,null,null,null,null,null,null,null,null,null,null,""]
[350,null,null,null,null,null,null,null,null,null,null,null,null,null,null,null,null,null,null,null,null,null,null,null,null,null,null,null,null,null,null,null,null,null,null,""]
[351,null,null,null,null,null,null,null,null,null,null,null,null,null,null,null,null,null,null,null,null,null,null,null,null,null,null,null,null,null,null,null,null,null,null,""]
[352,null,null,null,null,null,null,null,null,null,null,null,null,null,null,null,null,null,null,null,null,null,null,null,null,null,null,null,null,null,null,null,null,null,null,""]
[353,null,null,null,null,null,null,null,null,null,null,null,null,null,null,null,null,null,null,null,null,null,null,null,null,null,null,null,null,null,null,null,null,null,null,""]
[354,null,null,null,null,null,null,null,null,null,null,null,null,null,null,null,null,null,null,null,null,null,null,null,null,null,null,null,null,null,null,null,null,null,null,""]
[355,null,null,null,null,null,null,null,null,null,null,null,null,null,null,null,null,null,null,null,null,null,null,null,null,null,null,null,null,null,null,null,null,null,null,""]
[356,null,null,null,null,null,null,null,null,null,null,null,null,null,null,null,null,null,null,null,null,null,null,null,null,null,null,null,null,null,null,null,null,null,null,""]
[357,null,null,null,null,null,null,null,null,null,null,null,null,null,null,null,null,null,null,null,null,null,null,null,null,null,null,null,null,null,null,null,null,null,null,""]
[358,null,null,null,null,null,null,null,null,null,null,null,null,null,null,null,null,null,null,null,null,null,null,null,null,null,null,null,null,null,null,null,null,null,null,""]
[359,null,null,null,null,null,null,null,null,null,null,null,null,null,null,null,null,null,null,null,null,null,null,null,null,null,null,null,null,null,null,null,null,null,null,""]
[360,null,null,null,null,null,null,null,null,null,null,null,null,null,null,null,null,null,null,null,null,null,null,null,null,null,null,null,null,null,null,null,null,null,null,""]
[361,null,null,null,null,null,null,null,null,null,null,null,null,null,null,null,null,null,null,null,null,null,null,null,null,null,null,null,null,null,null,null,null,null,null,""]
[362,null,null,null,null,null,null,null,null,null,null,null,null,null,null,null,null,null,null,null,null,null,null,null,null,null,null,null,null,null,null,null,null,null,null,""]
[363,null,null,null,null,null,null,null,null,null,null,null,null,null,null,null,null,null,null,null,null,null,null,null,null,null,null,null,null,null,null,null,null,null,null,""]
[364,null,null,null,null,null,null,null,null,null,null,null,null,null,null,null,null,null,null,null,null,null,null,null,null,null,null,null,null,null,null,null,null,null,null,""]
[365,null,null,null,null,null,null,null,null,null,null,null,null,null,null,null,null,null,null,null,null,null,null,null,null,null,null,null,null,null,null,null,null,null,null,""]
[366,null,null,null,null,null,null,null,null,null,null,null,null,null,null,null,null,null,null,null,null,null,null,null,null,null,null,null,null,null,null,null,null,null,null,""]
[367,null,null,null,null,null,null,null,null,null,null,null,null,null,null,null,null,null,null,null,null,null,null,null,null,null,null,null,null,null,null,null,null,null,null,""]
[368,null,null,null,null,null,null,null,null,null,null,null,null,null,null,null,null,null,null,null,null,null,null,null,null,null,null,null,null,null,null,null,null,null,null,""]
[369,null,null,null,null,null,null,null,null,null,null,null,null,null,null,null,null,null,null,null,null,null,null,null,null,null,null,null,null,null,null,null,null,null,null,""]
[370,null,null,null,null,null,null,null,null,null,null,null,null,null,null,null,null,null,null,null,null,null,null,null,null,null,null,null,null,null,null,null,null,null,null,""]
[371,null,null,null,null,null,null,null,null,null,null,null,null,null,null,null,null,null,null,null,null,null,null,null,null,null,null,null,null,null,null,null,null,null,null,""]
[372,null,null,null,null,null,null,null,null,null,null,null,null,null,null,null,null,null,null,null,null,null,null,null,null,null,null,null,null,null,null,null,null,null,null,""]
[373,null,null,null,null,null,null,null,null,null,null,null,null,null,null,null,null,null,null,null,null,null,null,null,null,null,null,null,null,null,null,null,null,null,null,""]
[374,null,null,null,null,null,null,null,null,null,null,null,null,null,null,null,null,null,null,null,null,null,null,null,null,null,null,null,null,null,null,null,null,null,null,""]
[375,null,null,null,null,null,null,null,null,null,null,null,null,null,null,null,null,null,null,null,null,null,null,null,null,null,null,null,null,null,null,null,null,null,null,""]
[376,null,null,null,null,null,null,null,null,null,null,null,null,null,null,null,null,null,null,null,null,null,null,null,null,null,null,null,null,null,null,null,null,null,null,""]
[377,null,null,null,null,null,null,null,null,null,null,null,null,null,null,null,null,null,null,null,null,null,null,null,null,null,null,null,null,null,null,null,null,null,null,""]
[378,null,null,null,null,null,null,null,null,null,null,null,null,null,null,null,null,null,null,null,null,null,null,null,null,null,null,null,null,null,null,null,null,null,null,""]
[379,null,null,null,null,null,null,null,null,null,null,null,null,null,null,null,null,null,null,null,null,null,null,null,null,null,null,null,null,null,null,null,null,null,null,""]
[380,null,null,null,null,null,null,null,null,null,null,null,null,null,null,null,null,null,null,null,null,null,null,null,null,null,null,null,null,null,null,null,null,null,null,""]
[381,null,null,null,null,null,null,null,null,null,null,null,null,null,null,null,null,null,null,null,null,null,null,null,null,null,null,null,null,null,null,null,null,null,null,""]
[382,null,null,null,null,null,null,null,null,null,null,null,null,null,null,null,null,null,null,null,null,null,null,null,null,null,null,null,null,null,null,null,null,null,null,""]
[383,null,null,null,null,null,null,null,null,null,null,null,null,null,null,null,null,null,null,null,null,null,null,null,null,null,null,null,null,null,null,null,null,null,null,""]
[384,null,null,null,null,null,null,null,null,null,null,null,null,null,null,null,null,null,null,null,null,null,null,null,null,null,null,null,null,null,null,null,null,null,null,""]
[385,null,null,null,null,null,null,null,null,null,null,null,null,null,null,null,null,null,null,null,null,null,null,null,null,null,null,null,null,null,null,null,null,null,null,""]
[386,null,null,null,null,null,null,null,null,null,null,null,null,null,null,null,null,null,null,null,null,null,null,null,null,null,null,null,null,null,null,null,null,null,null,{"$f":"IF(B396=\"\",\"\",COUNTIF(D396:AH396,\"1\")+COUNTIF(D396:AH396,\"x\"))","v":""}]
[387,null,null,null,null,null,null,null,null,null,null,null,null,null,null,null,null,null,null,null,null,null,null,null,null,null,null,null,null,null,null,null,null,null,null,""]
[388,null,null,null,null,null,null,null,null,null,null,null,null,null,null,null,null,null,null,null,null,null,null,null,null,null,null,null,null,null,null,null,null,null,null,""]
[389,null,null,null,null,null,null,null,null,null,null,null,null,null,null,null,null,null,null,null,null,null,null,null,null,null,null,null,null,null,null,null,null,null,null,""]
[390,null,null,null,null,null,null,null,null,null,null,null,null,null,null,null,null,null,null,null,null,null,null,null,null,null,null,null,null,null,null,null,null,null,null,""]
[391,null,null,null,null,null,null,null,null,null,null,null,null,null,null,null,null,null,null,null,null,null,null,null,null,null,null,null,null,null,null,null,null,null,null,""]
[392,null,null,null,null,null,null,null,null,null,null,null,null,null,null,null,null,null,null,null,null,null,null,null,null,null,null,null,null,null,null,null,null,null,null,""]
[393,null,null,null,null,null,null,null,null,null,null,null,null,null,null,null,null,null,null,null,null,null,null,null,null,null,null,null,null,null,null,null,null,null,null,""]
[394,null,null,null,null,null,null,null,null,null,null,null,null,null,null,null,null,null,null,null,null,null,null,null,null,null,null,null,null,null,null,null,null,null,null,""]
[395,null,null,null,null,null,null,null,null,null,null,null,null,null,null,null,null,null,null,null,null,null,null,null,null,null,null,null,null,null,null,null,null,null,null,""]
[396,null,null,null,null,null,null,null,null,null,null,null,null,null,null,null,null,null,null,null,null,null,null,null,null,null,null,null,null,null,null,null,null,null,null,""]
[397,null,null,null,null,null,null,null,null,null,null,null,null,null,null,null,null,null,null,null,null,null,null,null,null,null,null,null,null,null,null,null,null,null,null,""]
[398,null,null,null,null,null,null,null,null,null,null,null,null,null,null,null,null,null,null,null,null,null,null,null,null,null,null,null,null,null,null,null,null,null,null,""]
[399,null,null,null,null,null,null,null,null,null,null,null,null,null,null,null,null,null,null,null,null,null,null,null,null,null,null,null,null,null,null,null,null,null,null,""]
[400,null,null,null,null,null,null,null,null,null,null,null,null,null,null,null,null,null,null,null,null,null,null,null,null,null,null,null,null,null,null,null,null,null,null,""]

{"sheet":"DATOS","index":1,"n_rows":404,"n_cols":53,"rows_kept":404,"cut":false,"hidden":true,"merged":[]}
[null,null,null,null,null,"DNI incorrecto:",{"$f":"VLOOKUP(0,$F$5:$I404,4,FALSE)","v":""},{"$f":"VLOOKUP(G1,A5:H404,8,FALSE)","v":0},null,"DNI repetido:",{"$f":"IF(ISERROR(VLOOKUP(1,$J$5:$K404,2,FALSE)),\"\",VLOOKUP(1,$J$5:$K404,2,FALSE))","v":""},null,"Datos formulario:",null,null,null,"AÑOS",null,"MESES",null,null,"SEMANA",null,"Año:",{"$f":"CALENDARIO!I8","v":2020},null,"dias marcados fuera del mes"]
[null,null,null,null,null,"Verificación trabajadores:",{"$f":"IF(F3=G3,1,0)","v":1},null,null,"Verificación trabajadores:",{"$f":"IF(SUM(J5:J404)>0,0,1)","v":1},null,"Nombre empresa:",{"$f":"TRIM(O2)","v":""},{"$f":"IF(CALENDARIO!C2=\"\",\"\",CALENDARIO!C2)","v":""},{"$f":"LEN(TRIM(O2))","v":0},2014,null,1,"Enero",null,1,"L","Mes:",{"$f":"CALENDARIO!R8","v":2},null,{"$f":"IF(AA3>$Y$3,1,0)","v":0},{"$f":"IF(AB3>$Y$3,1,0)","v":1},{"$f":"IF(AC3>$Y$3,1,0)","v":1}]
[null,null,null,null,null,{"$f":"SUM(F5:F404)","v":0},{"$f":"SUM(G5:G404)","v":0},null,null,null,null,null,"Nº CCC empresa:",{"$f":"TRIM(O3)","v":""},{"$f":"IF(CALENDARIO!J2=\"\",\"\",CALENDARIO!J2)","v":""},{"$f":"LEN(TRIM(O3))","v":0},2015,null,2,"Febrero",null,2,"M","MáximoDiaMes:",{"$f":"DAY(DATE(Y1,Y2+1,1)-1)","v":29},null,29,30,31]
["NIF/NIE","Valor DNI/NIF","Letra NIF","Digitos control NIF","Letra NIF calculada","nº trabajadores con dni correcto","nº trabajadores incluidos",null,"dni","trabajadores repetidos",null,null,"NIF de Empresa:","",{"$f":"IF(CALENDARIO!V2=\"\",\"\",CALENDARIO!V2)","v":""},0,2016,null,3,"Marzo",null,3,"X"]
[{"$f":"IF(CALENDARIO!B11=\"\",\"\",TRIM(UPPER(CALENDARIO!B11)))","v":""},{"$f":"IF(A5=\"\",\"\",IF(OR(UPPER(LEFT(A5))=\"X\",UPPER(LEFT(A5))=\"Y\",UPPER(LEFT(A5))=\"Z\"),MID(A5,2,LEN(A5)-2),LEFT(A5,LEN(A5)-1)))","v":""},{"$f":"IF(A5=\"\",\"\",RIGHT(A5,1))","v":""},{"$f":"IF(A5=\"\",\"\",IF(UPPER(LEFT(A5))=\"Y\",MOD(VALUE(\"1\"&B5),23),IF(UPPER(LEFT(A5))=\"Z\",MOD(VALUE(\"2\"&B5),23),MOD(B5,23))))","v":""},{"$f":"IF(A5=\"\",\"\",MID(\"TRWAGMYFPDXBNJZSQVHLCKE\",D5+1,1))","v":""},{"$f":"IF(AND(A5<>\"\",C5=E5),1,0)","v":0},{"$f":"IF(A5=\"\",0,1)","v":0},{"$f":"IF(A5=\"\",0,H4+1)","v":0},{"$f":"IF(A5=\"\",\"\",A5)","v":""},0,"-",null,"Nombre representante:","",{"$f":"IF(CALENDARIO!E5=\"\",\"\",CALENDARIO!E5)","v":""},0,2017,null,4,"Abril",null,4,"J"]
[{"$f":"IF(CALENDARIO!B12=\"\",\"\",TRIM(UPPER(CALENDARIO!B12)))","v":""},{"$f":"IF(A6=\"\",\"\",IF(OR(UPPER(LEFT(A6))=\"X\",UPPER(LEFT(A6))=\"Y\",UPPER(LEFT(A6))=\"Z\"),MID(A6,2,LEN(A6)-2),LEFT(A6,LEN(A6)-1)))","v":""},{"$f":"IF(A6=\"\",\"\",RIGHT(A6,1))","v":""},{"$f":"IF(A6=\"\",\"\",IF(UPPER(LEFT(A6))=\"Y\",MOD(VALUE(\"1\"&B6),23),IF(UPPER(LEFT(A6))=\"Z\",MOD(VALUE(\"2\"&B6),23),MOD(B6,23))))","v":""},{"$f":"IF(A6=\"\",\"\",MID(\"TRWAGMYFPDXBNJZSQVHLCKE\",D6+1,1))","v":""},{"$f":"IF(AND(A6<>\"\",C6=E6),1,0)","v":0},{"$f":"IF(A6=\"\",0,1)","v":0},{"$f":"IF(A6=\"\",0,H5+1)","v":0},{"$f":"IF(A6=\"\",\"\",A6)","v":""},{"$f":"IF(K6=\"\",0,1)","v":0},{"$f":"IF(OR($A6=\"\",ISERROR(VLOOKUP($A6,$A$5:$B5,2,FALSE))),\"\",VLOOKUP($A6,$A$5:$B5,2,FALSE))","v":""},null,"Apellidos representante:","",{"$f":"IF(CALENDARIO!C5=\"\",\"\",CALENDARIO!C5)","v":""},0,2018,null,5,"Mayo",null,5,"V"]
[{"$f":"IF(CALENDARIO!B13=\"\",\"\",TRIM(UPPER(CALENDARIO!B13)))","v":""},"","","","",0,0,{"$f":"IF(A7=\"\",0,H6+1)","v":0},"",{"$f":"IF(K7=\"\",0,1)","v":0},{"$f":"IF(OR($A7=\"\",ISERROR(VLOOKUP($A7,$A$5:$B6,2,FALSE))),\"\",VLOOKUP($A7,$A$5:$B6,2,FALSE))","v":""},null,"NIF representante:","",{"$f":"IF(CALENDARIO!K5=\"\",\"\",CALENDARIO!K5)","v":""},0,2019,null,6,"Junio",null,6,"S"]
[{"$f":"IF(CALENDARIO!B14=\"\",\"\",TRIM(UPPER(CALENDARIO!B14)))","v":""},"","","","",0,0,0,"",0,{"$f":"IF(OR($A8=\"\",ISERROR(VLOOKUP($A8,$A$5:$B7,2,FALSE))),\"\",VLOOKUP($A8,$A$5:$B7,2,FALSE))","v":""},null,"Nº ERE:","",{"$f":"IF(CALENDARIO!V5=\"\",\"\",CALENDARIO!V5)","v":""},0,2020,null,7,"Julio",null,7,"D"]
[{"$f":"IF(CALENDARIO!B15=\"\",\"\",TRIM(UPPER(CALENDARIO!B15)))","v":""},"","","","",0,0,0,"",0,{"$f":"IF(OR($A9=\"\",ISERROR(VLOOKUP($A9,$A$5:$B8,2,FALSE))),\"\",VLOOKUP($A9,$A$5:$B8,2,FALSE))","v":""},null,"Día desde:","",{"$f":"IF(CALENDARIO!AE2=\"\",\"\",CALENDARIO!AE2)","v":""},0,2021,null,8,"Agosto"]
[{"$f":"IF(CALENDARIO!B16=\"\",\"\",TRIM(UPPER(CALENDARIO!B16)))","v":""},"","","","",0,0,0,"",0,{"$f":"IF(OR($A10=\"\",ISERROR(VLOOKUP($A10,$A$5:$B9,2,FALSE))),\"\",VLOOKUP($A10,$A$5:$B9,2,FALSE))","v":""},null,"Día hasta:","",{"$f":"IF(CALENDARIO!AE5=\"\",\"\",CALENDARIO!AE5)","v":""},0,2022,null,9,"Septiembre"]
[{"$f":"IF(CALENDARIO!B17=\"\",\"\",TRIM(UPPER(CALENDARIO!B17)))","v":""},"","","","",0,0,0,"",0,{"$f":"IF(OR($A11=\"\",ISERROR(VLOOKUP($A11,$A$5:$B10,2,FALSE))),\"\",VLOOKUP($A11,$A$5:$B10,2,FALSE))","v":""},null,null,null,null,null,2023,null,10,"Octubre"]
[{"$f":"IF(CALENDARIO!B18=\"\",\"\",TRIM(UPPER(CALENDARIO!B18)))","v":""},"","","","",0,0,0,"",0,{"$f":"IF(OR($A12=\"\",ISERROR(VLOOKUP($A12,$A$5:$B11,2,FALSE))),\"\",VLOOKUP($A12,$A$5:$B11,2,FALSE))","v":""},null,null,null,"COEFICIENTES",null,2024,null,11,"Noviembre"]
[{"$f":"IF(CALENDARIO!B19=\"\",\"\",TRIM(UPPER(CALENDARIO!B19)))","v":""},"","","","",0,0,0,"",0,{"$f":"IF(OR($A13=\"\",ISERROR(VLOOKUP($A13,$A$5:$B12,2,FALSE))),\"\",VLOOKUP($A13,$A$5:$B12,2,FALSE))","v":""},null,null,null,1,null,2025,null,12,"Diciembre"]
[{"$f":"IF(CALENDARIO!B20=\"\",\"\",TRIM(UPPER(CALENDARIO!B20)))","v":""},"","","","",0,0,0,"",0,{"$f":"IF(OR($A14=\"\",ISERROR(VLOOKUP($A14,$A$5:$B13,2,FALSE))),\"\",VLOOKUP($A14,$A$5:$B13,2,FALSE))","v":""},null,null,null,1.25,null,2026]
[{"$f":"IF(CALENDARIO!B21=\"\",\"\",TRIM(UPPER(CALENDARIO!B21)))","v":""},"","","","",0,0,0,"",0,{"$f":"IF(OR($A15=\"\",ISERROR(VLOOKUP($A15,$A$5:$B14,2,FALSE))),\"\",VLOOKUP($A15,$A$5:$B14,2,FALSE))","v":""}]
[{"$f":"IF(CALENDARIO!B22=\"\",\"\",TRIM(UPPER(CALENDARIO!B22)))","v":""},"","","","",0,0,0,"",0,{"$f":"IF(OR($A16=\"\",ISERROR(VLOOKUP($A16,$A$5:$B15,2,FALSE))),\"\",VLOOKUP($A16,$A$5:$B15,2,FALSE))","v":""}]
[{"$f":"IF(CALENDARIO!B23=\"\",\"\",TRIM(UPPER(CALENDARIO!B23)))","v":""},"","","","",0,0,0,"",0,{"$f":"IF(OR($A17=\"\",ISERROR(VLOOKUP($A17,$A$5:$B16,2,FALSE))),\"\",VLOOKUP($A17,$A$5:$B16,2,FALSE))","v":""}]
[{"$f":"IF(CALENDARIO!B24=\"\",\"\",TRIM(UPPER(CALENDARIO!B24)))","v":""},"","","","",0,0,0,"",0,{"$f":"IF(OR($A18=\"\",ISERROR(VLOOKUP($A18,$A$5:$B17,2,FALSE))),\"\",VLOOKUP($A18,$A$5:$B17,2,FALSE))","v":""}]
[{"$f":"IF(CALENDARIO!B25=\"\",\"\",TRIM(UPPER(CALENDARIO!B25)))","v":""},"","","","",0,0,0,"",0,{"$f":"IF(OR($A19=\"\",ISERROR(VLOOKUP($A19,$A$5:$B18,2,FALSE))),\"\",VLOOKUP($A19,$A$5:$B18,2,FALSE))","v":""},null,"DIAS DEL MES"]
[{"$f":"IF(CALENDARIO!B26=\"\",\"\",TRIM(UPPER(CALENDARIO!B26)))","v":""},"","","","",0,0,0,"",0,{"$f":"IF(OR($A20=\"\",ISERROR(VLOOKUP($A20,$A$5:$B19,2,FALSE))),\"\",VLOOKUP($A20,$A$5:$B19,2,FALSE))","v":""},null,1,2,3,4,5,6,7,8,9,10,11,12,13,14,15,16,17,18,19,20,21,22,23,24,25,26,27,28,29,30,31]
[{"$f":"IF(CALENDARIO!B27=\"\",\"\",TRIM(UPPER(CALENDARIO!B27)))","v":""},"","","","",0,0,0,"",0,{"$f":"IF(OR($A21=\"\",ISERROR(VLOOKUP($A21,$A$5:$B20,2,FALSE))),\"\",VLOOKUP($A21,$A$5:$B20,2,FALSE))","v":""},null,{"$f":"VALUE(CONCATENATE(M20,\"/\",CALENDARIO!$R$8,\"/\",CALENDARIO!$I$8))","v":"2020-02-01"},{"$f":"VALUE(CONCATENATE(N20,\"/\",CALENDARIO!$R$8,\"/\",CALENDARIO!$I$8))","v":"2020-02-02"},{"$f":"VALUE(CONCATENATE(O20,\"/\",CALENDARIO!$R$8,\"/\",CALENDARIO!$I$8))","v":"2020-02-03"},{"$f":"VALUE(CONCATENATE(P20,\"/\",CALENDARIO!$R$8,\"/\",CALENDARIO!$I$8))","v":"2020-02-04"},{"$f":"VALUE(CONCATENATE(Q20,\"/\",CALENDARIO!$R$8,\"/\",CALENDARIO!$I$8))","v":"2020-02-05"},{"$f":"VALUE(CONCATENATE(R20,\"/\",CALENDARIO!$R$8,\"/\",CALENDARIO!$I$8))","v":"2020-02-06"},{"$f":"VALUE(CONCATENATE(S20,\"/\",CALENDARIO!$R$8,\"/\",CALENDARIO!$I$8))","v":"2020-02-07"},{"$f":"VALUE(CONCATENATE(T20,\"/\",CALENDARIO!$R$8,\"/\",CALENDARIO!$I$8))","v":"2020-02-08"},{"$f":"VALUE(CONCATENATE(U20,\"/\",CALENDARIO!$R$8,\"/\",CALENDARIO!$I$8))","v":"2020-02-09"},{"$f":"VALUE(CONCATENATE(V20,\"/\",CALENDARIO!$R$8,\"/\",CALENDARIO!$I$8))","v":"2020-02-10"},{"$f":"VALUE(CONCATENATE(W20,\"/\",CALENDARIO!$R$8,\"/\",CALENDARIO!$I$8))","v":"2020-02-11"},{"$f":"VALUE(CONCATENATE(X20,\"/\",CALENDARIO!$R$8,\"/\",CALENDARIO!$I$8))","v":"2020-02-12"},{"$f":"VALUE(CONCATENATE(Y20,\"/\",CALENDARIO!$R$8,\"/\",CALENDARIO!$I$8))","v":"2020-02-13"},{"$f":"VALUE(CONCATENATE(Z20,\"/\",CALENDARIO!$R$8,\"/\",CALENDARIO!$I$8))","v":"2020-02-14"},{"$f":"VALUE(CONCATENATE(AA20,\"/\",CALENDARIO!$R$8,\"/\",CALENDARIO!$I$8))","v":"2020-02-15"},{"$f":"VALUE(CONCATENATE(AB20,\"/\",CALENDARIO!$R$8,\"/\",CALENDARIO!$I$8))","v":"2020-02-16"},{"$f":"VALUE(CONCATENATE(AC20,\"/\",CALENDARIO!$R$8,\"/\",CALENDARIO!$I$8))","v":"2020-02-17"},{"$f":"VALUE(CONCATENATE(AD20,\"/\",CALENDARIO!$R$8,\"/\",CALENDARIO!$I$8))","v":"2020-02-18"},{"$f":"VALUE(CONCATENATE(AE20,\"/\",CALENDARIO!$R$8,\"/\",CALENDARIO!$I$8))","v":"2020-02-19"},{"$f":"VALUE(CONCATENATE(AF20,\"/\",CALENDARIO!$R$8,\"/\",CALENDARIO!$I$8))","v":"2020-02-20"},{"$f":"VALUE(CONCATENATE(AG20,\"/\",CALENDARIO!$R$8,\"/\",CALENDARIO!$I$8))","v":"2020-02-21"},{"$f":"VALUE(CONCATENATE(AH20,\"/\",CALENDARIO!$R$8,\"/\",CALENDARIO!$I$8))","v":"2020-02-22"},{"$f":"VALUE(CONCATENATE(AI20,\"/\",CALENDARIO!$R$8,\"/\",CALENDARIO!$I$8))","v":"2020-02-23"},{"$f":"VALUE(CONCATENATE(AJ20,\"/\",CALENDARIO!$R$8,\"/\",CALENDARIO!$I$8))","v":"2020-02-24"},{"$f":"VALUE(CONCATENATE(AK20,\"/\",CALENDARIO!$R$8,\"/\",CALENDARIO!$I$8))","v":"2020-02-25"},{"$f":"VALUE(CONCATENATE(AL20,\"/\",CALENDARIO!$R$8,\"/\",CALENDARIO!$I$8))","v":"2020-02-26"},{"$f":"VALUE(CONCATENATE(AM20,\"/\",CALENDARIO!$R$8,\"/\",CALENDARIO!$I$8))","v":"2020-02-27"},{"$f":"VALUE(CONCATENATE(AN20,\"/\",CALENDARIO!$R$8,\"/\",CALENDARIO!$I$8))","v":"2020-02-28"},{"$f":"VALUE(CONCATENATE(AO20,\"/\",CALENDARIO!$R$8,\"/\",CALENDARIO!$I$8))","v":"2020-02-29"},{"$f":"VALUE(CONCATENATE(AP20,\"/\",CALENDARIO!$R$8,\"/\",CALENDARIO!$I$8))","v":{"$error":"#VALUE!"}},{"$f":"VALUE(CONCATENATE(AQ20,\"/\",CALENDARIO!$R$8,\"/\",CALENDARIO!$I$8))","v":{"$error":"#VALUE!"}}]
[{"$f":"IF(CALENDARIO!B28=\"\",\"\",TRIM(UPPER(CALENDARIO!B28)))","v":""},"","","","",0,0,0,"",0,{"$f":"IF(OR($A22=\"\",ISERROR(VLOOKUP($A22,$A$5:$B21,2,FALSE))),\"\",VLOOKUP($A22,$A$5:$B21,2,FALSE))","v":""},null,{"$f":"IF(ISERROR(WEEKDAY(M21,2)),\"\",WEEKDAY(M21,2))","v":6},{"$f":"IF(ISERROR(WEEKDAY(N21,2)),\"\",WEEKDAY(N21,2))","v":7},{"$f":"IF(ISERROR(WEEKDAY(O21,2)),\"\",WEEKDAY(O21,2))","v":1},2,3,4,5,6,7,1,2,3,4,5,6,7,1,2,3,4,5,6,7,1,2,3,4,5,6,"",""]
[{"$f":"IF(CALENDARIO!B29=\"\",\"\",TRIM(UPPER(CALENDARIO!B29)))","v":""},"","","","",0,0,0,"",0,{"$f":"IF(OR($A23=\"\",ISERROR(VLOOKUP($A23,$A$5:$B22,2,FALSE))),\"\",VLOOKUP($A23,$A$5:$B22,2,FALSE))","v":""},null,null,{"$f":"ISERROR(N21)","v":false},false,false,false,false,false,false,false,false,false,false,false,false,false,false,false,false,false,false,false,false,false,false,false,false,false,false,false,true,{"$f":"ISERROR(AQ21)","v":true}]
[{"$f":"IF(CALENDARIO!B30=\"\",\"\",TRIM(UPPER(CALENDARIO!B30)))","v":""},"","","","",0,0,0,"",0,{"$f":"IF(OR($A24=\"\",ISERROR(VLOOKUP($A24,$A$5:$B23,2,FALSE))),\"\",VLOOKUP($A24,$A$5:$B23,2,FALSE))","v":""},null,{"$f":"IF(M23,0,1)","v":1},{"$f":"IF(N23,0,1)","v":1},1,1,1,1,1,1,1,1,1,1,1,1,1,1,1,1,1,1,1,1,1,1,1,1,1,1,1,0,0]
[{"$f":"IF(CALENDARIO!B31=\"\",\"\",TRIM(UPPER(CALENDARIO!B31)))","v":""},"","","","",0,0,0,"",0,{"$f":"IF(OR($A25=\"\",ISERROR(VLOOKUP($A25,$A$5:$B24,2,FALSE))),\"\",VLOOKUP($A25,$A$5:$B24,2,FALSE))","v":""}]
[{"$f":"IF(CALENDARIO!B32=\"\",\"\",TRIM(UPPER(CALENDARIO!B32)))","v":""},"","","","",0,0,0,"",0,{"$f":"IF(OR($A26=\"\",ISERROR(VLOOKUP($A26,$A$5:$B25,2,FALSE))),\"\",VLOOKUP($A26,$A$5:$B25,2,FALSE))","v":""},null,"CCC","provincia","nº empresa","DC.texto",null,null,null,null,"verificación CCC"]
[{"$f":"IF(CALENDARIO!B33=\"\",\"\",TRIM(UPPER(CALENDARIO!B33)))","v":""},"","","","",0,0,0,"",0,{"$f":"IF(OR($A27=\"\",ISERROR(VLOOKUP($A27,$A$5:$B26,2,FALSE))),\"\",VLOOKUP($A27,$A$5:$B26,2,FALSE))","v":""},null,{"$f":"O3","v":""},{"$f":"LEFT(O3,2)","v":""},{"$f":"MID(O3,3,7)","v":""},{"$f":"RIGHT(O3,2)","v":""},null,null,null,null,{"$f":"IF(P27=T29,1,0)","v":0}]
[{"$f":"IF(CALENDARIO!B34=\"\",\"\",TRIM(UPPER(CALENDARIO!B34)))","v":""},"","","","",0,0,0,"",0,{"$f":"IF(OR($A28=\"\",ISERROR(VLOOKUP($A28,$A$5:$B27,2,FALSE))),\"\",VLOOKUP($A28,$A$5:$B27,2,FALSE))","v":""},null,null,"provincia","provincia valor","naf","naf valor","prov+naf","DC","DC texto"]
[{"$f":"IF(CALENDARIO!B35=\"\",\"\",TRIM(UPPER(CALENDARIO!B35)))","v":""},"","","","",0,0,0,"",0,{"$f":"IF(OR($A29=\"\",ISERROR(VLOOKUP($A29,$A$5:$B28,2,FALSE))),\"\",VLOOKUP($A29,$A$5:$B28,2,FALSE))","v":""},null,"calculo CCC",{"$f":"TEXT(N27,\"00\")","v":""},{"$f":"IF(N29=\"\",0,VALUE(N29))","v":0},{"$f":"TEXT(O27,\"0000000\")","v":""},{"$f":"IF(P29=\"\",0,VALUE(P29))","v":0},{"$f":"IF(Q29>=1000000,O29*10000000+Q29,O29*1000000+Q29)","v":0},{"$f":"MOD(R29,97)","v":0},{"$f":"CONCATENATE(REPT(0,2-LEN(S29)),S29)","v":"00"}]
[{"$f":"IF(CALENDARIO!B36=\"\",\"\",TRIM(UPPER(CALENDARIO!B36)))","v":""},"","","","",0,0,0,"",0,{"$f":"IF(OR($A30=\"\",ISERROR(VLOOKUP($A30,$A$5:$B29,2,FALSE))),\"\",VLOOKUP($A30,$A$5:$B29,2,FALSE))","v":""},null,null,null,null,null,null,null,null,null,null,null,null,null,null,null,null,null,null,null,null,null,null,null,null,null,null,null,null,null,null,null,null,null,null,null,null,null,null,null,null,null,"para marcar"]
[{"$f":"IF(CALENDARIO!B37=\"\",\"\",TRIM(UPPER(CALENDARIO!B37)))","v":""},"","","","",0,0,0,"",0,{"$f":"IF(OR($A31=\"\",ISERROR(VLOOKUP($A31,$A$5:$B30,2,FALSE))),\"\",VLOOKUP($A31,$A$5:$B30,2,FALSE))","v":""},null,null,"NIF/NIE","Valor NIF","Letra NIF","DC.NIF","Letra NIF calculada",null,null,"verificación NIF","letra NIF incluida?","DC_NIF error",null,null,null,null,null,null,null,null,null,null,null,null,null,null,null,null,null,null,null,null,null,null,null,null,null,null,null,null,null,"x"]
[{"$f":"IF(CALENDARIO!B38=\"\",\"\",TRIM(UPPER(CALENDARIO!B38)))","v":""},"","","","",0,0,0,"",0,{"$f":"IF(OR($A32=\"\",ISERROR(VLOOKUP($A32,$A$5:$B31,2,FALSE))),\"\",VLOOKUP($A32,$A$5:$B31,2,FALSE))","v":""},null,"NIF representante",{"$f":"TRIM(O7)","v":""},{"$f":"IF(N32=\"\",\"\",IF(OR(UPPER(LEFT(N32))=\"X\",UPPER(LEFT(N32))=\"Y\",UPPER(LEFT(N32))=\"Z\"),MID(N32,2,LEN(N32)-2),LEFT(N32,LEN(N32)-1)))","v":""},{"$f":"IF(N32=\"\",\"\",RIGHT(N32,1))","v":""},{"$f":"IF(N32=\"\",\"\",IF(UPPER(LEFT(N32))=\"Y\",MOD(VALUE(\"1\"&O32),23),IF(UPPER(LEFT(N32))=\"Z\",MOD(VALUE(\"2\"&O32),23),MOD(O32,23))))","v":""},{"$f":"IF(N32=\"\",\"\",MID(\"TRWAGMYFPDXBNJZSQVHLCKE\",Q32+1,1))","v":""},null,null,{"$f":"IF(N32=\"\",0,IF(P32=R32,1,0))","v":0},{"$f":"IF(AND(RIGHT(N32,1)>=\"A\",RIGHT(N32,1)<=\"Z\"),1,IF(TRIM(N32)=\"\",1,0))","v":1},{"$f":"IF(ISERROR(Q32),0,1)","v":1},null,null,null,null,null,null,null,null,null,null,null,null,null,null,null,null,null,null,null,null,null,null,null,null,null,null,null,null,null,"X"]
[{"$f":"IF(CALENDARIO!B39=\"\",\"\",TRIM(UPPER(CALENDARIO!B39)))","v":""},"","","","",0,0,0,"",0,{"$f":"IF(OR($A33=\"\",ISERROR(VLOOKUP($A33,$A$5:$B32,2,FALSE))),\"\",VLOOKUP($A33,$A$5:$B32,2,FALSE))","v":""},null,null,null,null,null,null,null,null,null,null,null,null,null,null,null,null,null,null,null,null,null,null,null,null,null,null,null,null,null,null,null,null,null,null,null,null,null,null,null,null,null,"1"]
[{"$f":"IF(CALENDARIO!B40=\"\",\"\",TRIM(UPPER(CALENDARIO!B40)))","v":""},"","","","",0,0,0,"",0,{"$f":"IF(OR($A34=\"\",ISERROR(VLOOKUP($A34,$A$5:$B33,2,FALSE))),\"\",VLOOKUP($A34,$A$5:$B33,2,FALSE))","v":""},null,null,null,null,null,null,null,null,null,"verificación ERE",null,null,null,null,null,null,null,null,null,null,null,null,null,null,null,null,null,null,null,null,null,null,null,null,null,null,null,null,null,null,null,"2"]
[{"$f":"IF(CALENDARIO!B41=\"\",\"\",TRIM(UPPER(CALENDARIO!B41)))","v":""},"","","","",0,0,0,"",0,{"$f":"IF(OR($A35=\"\",ISERROR(VLOOKUP($A35,$A$5:$B34,2,FALSE))),\"\",VLOOKUP($A35,$A$5:$B34,2,FALSE))","v":""},null,"Nº ERE",{"$f":"O8","v":""},null,null,null,null,null,"1ª parte",{"$f":"IF(N38=0,0,IF(ISNUMBER(N38),1,0))","v":0},null,null,null,null,null,null,null,null,null,null,null,null,null,null,null,null,null,null,null,null,null,null,null,null,null,null,null,null,null,null,null,"3"]
[{"$f":"IF(CALENDARIO!B42=\"\",\"\",TRIM(UPPER(CALENDARIO!B42)))","v":""},"","","","",0,0,0,"",0,{"$f":"IF(OR($A36=\"\",ISERROR(VLOOKUP($A36,$A$5:$B35,2,FALSE))),\"\",VLOOKUP($A36,$A$5:$B35,2,FALSE))","v":""},null,null,"1ª parte","2ª parte","3ª parte",null,null,null,"2ª parte",null,null,null,null,null,null,null,null,null,null,null,null,null,null,null,null,null,null,null,null,null,null,null,null,null,null,null,null,null,null,null,null,"4"]
[{"$f":"IF(CALENDARIO!B43=\"\",\"\",TRIM(UPPER(CALENDARIO!B43)))","v":""},"","","","",0,0,0,"",0,{"$f":"IF(OR($A37=\"\",ISERROR(VLOOKUP($A37,$A$5:$B36,2,FALSE))),\"\",VLOOKUP($A37,$A$5:$B36,2,FALSE))","v":""},null,"texto",{"$f":"MID($N$35,1,5)","v":""},{"$f":"MID($N$35,6,1)","v":""},{"$f":"MID($N$35,7,4)","v":""},null,null,null,"3ª parte",{"$f":"IF(OR(P38<=Q2,P38>=Q14),0,1)","v":0},null,null,null,null,null,null,null,null,null,null,null,null,null,null,null,null,null,null,null,null,null,null,null,null,null,null,null,null,null,null,null,"5"]
[{"$f":"IF(CALENDARIO!B44=\"\",\"\",TRIM(UPPER(CALENDARIO!B44)))","v":""},"","","","",0,0,0,"",0,{"$f":"IF(OR($A38=\"\",ISERROR(VLOOKUP($A38,$A$5:$B37,2,FALSE))),\"\",VLOOKUP($A38,$A$5:$B37,2,FALSE))","v":""},null,"valor",{"$f":"IF(N37=\"\",0,VALUE(N37))","v":0},null,{"$f":"IF(P37=\"\",0,VALUE(P37))","v":0},null,null,null,null,null,null,null,null,null,null,null,null,null,null,null,null,null,null,null,null,null,null,null,null,null,null,null,null,null,null,null,null,null,null,null,null,"6"]
[{"$f":"IF(CALENDARIO!B45=\"\",\"\",TRIM(UPPER(CALENDARIO!B45)))","v":""},"","","","",0,0,0,"",0,{"$f":"IF(OR($A39=\"\",ISERROR(VLOOKUP($A39,$A$5:$B38,2,FALSE))),\"\",VLOOKUP($A39,$A$5:$B38,2,FALSE))","v":""},null,null,null,null,null,null,null,null,null,null,null,null,null,null,null,null,null,null,null,null,null,null,null,null,null,null,null,null,null,null,null,null,null,null,null,null,null,null,null,null,null,"01"]
[{"$f":"IF(CALENDARIO!B46=\"\",\"\",TRIM(UPPER(CALENDARIO!B46)))","v":""},"","","","",0,0,0,"",0,{"$f":"IF(OR($A40=\"\",ISERROR(VLOOKUP($A40,$A$5:$B39,2,FALSE))),\"\",VLOOKUP($A40,$A$5:$B39,2,FALSE))","v":""},null,null,null,null,null,null,null,null,null,null,null,null,null,null,null,null,null,null,null,null,null,null,null,null,null,null,null,null,null,null,null,null,null,null,null,null,null,null,null,null,null,"02"]
[{"$f":"IF(CALENDARIO!B47=\"\",\"\",TRIM(UPPER(CALENDARIO!B47)))","v":""},"","","","",0,0,0,"",0,{"$f":"IF(OR($A41=\"\",ISERROR(VLOOKUP($A41,$A$5:$B40,2,FALSE))),\"\",VLOOKUP($A41,$A$5:$B40,2,FALSE))","v":""},null,null,null,null,null,null,null,null,null,null,null,null,null,null,null,null,null,null,null,null,null,null,null,null,null,null,null,null,null,null,null,null,null,null,null,null,null,null,null,null,null,"03"]
[{"$f":"IF(CALENDARIO!B48=\"\",\"\",TRIM(UPPER(CALENDARIO!B48)))","v":""},"","","","",0,0,0,"",0,{"$f":"IF(OR($A42=\"\",ISERROR(VLOOKUP($A42,$A$5:$B41,2,FALSE))),\"\",VLOOKUP($A42,$A$5:$B41,2,FALSE))","v":""},null,null,null,null,null,null,null,null,null,null,null,null,null,null,null,null,null,null,null,null,null,null,null,null,null,null,null,null,null,null,null,null,null,null,null,null,null,null,null,null,null,"04"]
[{"$f":"IF(CALENDARIO!B49=\"\",\"\",TRIM(UPPER(CALENDARIO!B49)))","v":""},"","","","",0,0,0,"",0,{"$f":"IF(OR($A43=\"\",ISERROR(VLOOKUP($A43,$A$5:$B42,2,FALSE))),\"\",VLOOKUP($A43,$A$5:$B42,2,FALSE))","v":""},null,null,null,null,null,null,null,null,null,null,null,null,null,null,null,null,null,null,null,null,null,null,null,null,null,null,null,null,null,null,null,null,null,null,null,null,null,null,null,null,null,"06"]
[{"$f":"IF(CALENDARIO!B50=\"\",\"\",TRIM(UPPER(CALENDARIO!B50)))","v":""},"","","","",0,0,0,"",0,{"$f":"IF(OR($A44=\"\",ISERROR(VLOOKUP($A44,$A$5:$B43,2,FALSE))),\"\",VLOOKUP($A44,$A$5:$B43,2,FALSE))","v":""}]
[{"$f":"IF(CALENDARIO!B51=\"\",\"\",TRIM(UPPER(CALENDARIO!B51)))","v":""},"","","","",0,0,0,"",0,{"$f":"IF(OR($A45=\"\",ISERROR(VLOOKUP($A45,$A$5:$B44,2,FALSE))),\"\",VLOOKUP($A45,$A$5:$B44,2,FALSE))","v":""}]
[{"$f":"IF(CALENDARIO!B52=\"\",\"\",TRIM(UPPER(CALENDARIO!B52)))","v":""},"","","","",0,0,0,"",0,{"$f":"IF(OR($A46=\"\",ISERROR(VLOOKUP($A46,$A$5:$B45,2,FALSE))),\"\",VLOOKUP($A46,$A$5:$B45,2,FALSE))","v":""}]
[{"$f":"IF(CALENDARIO!B53=\"\",\"\",TRIM(UPPER(CALENDARIO!B53)))","v":""},"","","","",0,0,0,"",0,{"$f":"IF(OR($A47=\"\",ISERROR(VLOOKUP($A47,$A$5:$B46,2,FALSE))),\"\",VLOOKUP($A47,$A$5:$B46,2,FALSE))","v":""}]
[{"$f":"IF(CALENDARIO!B54=\"\",\"\",TRIM(UPPER(CALENDARIO!B54)))","v":""},"","","","",0,0,0,"",0,{"$f":"IF(OR($A48=\"\",ISERROR(VLOOKUP($A48,$A$5:$B47,2,FALSE))),\"\",VLOOKUP($A48,$A$5:$B47,2,FALSE))","v":""}]
[{"$f":"IF(CALENDARIO!B55=\"\",\"\",TRIM(UPPER(CALENDARIO!B55)))","v":""},"","","","",0,0,0,"",0,{"$f":"IF(OR($A49=\"\",ISERROR(VLOOKUP($A49,$A$5:$B48,2,FALSE))),\"\",VLOOKUP($A49,$A$5:$B48,2,FALSE))","v":""}]
[{"$f":"IF(CALENDARIO!B56=\"\",\"\",TRIM(UPPER(CALENDARIO!B56)))","v":""},"","","","",0,0,0,"",0,{"$f":"IF(OR($A50=\"\",ISERROR(VLOOKUP($A50,$A$5:$B49,2,FALSE))),\"\",VLOOKUP($A50,$A$5:$B49,2,FALSE))","v":""}]
[{"$f":"IF(CALENDARIO!B57=\"\",\"\",TRIM(UPPER(CALENDARIO!B57)))","v":""},"","","","",0,0,0,"",0,{"$f":"IF(OR($A51=\"\",ISERROR(VLOOKUP($A51,$A$5:$B50,2,FALSE))),\"\",VLOOKUP($A51,$A$5:$B50,2,FALSE))","v":""}]
[{"$f":"IF(CALENDARIO!B58=\"\",\"\",TRIM(UPPER(CALENDARIO!B58)))","v":""},"","","","",0,0,0,"",0,{"$f":"IF(OR($A52=\"\",ISERROR(VLOOKUP($A52,$A$5:$B51,2,FALSE))),\"\",VLOOKUP($A52,$A$5:$B51,2,FALSE))","v":""}]
[{"$f":"IF(CALENDARIO!B59=\"\",\"\",TRIM(UPPER(CALENDARIO!B59)))","v":""},"","","","",0,0,0,"",0,{"$f":"IF(OR($A53=\"\",ISERROR(VLOOKUP($A53,$A$5:$B52,2,FALSE))),\"\",VLOOKUP($A53,$A$5:$B52,2,FALSE))","v":""}]
[{"$f":"IF(CALENDARIO!B60=\"\",\"\",TRIM(UPPER(CALENDARIO!B60)))","v":""},"","","","",0,0,0,"",0,{"$f":"IF(OR($A54=\"\",ISERROR(VLOOKUP($A54,$A$5:$B53,2,FALSE))),\"\",VLOOKUP($A54,$A$5:$B53,2,FALSE))","v":""}]
[{"$f":"IF(CALENDARIO!B61=\"\",\"\",TRIM(UPPER(CALENDARIO!B61)))","v":""},"","","","",0,0,0,"",0,{"$f":"IF(OR($A55=\"\",ISERROR(VLOOKUP($A55,$A$5:$B54,2,FALSE))),\"\",VLOOKUP($A55,$A$5:$B54,2,FALSE))","v":""}]
[{"$f":"IF(CALENDARIO!B62=\"\",\"\",TRIM(UPPER(CALENDARIO!B62)))","v":""},"","","","",0,0,0,"",0,{"$f":"IF(OR($A56=\"\",ISERROR(VLOOKUP($A56,$A$5:$B55,2,FALSE))),\"\",VLOOKUP($A56,$A$5:$B55,2,FALSE))","v":""}]
[{"$f":"IF(CALENDARIO!B63=\"\",\"\",TRIM(UPPER(CALENDARIO!B63)))","v":""},"","","","",0,0,0,"",0,{"$f":"IF(OR($A57=\"\",ISERROR(VLOOKUP($A57,$A$5:$B56,2,FALSE))),\"\",VLOOKUP($A57,$A$5:$B56,2,FALSE))","v":""}]
[{"$f":"IF(CALENDARIO!B64=\"\",\"\",TRIM(UPPER(CALENDARIO!B64)))","v":""},"","","","",0,0,0,"",0,{"$f":"IF(OR($A58=\"\",ISERROR(VLOOKUP($A58,$A$5:$B57,2,FALSE))),\"\",VLOOKUP($A58,$A$5:$B57,2,FALSE))","v":""}]
[{"$f":"IF(CALENDARIO!B65=\"\",\"\",TRIM(UPPER(CALENDARIO!B65)))","v":""},"","","","",0,0,0,"",0,{"$f":"IF(OR($A59=\"\",ISERROR(VLOOKUP($A59,$A$5:$B58,2,FALSE))),\"\",VLOOKUP($A59,$A$5:$B58,2,FALSE))","v":""}]
[{"$f":"IF(CALENDARIO!B66=\"\",\"\",TRIM(UPPER(CALENDARIO!B66)))","v":""},"","","","",0,0,0,"",0,{"$f":"IF(OR($A60=\"\",ISERROR(VLOOKUP($A60,$A$5:$B59,2,FALSE))),\"\",VLOOKUP($A60,$A$5:$B59,2,FALSE))","v":""}]
[{"$f":"IF(CALENDARIO!B67=\"\",\"\",TRIM(UPPER(CALENDARIO!B67)))","v":""},"","","","",0,0,0,"",0,{"$f":"IF(OR($A61=\"\",ISERROR(VLOOKUP($A61,$A$5:$B60,2,FALSE))),\"\",VLOOKUP($A61,$A$5:$B60,2,FALSE))","v":""}]
[{"$f":"IF(CALENDARIO!B68=\"\",\"\",TRIM(UPPER(CALENDARIO!B68)))","v":""},"","","","",0,0,0,"",0,{"$f":"IF(OR($A62=\"\",ISERROR(VLOOKUP($A62,$A$5:$B61,2,FALSE))),\"\",VLOOKUP($A62,$A$5:$B61,2,FALSE))","v":""}]
[{"$f":"IF(CALENDARIO!B69=\"\",\"\",TRIM(UPPER(CALENDARIO!B69)))","v":""},"","","","",0,0,0,"",0,{"$f":"IF(OR($A63=\"\",ISERROR(VLOOKUP($A63,$A$5:$B62,2,FALSE))),\"\",VLOOKUP($A63,$A$5:$B62,2,FALSE))","v":""}]
[{"$f":"IF(CALENDARIO!B70=\"\",\"\",TRIM(UPPER(CALENDARIO!B70)))","v":""},"","","","",0,0,0,"",0,{"$f":"IF(OR($A64=\"\",ISERROR(VLOOKUP($A64,$A$5:$B63,2,FALSE))),\"\",VLOOKUP($A64,$A$5:$B63,2,FALSE))","v":""}]
[{"$f":"IF(CALENDARIO!B71=\"\",\"\",TRIM(UPPER(CALENDARIO!B71)))","v":""},"","","","",0,0,0,"",0,{"$f":"IF(OR($A65=\"\",ISERROR(VLOOKUP($A65,$A$5:$B64,2,FALSE))),\"\",VLOOKUP($A65,$A$5:$B64,2,FALSE))","v":""}]
[{"$f":"IF(CALENDARIO!B72=\"\",\"\",TRIM(UPPER(CALENDARIO!B72)))","v":""},"","","","",0,0,0,"",0,{"$f":"IF(OR($A66=\"\",ISERROR(VLOOKUP($A66,$A$5:$B65,2,FALSE))),\"\",VLOOKUP($A66,$A$5:$B65,2,FALSE))","v":""}]
[{"$f":"IF(CALENDARIO!B73=\"\",\"\",TRIM(UPPER(CALENDARIO!B73)))","v":""},"","","","",0,0,0,"",0,{"$f":"IF(OR($A67=\"\",ISERROR(VLOOKUP($A67,$A$5:$B66,2,FALSE))),\"\",VLOOKUP($A67,$A$5:$B66,2,FALSE))","v":""}]
[{"$f":"IF(CALENDARIO!B74=\"\",\"\",TRIM(UPPER(CALENDARIO!B74)))","v":""},"","","","",0,0,0,"",0,{"$f":"IF(OR($A68=\"\",ISERROR(VLOOKUP($A68,$A$5:$B67,2,FALSE))),\"\",VLOOKUP($A68,$A$5:$B67,2,FALSE))","v":""}]
[{"$f":"IF(CALENDARIO!B75=\"\",\"\",TRIM(UPPER(CALENDARIO!B75)))","v":""},"","","","",0,0,0,"",0,{"$f":"IF(OR($A69=\"\",ISERROR(VLOOKUP($A69,$A$5:$B68,2,FALSE))),\"\",VLOOKUP($A69,$A$5:$B68,2,FALSE))","v":""}]
[{"$f":"IF(CALENDARIO!B76=\"\",\"\",TRIM(UPPER(CALENDARIO!B76)))","v":""},{"$f":"IF(A70=\"\",\"\",IF(OR(UPPER(LEFT(A70))=\"X\",UPPER(LEFT(A70))=\"Y\",UPPER(LEFT(A70))=\"Z\"),MID(A70,2,LEN(A70)-2),LEFT(A70,LEN(A70)-1)))","v":""},{"$f":"IF(A70=\"\",\"\",RIGHT(A70,1))","v":""},{"$f":"IF(A70=\"\",\"\",IF(UPPER(LEFT(A70))=\"Y\",MOD(VALUE(\"1\"&B70),23),IF(UPPER(LEFT(A70))=\"Z\",MOD(VALUE(\"2\"&B70),23),MOD(B70,23))))","v":""},{"$f":"IF(A70=\"\",\"\",MID(\"TRWAGMYFPDXBNJZSQVHLCKE\",D70+1,1))","v":""},{"$f":"IF(AND(A70<>\"\",C70=E70),1,0)","v":0},{"$f":"IF(A70=\"\",0,1)","v":0},0,{"$f":"IF(A70=\"\",\"\",A70)","v":""},0,{"$f":"IF(OR($A70=\"\",ISERROR(VLOOKUP($A70,$A$5:$B69,2,FALSE))),\"\",VLOOKUP($A70,$A$5:$B69,2,FALSE))","v":""}]
[{"$f":"IF(CALENDARIO!B77=\"\",\"\",TRIM(UPPER(CALENDARIO!B77)))","v":""},"","","","",0,0,{"$f":"IF(A71=\"\",0,H70+1)","v":0},"",{"$f":"IF(K71=\"\",0,1)","v":0},{"$f":"IF(OR($A71=\"\",ISERROR(VLOOKUP($A71,$A$5:$B70,2,FALSE))),\"\",VLOOKUP($A71,$A$5:$B70,2,FALSE))","v":""}]
[{"$f":"IF(CALENDARIO!B78=\"\",\"\",TRIM(UPPER(CALENDARIO!B78)))","v":""},"","","","",0,0,0,"",0,{"$f":"IF(OR($A72=\"\",ISERROR(VLOOKUP($A72,$A$5:$B71,2,FALSE))),\"\",VLOOKUP($A72,$A$5:$B71,2,FALSE))","v":""}]
[{"$f":"IF(CALENDARIO!B79=\"\",\"\",TRIM(UPPER(CALENDARIO!B79)))","v":""},"","","","",0,0,0,"",0,{"$f":"IF(OR($A73=\"\",ISERROR(VLOOKUP($A73,$A$5:$B72,2,FALSE))),\"\",VLOOKUP($A73,$A$5:$B72,2,FALSE))","v":""}]
[{"$f":"IF(CALENDARIO!B80=\"\",\"\",TRIM(UPPER(CALENDARIO!B80)))","v":""},"","","","",0,0,0,"",0,{"$f":"IF(OR($A74=\"\",ISERROR(VLOOKUP($A74,$A$5:$B73,2,FALSE))),\"\",VLOOKUP($A74,$A$5:$B73,2,FALSE))","v":""}]
[{"$f":"IF(CALENDARIO!B81=\"\",\"\",TRIM(UPPER(CALENDARIO!B81)))","v":""},"","","","",0,0,0,"",0,{"$f":"IF(OR($A75=\"\",ISERROR(VLOOKUP($A75,$A$5:$B74,2,FALSE))),\"\",VLOOKUP($A75,$A$5:$B74,2,FALSE))","v":""}]
[{"$f":"IF(CALENDARIO!B82=\"\",\"\",TRIM(UPPER(CALENDARIO!B82)))","v":""},"","","","",0,0,0,"",0,{"$f":"IF(OR($A76=\"\",ISERROR(VLOOKUP($A76,$A$5:$B75,2,FALSE))),\"\",VLOOKUP($A76,$A$5:$B75,2,FALSE))","v":""}]
[{"$f":"IF(CALENDARIO!B83=\"\",\"\",TRIM(UPPER(CALENDARIO!B83)))","v":""},"","","","",0,0,0,"",0,{"$f":"IF(OR($A77=\"\",ISERROR(VLOOKUP($A77,$A$5:$B76,2,FALSE))),\"\",VLOOKUP($A77,$A$5:$B76,2,FALSE))","v":""}]
[{"$f":"IF(CALENDARIO!B84=\"\",\"\",TRIM(UPPER(CALENDARIO!B84)))","v":""},"","","","",0,0,0,"",0,{"$f":"IF(OR($A78=\"\",ISERROR(VLOOKUP($A78,$A$5:$B77,2,FALSE))),\"\",VLOOKUP($A78,$A$5:$B77,2,FALSE))","v":""}]
[{"$f":"IF(CALENDARIO!B85=\"\",\"\",TRIM(UPPER(CALENDARIO!B85)))","v":""},"","","","",0,0,0,"",0,{"$f":"IF(OR($A79=\"\",ISERROR(VLOOKUP($A79,$A$5:$B78,2,FALSE))),\"\",VLOOKUP($A79,$A$5:$B78,2,FALSE))","v":""}]
[{"$f":"IF(CALENDARIO!B86=\"\",\"\",TRIM(UPPER(CALENDARIO!B86)))","v":""},"","","","",0,0,0,"",0,{"$f":"IF(OR($A80=\"\",ISERROR(VLOOKUP($A80,$A$5:$B79,2,FALSE))),\"\",VLOOKUP($A80,$A$5:$B79,2,FALSE))","v":""}]
[{"$f":"IF(CALENDARIO!B87=\"\",\"\",TRIM(UPPER(CALENDARIO!B87)))","v":""},"","","","",0,0,0,"",0,{"$f":"IF(OR($A81=\"\",ISERROR(VLOOKUP($A81,$A$5:$B80,2,FALSE))),\"\",VLOOKUP($A81,$A$5:$B80,2,FALSE))","v":""}]
[{"$f":"IF(CALENDARIO!B88=\"\",\"\",TRIM(UPPER(CALENDARIO!B88)))","v":""},"","","","",0,0,0,"",0,{"$f":"IF(OR($A82=\"\",ISERROR(VLOOKUP($A82,$A$5:$B81,2,FALSE))),\"\",VLOOKUP($A82,$A$5:$B81,2,FALSE))","v":""}]
[{"$f":"IF(CALENDARIO!B89=\"\",\"\",TRIM(UPPER(CALENDARIO!B89)))","v":""},"","","","",0,0,0,"",0,{"$f":"IF(OR($A83=\"\",ISERROR(VLOOKUP($A83,$A$5:$B82,2,FALSE))),\"\",VLOOKUP($A83,$A$5:$B82,2,FALSE))","v":""}]
[{"$f":"IF(CALENDARIO!B90=\"\",\"\",TRIM(UPPER(CALENDARIO!B90)))","v":""},"","","","",0,0,0,"",0,{"$f":"IF(OR($A84=\"\",ISERROR(VLOOKUP($A84,$A$5:$B83,2,FALSE))),\"\",VLOOKUP($A84,$A$5:$B83,2,FALSE))","v":""}]
[{"$f":"IF(CALENDARIO!B91=\"\",\"\",TRIM(UPPER(CALENDARIO!B91)))","v":""},"","","","",0,0,0,"",0,{"$f":"IF(OR($A85=\"\",ISERROR(VLOOKUP($A85,$A$5:$B84,2,FALSE))),\"\",VLOOKUP($A85,$A$5:$B84,2,FALSE))","v":""}]
[{"$f":"IF(CALENDARIO!B92=\"\",\"\",TRIM(UPPER(CALENDARIO!B92)))","v":""},"","","","",0,0,0,"",0,{"$f":"IF(OR($A86=\"\",ISERROR(VLOOKUP($A86,$A$5:$B85,2,FALSE))),\"\",VLOOKUP($A86,$A$5:$B85,2,FALSE))","v":""}]
[{"$f":"IF(CALENDARIO!B93=\"\",\"\",TRIM(UPPER(CALENDARIO!B93)))","v":""},"","","","",0,0,0,"",0,{"$f":"IF(OR($A87=\"\",ISERROR(VLOOKUP($A87,$A$5:$B86,2,FALSE))),\"\",VLOOKUP($A87,$A$5:$B86,2,FALSE))","v":""}]
[{"$f":"IF(CALENDARIO!B94=\"\",\"\",TRIM(UPPER(CALENDARIO!B94)))","v":""},"","","","",0,0,0,"",0,{"$f":"IF(OR($A88=\"\",ISERROR(VLOOKUP($A88,$A$5:$B87,2,FALSE))),\"\",VLOOKUP($A88,$A$5:$B87,2,FALSE))","v":""}]
[{"$f":"IF(CALENDARIO!B95=\"\",\"\",TRIM(UPPER(CALENDARIO!B95)))","v":""},"","","","",0,0,0,"",0,{"$f":"IF(OR($A89=\"\",ISERROR(VLOOKUP($A89,$A$5:$B88,2,FALSE))),\"\",VLOOKUP($A89,$A$5:$B88,2,FALSE))","v":""}]
[{"$f":"IF(CALENDARIO!B96=\"\",\"\",TRIM(UPPER(CALENDARIO!B96)))","v":""},"","","","",0,0,0,"",0,{"$f":"IF(OR($A90=\"\",ISERROR(VLOOKUP($A90,$A$5:$B89,2,FALSE))),\"\",VLOOKUP($A90,$A$5:$B89,2,FALSE))","v":""}]
[{"$f":"IF(CALENDARIO!B97=\"\",\"\",TRIM(UPPER(CALENDARIO!B97)))","v":""},"","","","",0,0,0,"",0,{"$f":"IF(OR($A91=\"\",ISERROR(VLOOKUP($A91,$A$5:$B90,2,FALSE))),\"\",VLOOKUP($A91,$A$5:$B90,2,FALSE))","v":""}]
[{"$f":"IF(CALENDARIO!B98=\"\",\"\",TRIM(UPPER(CALENDARIO!B98)))","v":""},"","","","",0,0,0,"",0,{"$f":"IF(OR($A92=\"\",ISERROR(VLOOKUP($A92,$A$5:$B91,2,FALSE))),\"\",VLOOKUP($A92,$A$5:$B91,2,FALSE))","v":""}]
[{"$f":"IF(CALENDARIO!B99=\"\",\"\",TRIM(UPPER(CALENDARIO!B99)))","v":""},"","","","",0,0,0,"",0,{"$f":"IF(OR($A93=\"\",ISERROR(VLOOKUP($A93,$A$5:$B92,2,FALSE))),\"\",VLOOKUP($A93,$A$5:$B92,2,FALSE))","v":""}]
[{"$f":"IF(CALENDARIO!B100=\"\",\"\",TRIM(UPPER(CALENDARIO!B100)))","v":""},"","","","",0,0,0,"",0,{"$f":"IF(OR($A94=\"\",ISERROR(VLOOKUP($A94,$A$5:$B93,2,FALSE))),\"\",VLOOKUP($A94,$A$5:$B93,2,FALSE))","v":""}]
[{"$f":"IF(CALENDARIO!B101=\"\",\"\",TRIM(UPPER(CALENDARIO!B101)))","v":""},"","","","",0,0,0,"",0,{"$f":"IF(OR($A95=\"\",ISERROR(VLOOKUP($A95,$A$5:$B94,2,FALSE))),\"\",VLOOKUP($A95,$A$5:$B94,2,FALSE))","v":""}]
[{"$f":"IF(CALENDARIO!B102=\"\",\"\",TRIM(UPPER(CALENDARIO!B102)))","v":""},"","","","",0,0,0,"",0,{"$f":"IF(OR($A96=\"\",ISERROR(VLOOKUP($A96,$A$5:$B95,2,FALSE))),\"\",VLOOKUP($A96,$A$5:$B95,2,FALSE))","v":""}]
[{"$f":"IF(CALENDARIO!B103=\"\",\"\",TRIM(UPPER(CALENDARIO!B103)))","v":""},"","","","",0,0,0,"",0,{"$f":"IF(OR($A97=\"\",ISERROR(VLOOKUP($A97,$A$5:$B96,2,FALSE))),\"\",VLOOKUP($A97,$A$5:$B96,2,FALSE))","v":""}]
[{"$f":"IF(CALENDARIO!B104=\"\",\"\",TRIM(UPPER(CALENDARIO!B104)))","v":""},"","","","",0,0,0,"",0,{"$f":"IF(OR($A98=\"\",ISERROR(VLOOKUP($A98,$A$5:$B97,2,FALSE))),\"\",VLOOKUP($A98,$A$5:$B97,2,FALSE))","v":""}]
[{"$f":"IF(CALENDARIO!B105=\"\",\"\",TRIM(UPPER(CALENDARIO!B105)))","v":""},"","","","",0,0,0,"",0,{"$f":"IF(OR($A99=\"\",ISERROR(VLOOKUP($A99,$A$5:$B98,2,FALSE))),\"\",VLOOKUP($A99,$A$5:$B98,2,FALSE))","v":""}]
[{"$f":"IF(CALENDARIO!B106=\"\",\"\",TRIM(UPPER(CALENDARIO!B106)))","v":""},"","","","",0,0,0,"",0,{"$f":"IF(OR($A100=\"\",ISERROR(VLOOKUP($A100,$A$5:$B99,2,FALSE))),\"\",VLOOKUP($A100,$A$5:$B99,2,FALSE))","v":""}]
[{"$f":"IF(CALENDARIO!B107=\"\",\"\",TRIM(UPPER(CALENDARIO!B107)))","v":""},"","","","",0,0,0,"",0,{"$f":"IF(OR($A101=\"\",ISERROR(VLOOKUP($A101,$A$5:$B100,2,FALSE))),\"\",VLOOKUP($A101,$A$5:$B100,2,FALSE))","v":""}]
[{"$f":"IF(CALENDARIO!B108=\"\",\"\",TRIM(UPPER(CALENDARIO!B108)))","v":""},"","","","",0,0,0,"",0,{"$f":"IF(OR($A102=\"\",ISERROR(VLOOKUP($A102,$A$5:$B101,2,FALSE))),\"\",VLOOKUP($A102,$A$5:$B101,2,FALSE))","v":""}]
[{"$f":"IF(CALENDARIO!B109=\"\",\"\",TRIM(UPPER(CALENDARIO!B109)))","v":""},"","","","",0,0,0,"",0,{"$f":"IF(OR($A103=\"\",ISERROR(VLOOKUP($A103,$A$5:$B102,2,FALSE))),\"\",VLOOKUP($A103,$A$5:$B102,2,FALSE))","v":""}]
[{"$f":"IF(CALENDARIO!B110=\"\",\"\",TRIM(UPPER(CALENDARIO!B110)))","v":""},"","","","",0,0,0,"",0,{"$f":"IF(OR($A104=\"\",ISERROR(VLOOKUP($A104,$A$5:$B103,2,FALSE))),\"\",VLOOKUP($A104,$A$5:$B103,2,FALSE))","v":""}]
[{"$f":"IF(CALENDARIO!B111=\"\",\"\",TRIM(UPPER(CALENDARIO!B111)))","v":""},"","","","",0,0,0,"",0,{"$f":"IF(OR($A105=\"\",ISERROR(VLOOKUP($A105,$A$5:$B104,2,FALSE))),\"\",VLOOKUP($A105,$A$5:$B104,2,FALSE))","v":""}]
[{"$f":"IF(CALENDARIO!B112=\"\",\"\",TRIM(UPPER(CALENDARIO!B112)))","v":""},"","","","",0,0,0,"",0,{"$f":"IF(OR($A106=\"\",ISERROR(VLOOKUP($A106,$A$5:$B105,2,FALSE))),\"\",VLOOKUP($A106,$A$5:$B105,2,FALSE))","v":""}]
[{"$f":"IF(CALENDARIO!B113=\"\",\"\",TRIM(UPPER(CALENDARIO!B113)))","v":""},"","","","",0,0,0,"",0,{"$f":"IF(OR($A107=\"\",ISERROR(VLOOKUP($A107,$A$5:$B106,2,FALSE))),\"\",VLOOKUP($A107,$A$5:$B106,2,FALSE))","v":""}]
[{"$f":"IF(CALENDARIO!B114=\"\",\"\",TRIM(UPPER(CALENDARIO!B114)))","v":""},"","","","",0,0,0,"",0,{"$f":"IF(OR($A108=\"\",ISERROR(VLOOKUP($A108,$A$5:$B107,2,FALSE))),\"\",VLOOKUP($A108,$A$5:$B107,2,FALSE))","v":""}]
[{"$f":"IF(CALENDARIO!B115=\"\",\"\",TRIM(UPPER(CALENDARIO!B115)))","v":""},"","","","",0,0,0,"",0,{"$f":"IF(OR($A109=\"\",ISERROR(VLOOKUP($A109,$A$5:$B108,2,FALSE))),\"\",VLOOKUP($A109,$A$5:$B108,2,FALSE))","v":""}]
[{"$f":"IF(CALENDARIO!B116=\"\",\"\",TRIM(UPPER(CALENDARIO!B116)))","v":""},"","","","",0,0,0,"",0,{"$f":"IF(OR($A110=\"\",ISERROR(VLOOKUP($A110,$A$5:$B109,2,FALSE))),\"\",VLOOKUP($A110,$A$5:$B109,2,FALSE))","v":""}]
[{"$f":"IF(CALENDARIO!B117=\"\",\"\",TRIM(UPPER(CALENDARIO!B117)))","v":""},"","","","",0,0,0,"",0,{"$f":"IF(OR($A111=\"\",ISERROR(VLOOKUP($A111,$A$5:$B110,2,FALSE))),\"\",VLOOKUP($A111,$A$5:$B110,2,FALSE))","v":""}]
[{"$f":"IF(CALENDARIO!B118=\"\",\"\",TRIM(UPPER(CALENDARIO!B118)))","v":""},"","","","",0,0,0,"",0,{"$f":"IF(OR($A112=\"\",ISERROR(VLOOKUP($A112,$A$5:$B111,2,FALSE))),\"\",VLOOKUP($A112,$A$5:$B111,2,FALSE))","v":""}]
[{"$f":"IF(CALENDARIO!B119=\"\",\"\",TRIM(UPPER(CALENDARIO!B119)))","v":""},"","","","",0,0,0,"",0,{"$f":"IF(OR($A113=\"\",ISERROR(VLOOKUP($A113,$A$5:$B112,2,FALSE))),\"\",VLOOKUP($A113,$A$5:$B112,2,FALSE))","v":""}]
[{"$f":"IF(CALENDARIO!B120=\"\",\"\",TRIM(UPPER(CALENDARIO!B120)))","v":""},"","","","",0,0,0,"",0,{"$f":"IF(OR($A114=\"\",ISERROR(VLOOKUP($A114,$A$5:$B113,2,FALSE))),\"\",VLOOKUP($A114,$A$5:$B113,2,FALSE))","v":""}]
[{"$f":"IF(CALENDARIO!B121=\"\",\"\",TRIM(UPPER(CALENDARIO!B121)))","v":""},"","","","",0,0,0,"",0,{"$f":"IF(OR($A115=\"\",ISERROR(VLOOKUP($A115,$A$5:$B114,2,FALSE))),\"\",VLOOKUP($A115,$A$5:$B114,2,FALSE))","v":""}]
[{"$f":"IF(CALENDARIO!B122=\"\",\"\",TRIM(UPPER(CALENDARIO!B122)))","v":""},"","","","",0,0,0,"",0,{"$f":"IF(OR($A116=\"\",ISERROR(VLOOKUP($A116,$A$5:$B115,2,FALSE))),\"\",VLOOKUP($A116,$A$5:$B115,2,FALSE))","v":""}]
[{"$f":"IF(CALENDARIO!B123=\"\",\"\",TRIM(UPPER(CALENDARIO!B123)))","v":""},"","","","",0,0,0,"",0,{"$f":"IF(OR($A117=\"\",ISERROR(VLOOKUP($A117,$A$5:$B116,2,FALSE))),\"\",VLOOKUP($A117,$A$5:$B116,2,FALSE))","v":""}]
[{"$f":"IF(CALENDARIO!B124=\"\",\"\",TRIM(UPPER(CALENDARIO!B124)))","v":""},"","","","",0,0,0,"",0,{"$f":"IF(OR($A118=\"\",ISERROR(VLOOKUP($A118,$A$5:$B117,2,FALSE))),\"\",VLOOKUP($A118,$A$5:$B117,2,FALSE))","v":""}]
[{"$f":"IF(CALENDARIO!B125=\"\",\"\",TRIM(UPPER(CALENDARIO!B125)))","v":""},"","","","",0,0,0,"",0,{"$f":"IF(OR($A119=\"\",ISERROR(VLOOKUP($A119,$A$5:$B118,2,FALSE))),\"\",VLOOKUP($A119,$A$5:$B118,2,FALSE))","v":""}]
[{"$f":"IF(CALENDARIO!B126=\"\",\"\",TRIM(UPPER(CALENDARIO!B126)))","v":""},"","","","",0,0,0,"",0,{"$f":"IF(OR($A120=\"\",ISERROR(VLOOKUP($A120,$A$5:$B119,2,FALSE))),\"\",VLOOKUP($A120,$A$5:$B119,2,FALSE))","v":""}]
[{"$f":"IF(CALENDARIO!B127=\"\",\"\",TRIM(UPPER(CALENDARIO!B127)))","v":""},"","","","",0,0,0,"",0,{"$f":"IF(OR($A121=\"\",ISERROR(VLOOKUP($A121,$A$5:$B120,2,FALSE))),\"\",VLOOKUP($A121,$A$5:$B120,2,FALSE))","v":""}]
[{"$f":"IF(CALENDARIO!B128=\"\",\"\",TRIM(UPPER(CALENDARIO!B128)))","v":""},"","","","",0,0,0,"",0,{"$f":"IF(OR($A122=\"\",ISERROR(VLOOKUP($A122,$A$5:$B121,2,FALSE))),\"\",VLOOKUP($A122,$A$5:$B121,2,FALSE))","v":""}]
[{"$f":"IF(CALENDARIO!B129=\"\",\"\",TRIM(UPPER(CALENDARIO!B129)))","v":""},"","","","",0,0,0,"",0,{"$f":"IF(OR($A123=\"\",ISERROR(VLOOKUP($A123,$A$5:$B122,2,FALSE))),\"\",VLOOKUP($A123,$A$5:$B122,2,FALSE))","v":""}]
[{"$f":"IF(CALENDARIO!B130=\"\",\"\",TRIM(UPPER(CALENDARIO!B130)))","v":""},"","","","",0,0,0,"",0,{"$f":"IF(OR($A124=\"\",ISERROR(VLOOKUP($A124,$A$5:$B123,2,FALSE))),\"\",VLOOKUP($A124,$A$5:$B123,2,FALSE))","v":""}]
[{"$f":"IF(CALENDARIO!B131=\"\",\"\",TRIM(UPPER(CALENDARIO!B131)))","v":""},"","","","",0,0,0,"",0,{"$f":"IF(OR($A125=\"\",ISERROR(VLOOKUP($A125,$A$5:$B124,2,FALSE))),\"\",VLOOKUP($A125,$A$5:$B124,2,FALSE))","v":""}]
[{"$f":"IF(CALENDARIO!B132=\"\",\"\",TRIM(UPPER(CALENDARIO!B132)))","v":""},"","","","",0,0,0,"",0,{"$f":"IF(OR($A126=\"\",ISERROR(VLOOKUP($A126,$A$5:$B125,2,FALSE))),\"\",VLOOKUP($A126,$A$5:$B125,2,FALSE))","v":""}]
[{"$f":"IF(CALENDARIO!B133=\"\",\"\",TRIM(UPPER(CALENDARIO!B133)))","v":""},"","","","",0,0,0,"",0,{"$f":"IF(OR($A127=\"\",ISERROR(VLOOKUP($A127,$A$5:$B126,2,FALSE))),\"\",VLOOKUP($A127,$A$5:$B126,2,FALSE))","v":""}]
[{"$f":"IF(CALENDARIO!B134=\"\",\"\",TRIM(UPPER(CALENDARIO!B134)))","v":""},"","","","",0,0,0,"",0,{"$f":"IF(OR($A128=\"\",ISERROR(VLOOKUP($A128,$A$5:$B127,2,FALSE))),\"\",VLOOKUP($A128,$A$5:$B127,2,FALSE))","v":""}]
[{"$f":"IF(CALENDARIO!B135=\"\",\"\",TRIM(UPPER(CALENDARIO!B135)))","v":""},"","","","",0,0,0,"",0,{"$f":"IF(OR($A129=\"\",ISERROR(VLOOKUP($A129,$A$5:$B128,2,FALSE))),\"\",VLOOKUP($A129,$A$5:$B128,2,FALSE))","v":""}]
[{"$f":"IF(CALENDARIO!B136=\"\",\"\",TRIM(UPPER(CALENDARIO!B136)))","v":""},"","","","",0,0,0,"",0,{"$f":"IF(OR($A130=\"\",ISERROR(VLOOKUP($A130,$A$5:$B129,2,FALSE))),\"\",VLOOKUP($A130,$A$5:$B129,2,FALSE))","v":""}]
[{"$f":"IF(CALENDARIO!B137=\"\",\"\",TRIM(UPPER(CALENDARIO!B137)))","v":""},"","","","",0,0,0,"",0,{"$f":"IF(OR($A131=\"\",ISERROR(VLOOKUP($A131,$A$5:$B130,2,FALSE))),\"\",VLOOKUP($A131,$A$5:$B130,2,FALSE))","v":""}]
[{"$f":"IF(CALENDARIO!B138=\"\",\"\",TRIM(UPPER(CALENDARIO!B138)))","v":""},"","","","",0,0,0,"",0,{"$f":"IF(OR($A132=\"\",ISERROR(VLOOKUP($A132,$A$5:$B131,2,FALSE))),\"\",VLOOKUP($A132,$A$5:$B131,2,FALSE))","v":""}]
[{"$f":"IF(CALENDARIO!B139=\"\",\"\",TRIM(UPPER(CALENDARIO!B139)))","v":""},"","","","",0,0,0,"",0,{"$f":"IF(OR($A133=\"\",ISERROR(VLOOKUP($A133,$A$5:$B132,2,FALSE))),\"\",VLOOKUP($A133,$A$5:$B132,2,FALSE))","v":""}]
[{"$f":"IF(CALENDARIO!B140=\"\",\"\",TRIM(UPPER(CALENDARIO!B140)))","v":""},{"$f":"IF(A134=\"\",\"\",IF(OR(UPPER(LEFT(A134))=\"X\",UPPER(LEFT(A134))=\"Y\",UPPER(LEFT(A134))=\"Z\"),MID(A134,2,LEN(A134)-2),LEFT(A134,LEN(A134)-1)))","v":""},{"$f":"IF(A134=\"\",\"\",RIGHT(A134,1))","v":""},{"$f":"IF(A134=\"\",\"\",IF(UPPER(LEFT(A134))=\"Y\",MOD(VALUE(\"1\"&B134),23),IF(UPPER(LEFT(A134))=\"Z\",MOD(VALUE(\"2\"&B134),23),MOD(B134,23))))","v":""},{"$f":"IF(A134=\"\",\"\",MID(\"TRWAGMYFPDXBNJZSQVHLCKE\",D134+1,1))","v":""},{"$f":"IF(AND(A134<>\"\",C134=E134),1,0)","v":0},{"$f":"IF(A134=\"\",0,1)","v":0},0,{"$f":"IF(A134=\"\",\"\",A134)","v":""},0,{"$f":"IF(OR($A134=\"\",ISERROR(VLOOKUP($A134,$A$5:$B133,2,FALSE))),\"\",VLOOKUP($A134,$A$5:$B133,2,FALSE))","v":""}]
[{"$f":"IF(CALENDARIO!B141=\"\",\"\",TRIM(UPPER(CALENDARIO!B141)))","v":""},"","","","",0,0,{"$f":"IF(A135=\"\",0,H134+1)","v":0},"",{"$f":"IF(K135=\"\",0,1)","v":0},{"$f":"IF(OR($A135=\"\",ISERROR(VLOOKUP($A135,$A$5:$B134,2,FALSE))),\"\",VLOOKUP($A135,$A$5:$B134,2,FALSE))","v":""}]
[{"$f":"IF(CALENDARIO!B142=\"\",\"\",TRIM(UPPER(CALENDARIO!B142)))","v":""},"","","","",0,0,0,"",0,{"$f":"IF(OR($A136=\"\",ISERROR(VLOOKUP($A136,$A$5:$B135,2,FALSE))),\"\",VLOOKUP($A136,$A$5:$B135,2,FALSE))","v":""}]
[{"$f":"IF(CALENDARIO!B143=\"\",\"\",TRIM(UPPER(CALENDARIO!B143)))","v":""},"","","","",0,0,0,"",0,{"$f":"IF(OR($A137=\"\",ISERROR(VLOOKUP($A137,$A$5:$B136,2,FALSE))),\"\",VLOOKUP($A137,$A$5:$B136,2,FALSE))","v":""}]
[{"$f":"IF(CALENDARIO!B144=\"\",\"\",TRIM(UPPER(CALENDARIO!B144)))","v":""},"","","","",0,0,0,"",0,{"$f":"IF(OR($A138=\"\",ISERROR(VLOOKUP($A138,$A$5:$B137,2,FALSE))),\"\",VLOOKUP($A138,$A$5:$B137,2,FALSE))","v":""}]
[{"$f":"IF(CALENDARIO!B145=\"\",\"\",TRIM(UPPER(CALENDARIO!B145)))","v":""},"","","","",0,0,0,"",0,{"$f":"IF(OR($A139=\"\",ISERROR(VLOOKUP($A139,$A$5:$B138,2,FALSE))),\"\",VLOOKUP($A139,$A$5:$B138,2,FALSE))","v":""}]
[{"$f":"IF(CALENDARIO!B146=\"\",\"\",TRIM(UPPER(CALENDARIO!B146)))","v":""},"","","","",0,0,0,"",0,{"$f":"IF(OR($A140=\"\",ISERROR(VLOOKUP($A140,$A$5:$B139,2,FALSE))),\"\",VLOOKUP($A140,$A$5:$B139,2,FALSE))","v":""}]
[{"$f":"IF(CALENDARIO!B147=\"\",\"\",TRIM(UPPER(CALENDARIO!B147)))","v":""},"","","","",0,0,0,"",0,{"$f":"IF(OR($A141=\"\",ISERROR(VLOOKUP($A141,$A$5:$B140,2,FALSE))),\"\",VLOOKUP($A141,$A$5:$B140,2,FALSE))","v":""}]
[{"$f":"IF(CALENDARIO!B148=\"\",\"\",TRIM(UPPER(CALENDARIO!B148)))","v":""},"","","","",0,0,0,"",0,{"$f":"IF(OR($A142=\"\",ISERROR(VLOOKUP($A142,$A$5:$B141,2,FALSE))),\"\",VLOOKUP($A142,$A$5:$B141,2,FALSE))","v":""}]
[{"$f":"IF(CALENDARIO!B149=\"\",\"\",TRIM(UPPER(CALENDARIO!B149)))","v":""},"","","","",0,0,0,"",0,{"$f":"IF(OR($A143=\"\",ISERROR(VLOOKUP($A143,$A$5:$B142,2,FALSE))),\"\",VLOOKUP($A143,$A$5:$B142,2,FALSE))","v":""}]
[{"$f":"IF(CALENDARIO!B150=\"\",\"\",TRIM(UPPER(CALENDARIO!B150)))","v":""},"","","","",0,0,0,"",0,{"$f":"IF(OR($A144=\"\",ISERROR(VLOOKUP($A144,$A$5:$B143,2,FALSE))),\"\",VLOOKUP($A144,$A$5:$B143,2,FALSE))","v":""}]
[{"$f":"IF(CALENDARIO!B151=\"\",\"\",TRIM(UPPER(CALENDARIO!B151)))","v":""},"","","","",0,0,0,"",0,{"$f":"IF(OR($A145=\"\",ISERROR(VLOOKUP($A145,$A$5:$B144,2,FALSE))),\"\",VLOOKUP($A145,$A$5:$B144,2,FALSE))","v":""}]
[{"$f":"IF(CALENDARIO!B152=\"\",\"\",TRIM(UPPER(CALENDARIO!B152)))","v":""},"","","","",0,0,0,"",0,{"$f":"IF(OR($A146=\"\",ISERROR(VLOOKUP($A146,$A$5:$B145,2,FALSE))),\"\",VLOOKUP($A146,$A$5:$B145,2,FALSE))","v":""}]
[{"$f":"IF(CALENDARIO!B153=\"\",\"\",TRIM(UPPER(CALENDARIO!B153)))","v":""},"","","","",0,0,0,"",0,{"$f":"IF(OR($A147=\"\",ISERROR(VLOOKUP($A147,$A$5:$B146,2,FALSE))),\"\",VLOOKUP($A147,$A$5:$B146,2,FALSE))","v":""}]
[{"$f":"IF(CALENDARIO!B154=\"\",\"\",TRIM(UPPER(CALENDARIO!B154)))","v":""},"","","","",0,0,0,"",0,{"$f":"IF(OR($A148=\"\",ISERROR(VLOOKUP($A148,$A$5:$B147,2,FALSE))),\"\",VLOOKUP($A148,$A$5:$B147,2,FALSE))","v":""}]
[{"$f":"IF(CALENDARIO!B155=\"\",\"\",TRIM(UPPER(CALENDARIO!B155)))","v":""},"","","","",0,0,0,"",0,{"$f":"IF(OR($A149=\"\",ISERROR(VLOOKUP($A149,$A$5:$B148,2,FALSE))),\"\",VLOOKUP($A149,$A$5:$B148,2,FALSE))","v":""}]
[{"$f":"IF(CALENDARIO!B156=\"\",\"\",TRIM(UPPER(CALENDARIO!B156)))","v":""},"","","","",0,0,0,"",0,{"$f":"IF(OR($A150=\"\",ISERROR(VLOOKUP($A150,$A$5:$B149,2,FALSE))),\"\",VLOOKUP($A150,$A$5:$B149,2,FALSE))","v":""}]
[{"$f":"IF(CALENDARIO!B157=\"\",\"\",TRIM(UPPER(CALENDARIO!B157)))","v":""},"","","","",0,0,0,"",0,{"$f":"IF(OR($A151=\"\",ISERROR(VLOOKUP($A151,$A$5:$B150,2,FALSE))),\"\",VLOOKUP($A151,$A$5:$B150,2,FALSE))","v":""}]
[{"$f":"IF(CALENDARIO!B158=\"\",\"\",TRIM(UPPER(CALENDARIO!B158)))","v":""},"","","","",0,0,0,"",0,{"$f":"IF(OR($A152=\"\",ISERROR(VLOOKUP($A152,$A$5:$B151,2,FALSE))),\"\",VLOOKUP($A152,$A$5:$B151,2,FALSE))","v":""}]
[{"$f":"IF(CALENDARIO!B159=\"\",\"\",TRIM(UPPER(CALENDARIO!B159)))","v":""},"","","","",0,0,0,"",0,{"$f":"IF(OR($A153=\"\",ISERROR(VLOOKUP($A153,$A$5:$B152,2,FALSE))),\"\",VLOOKUP($A153,$A$5:$B152,2,FALSE))","v":""}]
[{"$f":"IF(CALENDARIO!B160=\"\",\"\",TRIM(UPPER(CALENDARIO!B160)))","v":""},"","","","",0,0,0,"",0,{"$f":"IF(OR($A154=\"\",ISERROR(VLOOKUP($A154,$A$5:$B153,2,FALSE))),\"\",VLOOKUP($A154,$A$5:$B153,2,FALSE))","v":""}]
[{"$f":"IF(CALENDARIO!B161=\"\",\"\",TRIM(UPPER(CALENDARIO!B161)))","v":""},"","","","",0,0,0,"",0,{"$f":"IF(OR($A155=\"\",ISERROR(VLOOKUP($A155,$A$5:$B154,2,FALSE))),\"\",VLOOKUP($A155,$A$5:$B154,2,FALSE))","v":""}]
[{"$f":"IF(CALENDARIO!B162=\"\",\"\",TRIM(UPPER(CALENDARIO!B162)))","v":""},"","","","",0,0,0,"",0,{"$f":"IF(OR($A156=\"\",ISERROR(VLOOKUP($A156,$A$5:$B155,2,FALSE))),\"\",VLOOKUP($A156,$A$5:$B155,2,FALSE))","v":""}]
[{"$f":"IF(CALENDARIO!B163=\"\",\"\",TRIM(UPPER(CALENDARIO!B163)))","v":""},"","","","",0,0,0,"",0,{"$f":"IF(OR($A157=\"\",ISERROR(VLOOKUP($A157,$A$5:$B156,2,FALSE))),\"\",VLOOKUP($A157,$A$5:$B156,2,FALSE))","v":""}]
[{"$f":"IF(CALENDARIO!B164=\"\",\"\",TRIM(UPPER(CALENDARIO!B164)))","v":""},"","","","",0,0,0,"",0,{"$f":"IF(OR($A158=\"\",ISERROR(VLOOKUP($A158,$A$5:$B157,2,FALSE))),\"\",VLOOKUP($A158,$A$5:$B157,2,FALSE))","v":""}]
[{"$f":"IF(CALENDARIO!B165=\"\",\"\",TRIM(UPPER(CALENDARIO!B165)))","v":""},"","","","",0,0,0,"",0,{"$f":"IF(OR($A159=\"\",ISERROR(VLOOKUP($A159,$A$5:$B158,2,FALSE))),\"\",VLOOKUP($A159,$A$5:$B158,2,FALSE))","v":""}]
[{"$f":"IF(CALENDARIO!B166=\"\",\"\",TRIM(UPPER(CALENDARIO!B166)))","v":""},"","","","",0,0,0,"",0,{"$f":"IF(OR($A160=\"\",ISERROR(VLOOKUP($A160,$A$5:$B159,2,FALSE))),\"\",VLOOKUP($A160,$A$5:$B159,2,FALSE))","v":""}]
[{"$f":"IF(CALENDARIO!B167=\"\",\"\",TRIM(UPPER(CALENDARIO!B167)))","v":""},"","","","",0,0,0,"",0,{"$f":"IF(OR($A161=\"\",ISERROR(VLOOKUP($A161,$A$5:$B160,2,FALSE))),\"\",VLOOKUP($A161,$A$5:$B160,2,FALSE))","v":""}]
[{"$f":"IF(CALENDARIO!B168=\"\",\"\",TRIM(UPPER(CALENDARIO!B168)))","v":""},"","","","",0,0,0,"",0,{"$f":"IF(OR($A162=\"\",ISERROR(VLOOKUP($A162,$A$5:$B161,2,FALSE))),\"\",VLOOKUP($A162,$A$5:$B161,2,FALSE))","v":""}]
[{"$f":"IF(CALENDARIO!B169=\"\",\"\",TRIM(UPPER(CALENDARIO!B169)))","v":""},"","","","",0,0,0,"",0,{"$f":"IF(OR($A163=\"\",ISERROR(VLOOKUP($A163,$A$5:$B162,2,FALSE))),\"\",VLOOKUP($A163,$A$5:$B162,2,FALSE))","v":""}]
[{"$f":"IF(CALENDARIO!B170=\"\",\"\",TRIM(UPPER(CALENDARIO!B170)))","v":""},"","","","",0,0,0,"",0,{"$f":"IF(OR($A164=\"\",ISERROR(VLOOKUP($A164,$A$5:$B163,2,FALSE))),\"\",VLOOKUP($A164,$A$5:$B163,2,FALSE))","v":""}]
[{"$f":"IF(CALENDARIO!B171=\"\",\"\",TRIM(UPPER(CALENDARIO!B171)))","v":""},"","","","",0,0,0,"",0,{"$f":"IF(OR($A165=\"\",ISERROR(VLOOKUP($A165,$A$5:$B164,2,FALSE))),\"\",VLOOKUP($A165,$A$5:$B164,2,FALSE))","v":""}]
[{"$f":"IF(CALENDARIO!B172=\"\",\"\",TRIM(UPPER(CALENDARIO!B172)))","v":""},"","","","",0,0,0,"",0,{"$f":"IF(OR($A166=\"\",ISERROR(VLOOKUP($A166,$A$5:$B165,2,FALSE))),\"\",VLOOKUP($A166,$A$5:$B165,2,FALSE))","v":""}]
[{"$f":"IF(CALENDARIO!B173=\"\",\"\",TRIM(UPPER(CALENDARIO!B173)))","v":""},"","","","",0,0,0,"",0,{"$f":"IF(OR($A167=\"\",ISERROR(VLOOKUP($A167,$A$5:$B166,2,FALSE))),\"\",VLOOKUP($A167,$A$5:$B166,2,FALSE))","v":""}]
[{"$f":"IF(CALENDARIO!B174=\"\",\"\",TRIM(UPPER(CALENDARIO!B174)))","v":""},"","","","",0,0,0,"",0,{"$f":"IF(OR($A168=\"\",ISERROR(VLOOKUP($A168,$A$5:$B167,2,FALSE))),\"\",VLOOKUP($A168,$A$5:$B167,2,FALSE))","v":""}]
[{"$f":"IF(CALENDARIO!B175=\"\",\"\",TRIM(UPPER(CALENDARIO!B175)))","v":""},"","","","",0,0,0,"",0,{"$f":"IF(OR($A169=\"\",ISERROR(VLOOKUP($A169,$A$5:$B168,2,FALSE))),\"\",VLOOKUP($A169,$A$5:$B168,2,FALSE))","v":""}]
[{"$f":"IF(CALENDARIO!B176=\"\",\"\",TRIM(UPPER(CALENDARIO!B176)))","v":""},"","","","",0,0,0,"",0,{"$f":"IF(OR($A170=\"\",ISERROR(VLOOKUP($A170,$A$5:$B169,2,FALSE))),\"\",VLOOKUP($A170,$A$5:$B169,2,FALSE))","v":""}]
[{"$f":"IF(CALENDARIO!B177=\"\",\"\",TRIM(UPPER(CALENDARIO!B177)))","v":""},"","","","",0,0,0,"",0,{"$f":"IF(OR($A171=\"\",ISERROR(VLOOKUP($A171,$A$5:$B170,2,FALSE))),\"\",VLOOKUP($A171,$A$5:$B170,2,FALSE))","v":""}]
[{"$f":"IF(CALENDARIO!B178=\"\",\"\",TRIM(UPPER(CALENDARIO!B178)))","v":""},"","","","",0,0,0,"",0,{"$f":"IF(OR($A172=\"\",ISERROR(VLOOKUP($A172,$A$5:$B171,2,FALSE))),\"\",VLOOKUP($A172,$A$5:$B171,2,FALSE))","v":""}]
[{"$f":"IF(CALENDARIO!B179=\"\",\"\",TRIM(UPPER(CALENDARIO!B179)))","v":""},"","","","",0,0,0,"",0,{"$f":"IF(OR($A173=\"\",ISERROR(VLOOKUP($A173,$A$5:$B172,2,FALSE))),\"\",VLOOKUP($A173,$A$5:$B172,2,FALSE))","v":""}]
[{"$f":"IF(CALENDARIO!B180=\"\",\"\",TRIM(UPPER(CALENDARIO!B180)))","v":""},"","","","",0,0,0,"",0,{"$f":"IF(OR($A174=\"\",ISERROR(VLOOKUP($A174,$A$5:$B173,2,FALSE))),\"\",VLOOKUP($A174,$A$5:$B173,2,FALSE))","v":""}]
[{"$f":"IF(CALENDARIO!B181=\"\",\"\",TRIM(UPPER(CALENDARIO!B181)))","v":""},"","","","",0,0,0,"",0,{"$f":"IF(OR($A175=\"\",ISERROR(VLOOKUP($A175,$A$5:$B174,2,FALSE))),\"\",VLOOKUP($A175,$A$5:$B174,2,FALSE))","v":""}]
[{"$f":"IF(CALENDARIO!B182=\"\",\"\",TRIM(UPPER(CALENDARIO!B182)))","v":""},"","","","",0,0,0,"",0,{"$f":"IF(OR($A176=\"\",ISERROR(VLOOKUP($A176,$A$5:$B175,2,FALSE))),\"\",VLOOKUP($A176,$A$5:$B175,2,FALSE))","v":""}]
[{"$f":"IF(CALENDARIO!B183=\"\",\"\",TRIM(UPPER(CALENDARIO!B183)))","v":""},"","","","",0,0,0,"",0,{"$f":"IF(OR($A177=\"\",ISERROR(VLOOKUP($A177,$A$5:$B176,2,FALSE))),\"\",VLOOKUP($A177,$A$5:$B176,2,FALSE))","v":""}]
[{"$f":"IF(CALENDARIO!B184=\"\",\"\",TRIM(UPPER(CALENDARIO!B184)))","v":""},"","","","",0,0,0,"",0,{"$f":"IF(OR($A178=\"\",ISERROR(VLOOKUP($A178,$A$5:$B177,2,FALSE))),\"\",VLOOKUP($A178,$A$5:$B177,2,FALSE))","v":""}]
[{"$f":"IF(CALENDARIO!B185=\"\",\"\",TRIM(UPPER(CALENDARIO!B185)))","v":""},"","","","",0,0,0,"",0,{"$f":"IF(OR($A179=\"\",ISERROR(VLOOKUP($A179,$A$5:$B178,2,FALSE))),\"\",VLOOKUP($A179,$A$5:$B178,2,FALSE))","v":""}]
[{"$f":"IF(CALENDARIO!B186=\"\",\"\",TRIM(UPPER(CALENDARIO!B186)))","v":""},"","","","",0,0,0,"",0,{"$f":"IF(OR($A180=\"\",ISERROR(VLOOKUP($A180,$A$5:$B179,2,FALSE))),\"\",VLOOKUP($A180,$A$5:$B179,2,FALSE))","v":""}]
[{"$f":"IF(CALENDARIO!B187=\"\",\"\",TRIM(UPPER(CALENDARIO!B187)))","v":""},"","","","",0,0,0,"",0,{"$f":"IF(OR($A181=\"\",ISERROR(VLOOKUP($A181,$A$5:$B180,2,FALSE))),\"\",VLOOKUP($A181,$A$5:$B180,2,FALSE))","v":""}]
[{"$f":"IF(CALENDARIO!B188=\"\",\"\",TRIM(UPPER(CALENDARIO!B188)))","v":""},"","","","",0,0,0,"",0,{"$f":"IF(OR($A182=\"\",ISERROR(VLOOKUP($A182,$A$5:$B181,2,FALSE))),\"\",VLOOKUP($A182,$A$5:$B181,2,FALSE))","v":""}]
[{"$f":"IF(CALENDARIO!B189=\"\",\"\",TRIM(UPPER(CALENDARIO!B189)))","v":""},"","","","",0,0,0,"",0,{"$f":"IF(OR($A183=\"\",ISERROR(VLOOKUP($A183,$A$5:$B182,2,FALSE))),\"\",VLOOKUP($A183,$A$5:$B182,2,FALSE))","v":""}]
[{"$f":"IF(CALENDARIO!B190=\"\",\"\",TRIM(UPPER(CALENDARIO!B190)))","v":""},"","","","",0,0,0,"",0,{"$f":"IF(OR($A184=\"\",ISERROR(VLOOKUP($A184,$A$5:$B183,2,FALSE))),\"\",VLOOKUP($A184,$A$5:$B183,2,FALSE))","v":""}]
[{"$f":"IF(CALENDARIO!B191=\"\",\"\",TRIM(UPPER(CALENDARIO!B191)))","v":""},"","","","",0,0,0,"",0,{"$f":"IF(OR($A185=\"\",ISERROR(VLOOKUP($A185,$A$5:$B184,2,FALSE))),\"\",VLOOKUP($A185,$A$5:$B184,2,FALSE))","v":""}]
[{"$f":"IF(CALENDARIO!B192=\"\",\"\",TRIM(UPPER(CALENDARIO!B192)))","v":""},"","","","",0,0,0,"",0,{"$f":"IF(OR($A186=\"\",ISERROR(VLOOKUP($A186,$A$5:$B185,2,FALSE))),\"\",VLOOKUP($A186,$A$5:$B185,2,FALSE))","v":""}]
[{"$f":"IF(CALENDARIO!B193=\"\",\"\",TRIM(UPPER(CALENDARIO!B193)))","v":""},"","","","",0,0,0,"",0,{"$f":"IF(OR($A187=\"\",ISERROR(VLOOKUP($A187,$A$5:$B186,2,FALSE))),\"\",VLOOKUP($A187,$A$5:$B186,2,FALSE))","v":""}]
[{"$f":"IF(CALENDARIO!B194=\"\",\"\",TRIM(UPPER(CALENDARIO!B194)))","v":""},"","","","",0,0,0,"",0,{"$f":"IF(OR($A188=\"\",ISERROR(VLOOKUP($A188,$A$5:$B187,2,FALSE))),\"\",VLOOKUP($A188,$A$5:$B187,2,FALSE))","v":""}]
[{"$f":"IF(CALENDARIO!B195=\"\",\"\",TRIM(UPPER(CALENDARIO!B195)))","v":""},"","","","",0,0,0,"",0,{"$f":"IF(OR($A189=\"\",ISERROR(VLOOKUP($A189,$A$5:$B188,2,FALSE))),\"\",VLOOKUP($A189,$A$5:$B188,2,FALSE))","v":""}]
[{"$f":"IF(CALENDARIO!B196=\"\",\"\",TRIM(UPPER(CALENDARIO!B196)))","v":""},"","","","",0,0,0,"",0,{"$f":"IF(OR($A190=\"\",ISERROR(VLOOKUP($A190,$A$5:$B189,2,FALSE))),\"\",VLOOKUP($A190,$A$5:$B189,2,FALSE))","v":""}]
[{"$f":"IF(CALENDARIO!B197=\"\",\"\",TRIM(UPPER(CALENDARIO!B197)))","v":""},"","","","",0,0,0,"",0,{"$f":"IF(OR($A191=\"\",ISERROR(VLOOKUP($A191,$A$5:$B190,2,FALSE))),\"\",VLOOKUP($A191,$A$5:$B190,2,FALSE))","v":""}]
[{"$f":"IF(CALENDARIO!B198=\"\",\"\",TRIM(UPPER(CALENDARIO!B198)))","v":""},"","","","",0,0,0,"",0,{"$f":"IF(OR($A192=\"\",ISERROR(VLOOKUP($A192,$A$5:$B191,2,FALSE))),\"\",VLOOKUP($A192,$A$5:$B191,2,FALSE))","v":""}]
[{"$f":"IF(CALENDARIO!B199=\"\",\"\",TRIM(UPPER(CALENDARIO!B199)))","v":""},"","","","",0,0,0,"",0,{"$f":"IF(OR($A193=\"\",ISERROR(VLOOKUP($A193,$A$5:$B192,2,FALSE))),\"\",VLOOKUP($A193,$A$5:$B192,2,FALSE))","v":""}]
[{"$f":"IF(CALENDARIO!B200=\"\",\"\",TRIM(UPPER(CALENDARIO!B200)))","v":""},"","","","",0,0,0,"",0,{"$f":"IF(OR($A194=\"\",ISERROR(VLOOKUP($A194,$A$5:$B193,2,FALSE))),\"\",VLOOKUP($A194,$A$5:$B193,2,FALSE))","v":""}]
[{"$f":"IF(CALENDARIO!B201=\"\",\"\",TRIM(UPPER(CALENDARIO!B201)))","v":""},"","","","",0,0,0,"",0,{"$f":"IF(OR($A195=\"\",ISERROR(VLOOKUP($A195,$A$5:$B194,2,FALSE))),\"\",VLOOKUP($A195,$A$5:$B194,2,FALSE))","v":""}]
[{"$f":"IF(CALENDARIO!B202=\"\",\"\",TRIM(UPPER(CALENDARIO!B202)))","v":""},"","","","",0,0,0,"",0,{"$f":"IF(OR($A196=\"\",ISERROR(VLOOKUP($A196,$A$5:$B195,2,FALSE))),\"\",VLOOKUP($A196,$A$5:$B195,2,FALSE))","v":""}]
[{"$f":"IF(CALENDARIO!B203=\"\",\"\",TRIM(UPPER(CALENDARIO!B203)))","v":""},"","","","",0,0,0,"",0,{"$f":"IF(OR($A197=\"\",ISERROR(VLOOKUP($A197,$A$5:$B196,2,FALSE))),\"\",VLOOKUP($A197,$A$5:$B196,2,FALSE))","v":""}]
[{"$f":"IF(CALENDARIO!B204=\"\",\"\",TRIM(UPPER(CALENDARIO!B204)))","v":""},{"$f":"IF(A198=\"\",\"\",IF(OR(UPPER(LEFT(A198))=\"X\",UPPER(LEFT(A198))=\"Y\",UPPER(LEFT(A198))=\"Z\"),MID(A198,2,LEN(A198)-2),LEFT(A198,LEN(A198)-1)))","v":""},{"$f":"IF(A198=\"\",\"\",RIGHT(A198,1))","v":""},{"$f":"IF(A198=\"\",\"\",IF(UPPER(LEFT(A198))=\"Y\",MOD(VALUE(\"1\"&B198),23),IF(UPPER(LEFT(A198))=\"Z\",MOD(VALUE(\"2\"&B198),23),MOD(B198,23))))","v":""},{"$f":"IF(A198=\"\",\"\",MID(\"TRWAGMYFPDXBNJZSQVHLCKE\",D198+1,1))","v":""},{"$f":"IF(AND(A198<>\"\",C198=E198),1,0)","v":0},{"$f":"IF(A198=\"\",0,1)","v":0},0,{"$f":"IF(A198=\"\",\"\",A198)","v":""},0,{"$f":"IF(OR($A198=\"\",ISERROR(VLOOKUP($A198,$A$5:$B197,2,FALSE))),\"\",VLOOKUP($A198,$A$5:$B197,2,FALSE))","v":""}]
[{"$f":"IF(CALENDARIO!B205=\"\",\"\",TRIM(UPPER(CALENDARIO!B205)))","v":""},"","","","",0,0,{"$f":"IF(A199=\"\",0,H198+1)","v":0},"",{"$f":"IF(K199=\"\",0,1)","v":0},{"$f":"IF(OR($A199=\"\",ISERROR(VLOOKUP($A199,$A$5:$B198,2,FALSE))),\"\",VLOOKUP($A199,$A$5:$B198,2,FALSE))","v":""}]
[{"$f":"IF(CALENDARIO!B206=\"\",\"\",TRIM(UPPER(CALENDARIO!B206)))","v":""},"","","","",0,0,0,"",0,{"$f":"IF(OR($A200=\"\",ISERROR(VLOOKUP($A200,$A$5:$B199,2,FALSE))),\"\",VLOOKUP($A200,$A$5:$B199,2,FALSE))","v":""}]
[{"$f":"IF(CALENDARIO!B207=\"\",\"\",TRIM(UPPER(CALENDARIO!B207)))","v":""},"","","","",0,0,0,"",0,{"$f":"IF(OR($A201=\"\",ISERROR(VLOOKUP($A201,$A$5:$B200,2,FALSE))),\"\",VLOOKUP($A201,$A$5:$B200,2,FALSE))","v":""}]
[{"$f":"IF(CALENDARIO!B208=\"\",\"\",TRIM(UPPER(CALENDARIO!B208)))","v":""},"","","","",0,0,0,"",0,{"$f":"IF(OR($A202=\"\",ISERROR(VLOOKUP($A202,$A$5:$B201,2,FALSE))),\"\",VLOOKUP($A202,$A$5:$B201,2,FALSE))","v":""}]
[{"$f":"IF(CALENDARIO!B209=\"\",\"\",TRIM(UPPER(CALENDARIO!B209)))","v":""},"","","","",0,0,0,"",0,{"$f":"IF(OR($A203=\"\",ISERROR(VLOOKUP($A203,$A$5:$B202,2,FALSE))),\"\",VLOOKUP($A203,$A$5:$B202,2,FALSE))","v":""}]
[{"$f":"IF(CALENDARIO!B210=\"\",\"\",TRIM(UPPER(CALENDARIO!B210)))","v":""},"","","","",0,0,0,"",0,{"$f":"IF(OR($A204=\"\",ISERROR(VLOOKUP($A204,$A$5:$B203,2,FALSE))),\"\",VLOOKUP($A204,$A$5:$B203,2,FALSE))","v":""}]
[{"$f":"IF(CALENDARIO!B211=\"\",\"\",TRIM(UPPER(CALENDARIO!B211)))","v":""},"","","","",0,0,0,"",0,{"$f":"IF(OR($A205=\"\",ISERROR(VLOOKUP($A205,$A$5:$B204,2,FALSE))),\"\",VLOOKUP($A205,$A$5:$B204,2,FALSE))","v":""}]
[{"$f":"IF(CALENDARIO!B212=\"\",\"\",TRIM(UPPER(CALENDARIO!B212)))","v":""},"","","","",0,0,0,"",0,{"$f":"IF(OR($A206=\"\",ISERROR(VLOOKUP($A206,$A$5:$B205,2,FALSE))),\"\",VLOOKUP($A206,$A$5:$B205,2,FALSE))","v":""}]
[{"$f":"IF(CALENDARIO!B213=\"\",\"\",TRIM(UPPER(CALENDARIO!B213)))","v":""},"","","","",0,0,0,"",0,{"$f":"IF(OR($A207=\"\",ISERROR(VLOOKUP($A207,$A$5:$B206,2,FALSE))),\"\",VLOOKUP($A207,$A$5:$B206,2,FALSE))","v":""}]
[{"$f":"IF(CALENDARIO!B214=\"\",\"\",TRIM(UPPER(CALENDARIO!B214)))","v":""},"","","","",0,0,0,"",0,{"$f":"IF(OR($A208=\"\",ISERROR(VLOOKUP($A208,$A$5:$B207,2,FALSE))),\"\",VLOOKUP($A208,$A$5:$B207,2,FALSE))","v":""}]
[{"$f":"IF(CALENDARIO!B215=\"\",\"\",TRIM(UPPER(CALENDARIO!B215)))","v":""},"","","","",0,0,0,"",0,{"$f":"IF(OR($A209=\"\",ISERROR(VLOOKUP($A209,$A$5:$B208,2,FALSE))),\"\",VLOOKUP($A209,$A$5:$B208,2,FALSE))","v":""}]
[{"$f":"IF(CALENDARIO!B216=\"\",\"\",TRIM(UPPER(CALENDARIO!B216)))","v":""},"","","","",0,0,0,"",0,{"$f":"IF(OR($A210=\"\",ISERROR(VLOOKUP($A210,$A$5:$B209,2,FALSE))),\"\",VLOOKUP($A210,$A$5:$B209,2,FALSE))","v":""}]
[{"$f":"IF(CALENDARIO!B217=\"\",\"\",TRIM(UPPER(CALENDARIO!B217)))","v":""},"","","","",0,0,0,"",0,{"$f":"IF(OR($A211=\"\",ISERROR(VLOOKUP($A211,$A$5:$B210,2,FALSE))),\"\",VLOOKUP($A211,$A$5:$B210,2,FALSE))","v":""}]
[{"$f":"IF(CALENDARIO!B218=\"\",\"\",TRIM(UPPER(CALENDARIO!B218)))","v":""},"","","","",0,0,0,"",0,{"$f":"IF(OR($A212=\"\",ISERROR(VLOOKUP($A212,$A$5:$B211,2,FALSE))),\"\",VLOOKUP($A212,$A$5:$B211,2,FALSE))","v":""}]
[{"$f":"IF(CALENDARIO!B219=\"\",\"\",TRIM(UPPER(CALENDARIO!B219)))","v":""},"","","","",0,0,0,"",0,{"$f":"IF(OR($A213=\"\",ISERROR(VLOOKUP($A213,$A$5:$B212,2,FALSE))),\"\",VLOOKUP($A213,$A$5:$B212,2,FALSE))","v":""}]
[{"$f":"IF(CALENDARIO!B220=\"\",\"\",TRIM(UPPER(CALENDARIO!B220)))","v":""},"","","","",0,0,0,"",0,{"$f":"IF(OR($A214=\"\",ISERROR(VLOOKUP($A214,$A$5:$B213,2,FALSE))),\"\",VLOOKUP($A214,$A$5:$B213,2,FALSE))","v":""}]
[{"$f":"IF(CALENDARIO!B221=\"\",\"\",TRIM(UPPER(CALENDARIO!B221)))","v":""},"","","","",0,0,0,"",0,{"$f":"IF(OR($A215=\"\",ISERROR(VLOOKUP($A215,$A$5:$B214,2,FALSE))),\"\",VLOOKUP($A215,$A$5:$B214,2,FALSE))","v":""}]
[{"$f":"IF(CALENDARIO!B222=\"\",\"\",TRIM(UPPER(CALENDARIO!B222)))","v":""},"","","","",0,0,0,"",0,{"$f":"IF(OR($A216=\"\",ISERROR(VLOOKUP($A216,$A$5:$B215,2,FALSE))),\"\",VLOOKUP($A216,$A$5:$B215,2,FALSE))","v":""}]
[{"$f":"IF(CALENDARIO!B223=\"\",\"\",TRIM(UPPER(CALENDARIO!B223)))","v":""},"","","","",0,0,0,"",0,{"$f":"IF(OR($A217=\"\",ISERROR(VLOOKUP($A217,$A$5:$B216,2,FALSE))),\"\",VLOOKUP($A217,$A$5:$B216,2,FALSE))","v":""}]
[{"$f":"IF(CALENDARIO!B224=\"\",\"\",TRIM(UPPER(CALENDARIO!B224)))","v":""},"","","","",0,0,0,"",0,{"$f":"IF(OR($A218=\"\",ISERROR(VLOOKUP($A218,$A$5:$B217,2,FALSE))),\"\",VLOOKUP($A218,$A$5:$B217,2,FALSE))","v":""}]
[{"$f":"IF(CALENDARIO!B225=\"\",\"\",TRIM(UPPER(CALENDARIO!B225)))","v":""},"","","","",0,0,0,"",0,{"$f":"IF(OR($A219=\"\",ISERROR(VLOOKUP($A219,$A$5:$B218,2,FALSE))),\"\",VLOOKUP($A219,$A$5:$B218,2,FALSE))","v":""}]
[{"$f":"IF(CALENDARIO!B226=\"\",\"\",TRIM(UPPER(CALENDARIO!B226)))","v":""},"","","","",0,0,0,"",0,{"$f":"IF(OR($A220=\"\",ISERROR(VLOOKUP($A220,$A$5:$B219,2,FALSE))),\"\",VLOOKUP($A220,$A$5:$B219,2,FALSE))","v":""}]
[{"$f":"IF(CALENDARIO!B227=\"\",\"\",TRIM(UPPER(CALENDARIO!B227)))","v":""},"","","","",0,0,0,"",0,{"$f":"IF(OR($A221=\"\",ISERROR(VLOOKUP($A221,$A$5:$B220,2,FALSE))),\"\",VLOOKUP($A221,$A$5:$B220,2,FALSE))","v":""}]
[{"$f":"IF(CALENDARIO!B228=\"\",\"\",TRIM(UPPER(CALENDARIO!B228)))","v":""},"","","","",0,0,0,"",0,{"$f":"IF(OR($A222=\"\",ISERROR(VLOOKUP($A222,$A$5:$B221,2,FALSE))),\"\",VLOOKUP($A222,$A$5:$B221,2,FALSE))","v":""}]
[{"$f":"IF(CALENDARIO!B229=\"\",\"\",TRIM(UPPER(CALENDARIO!B229)))","v":""},"","","","",0,0,0,"",0,{"$f":"IF(OR($A223=\"\",ISERROR(VLOOKUP($A223,$A$5:$B222,2,FALSE))),\"\",VLOOKUP($A223,$A$5:$B222,2,FALSE))","v":""}]
[{"$f":"IF(CALENDARIO!B230=\"\",\"\",TRIM(UPPER(CALENDARIO!B230)))","v":""},"","","","",0,0,0,"",0,{"$f":"IF(OR($A224=\"\",ISERROR(VLOOKUP($A224,$A$5:$B223,2,FALSE))),\"\",VLOOKUP($A224,$A$5:$B223,2,FALSE))","v":""}]
[{"$f":"IF(CALENDARIO!B231=\"\",\"\",TRIM(UPPER(CALENDARIO!B231)))","v":""},"","","","",0,0,0,"",0,{"$f":"IF(OR($A225=\"\",ISERROR(VLOOKUP($A225,$A$5:$B224,2,FALSE))),\"\",VLOOKUP($A225,$A$5:$B224,2,FALSE))","v":""}]
[{"$f":"IF(CALENDARIO!B232=\"\",\"\",TRIM(UPPER(CALENDARIO!B232)))","v":""},"","","","",0,0,0,"",0,{"$f":"IF(OR($A226=\"\",ISERROR(VLOOKUP($A226,$A$5:$B225,2,FALSE))),\"\",VLOOKUP($A226,$A$5:$B225,2,FALSE))","v":""}]
[{"$f":"IF(CALENDARIO!B233=\"\",\"\",TRIM(UPPER(CALENDARIO!B233)))","v":""},"","","","",0,0,0,"",0,{"$f":"IF(OR($A227=\"\",ISERROR(VLOOKUP($A227,$A$5:$B226,2,FALSE))),\"\",VLOOKUP($A227,$A$5:$B226,2,FALSE))","v":""}]
[{"$f":"IF(CALENDARIO!B234=\"\",\"\",TRIM(UPPER(CALENDARIO!B234)))","v":""},"","","","",0,0,0,"",0,{"$f":"IF(OR($A228=\"\",ISERROR(VLOOKUP($A228,$A$5:$B227,2,FALSE))),\"\",VLOOKUP($A228,$A$5:$B227,2,FALSE))","v":""}]
[{"$f":"IF(CALENDARIO!B235=\"\",\"\",TRIM(UPPER(CALENDARIO!B235)))","v":""},"","","","",0,0,0,"",0,{"$f":"IF(OR($A229=\"\",ISERROR(VLOOKUP($A229,$A$5:$B228,2,FALSE))),\"\",VLOOKUP($A229,$A$5:$B228,2,FALSE))","v":""}]
[{"$f":"IF(CALENDARIO!B236=\"\",\"\",TRIM(UPPER(CALENDARIO!B236)))","v":""},"","","","",0,0,0,"",0,{"$f":"IF(OR($A230=\"\",ISERROR(VLOOKUP($A230,$A$5:$B229,2,FALSE))),\"\",VLOOKUP($A230,$A$5:$B229,2,FALSE))","v":""}]
[{"$f":"IF(CALENDARIO!B237=\"\",\"\",TRIM(UPPER(CALENDARIO!B237)))","v":""},"","","","",0,0,0,"",0,{"$f":"IF(OR($A231=\"\",ISERROR(VLOOKUP($A231,$A$5:$B230,2,FALSE))),\"\",VLOOKUP($A231,$A$5:$B230,2,FALSE))","v":""}]
[{"$f":"IF(CALENDARIO!B238=\"\",\"\",TRIM(UPPER(CALENDARIO!B238)))","v":""},"","","","",0,0,0,"",0,{"$f":"IF(OR($A232=\"\",ISERROR(VLOOKUP($A232,$A$5:$B231,2,FALSE))),\"\",VLOOKUP($A232,$A$5:$B231,2,FALSE))","v":""}]
[{"$f":"IF(CALENDARIO!B239=\"\",\"\",TRIM(UPPER(CALENDARIO!B239)))","v":""},"","","","",0,0,0,"",0,{"$f":"IF(OR($A233=\"\",ISERROR(VLOOKUP($A233,$A$5:$B232,2,FALSE))),\"\",VLOOKUP($A233,$A$5:$B232,2,FALSE))","v":""}]
[{"$f":"IF(CALENDARIO!B240=\"\",\"\",TRIM(UPPER(CALENDARIO!B240)))","v":""},"","","","",0,0,0,"",0,{"$f":"IF(OR($A234=\"\",ISERROR(VLOOKUP($A234,$A$5:$B233,2,FALSE))),\"\",VLOOKUP($A234,$A$5:$B233,2,FALSE))","v":""}]
[{"$f":"IF(CALENDARIO!B241=\"\",\"\",TRIM(UPPER(CALENDARIO!B241)))","v":""},"","","","",0,0,0,"",0,{"$f":"IF(OR($A235=\"\",ISERROR(VLOOKUP($A235,$A$5:$B234,2,FALSE))),\"\",VLOOKUP($A235,$A$5:$B234,2,FALSE))","v":""}]
[{"$f":"IF(CALENDARIO!B242=\"\",\"\",TRIM(UPPER(CALENDARIO!B242)))","v":""},"","","","",0,0,0,"",0,{"$f":"IF(OR($A236=\"\",ISERROR(VLOOKUP($A236,$A$5:$B235,2,FALSE))),\"\",VLOOKUP($A236,$A$5:$B235,2,FALSE))","v":""}]
[{"$f":"IF(CALENDARIO!B243=\"\",\"\",TRIM(UPPER(CALENDARIO!B243)))","v":""},"","","","",0,0,0,"",0,{"$f":"IF(OR($A237=\"\",ISERROR(VLOOKUP($A237,$A$5:$B236,2,FALSE))),\"\",VLOOKUP($A237,$A$5:$B236,2,FALSE))","v":""}]
[{"$f":"IF(CALENDARIO!B244=\"\",\"\",TRIM(UPPER(CALENDARIO!B244)))","v":""},"","","","",0,0,0,"",0,{"$f":"IF(OR($A238=\"\",ISERROR(VLOOKUP($A238,$A$5:$B237,2,FALSE))),\"\",VLOOKUP($A238,$A$5:$B237,2,FALSE))","v":""}]
[{"$f":"IF(CALENDARIO!B245=\"\",\"\",TRIM(UPPER(CALENDARIO!B245)))","v":""},"","","","",0,0,0,"",0,{"$f":"IF(OR($A239=\"\",ISERROR(VLOOKUP($A239,$A$5:$B238,2,FALSE))),\"\",VLOOKUP($A239,$A$5:$B238,2,FALSE))","v":""}]
[{"$f":"IF(CALENDARIO!B246=\"\",\"\",TRIM(UPPER(CALENDARIO!B246)))","v":""},"","","","",0,0,0,"",0,{"$f":"IF(OR($A240=\"\",ISERROR(VLOOKUP($A240,$A$5:$B239,2,FALSE))),\"\",VLOOKUP($A240,$A$5:$B239,2,FALSE))","v":""}]
[{"$f":"IF(CALENDARIO!B247=\"\",\"\",TRIM(UPPER(CALENDARIO!B247)))","v":""},"","","","",0,0,0,"",0,{"$f":"IF(OR($A241=\"\",ISERROR(VLOOKUP($A241,$A$5:$B240,2,FALSE))),\"\",VLOOKUP($A241,$A$5:$B240,2,FALSE))","v":""}]
[{"$f":"IF(CALENDARIO!B248=\"\",\"\",TRIM(UPPER(CALENDARIO!B248)))","v":""},"","","","",0,0,0,"",0,{"$f":"IF(OR($A242=\"\",ISERROR(VLOOKUP($A242,$A$5:$B241,2,FALSE))),\"\",VLOOKUP($A242,$A$5:$B241,2,FALSE))","v":""}]
[{"$f":"IF(CALENDARIO!B249=\"\",\"\",TRIM(UPPER(CALENDARIO!B249)))","v":""},"","","","",0,0,0,"",0,{"$f":"IF(OR($A243=\"\",ISERROR(VLOOKUP($A243,$A$5:$B242,2,FALSE))),\"\",VLOOKUP($A243,$A$5:$B242,2,FALSE))","v":""}]
[{"$f":"IF(CALENDARIO!B250=\"\",\"\",TRIM(UPPER(CALENDARIO!B250)))","v":""},"","","","",0,0,0,"",0,{"$f":"IF(OR($A244=\"\",ISERROR(VLOOKUP($A244,$A$5:$B243,2,FALSE))),\"\",VLOOKUP($A244,$A$5:$B243,2,FALSE))","v":""}]
[{"$f":"IF(CALENDARIO!B251=\"\",\"\",TRIM(UPPER(CALENDARIO!B251)))","v":""},"","","","",0,0,0,"",0,{"$f":"IF(OR($A245=\"\",ISERROR(VLOOKUP($A245,$A$5:$B244,2,FALSE))),\"\",VLOOKUP($A245,$A$5:$B244,2,FALSE))","v":""}]
[{"$f":"IF(CALENDARIO!B252=\"\",\"\",TRIM(UPPER(CALENDARIO!B252)))","v":""},"","","","",0,0,0,"",0,{"$f":"IF(OR($A246=\"\",ISERROR(VLOOKUP($A246,$A$5:$B245,2,FALSE))),\"\",VLOOKUP($A246,$A$5:$B245,2,FALSE))","v":""}]
[{"$f":"IF(CALENDARIO!B253=\"\",\"\",TRIM(UPPER(CALENDARIO!B253)))","v":""},"","","","",0,0,0,"",0,{"$f":"IF(OR($A247=\"\",ISERROR(VLOOKUP($A247,$A$5:$B246,2,FALSE))),\"\",VLOOKUP($A247,$A$5:$B246,2,FALSE))","v":""}]
[{"$f":"IF(CALENDARIO!B254=\"\",\"\",TRIM(UPPER(CALENDARIO!B254)))","v":""},"","","","",0,0,0,"",0,{"$f":"IF(OR($A248=\"\",ISERROR(VLOOKUP($A248,$A$5:$B247,2,FALSE))),\"\",VLOOKUP($A248,$A$5:$B247,2,FALSE))","v":""}]
[{"$f":"IF(CALENDARIO!B255=\"\",\"\",TRIM(UPPER(CALENDARIO!B255)))","v":""},"","","","",0,0,0,"",0,{"$f":"IF(OR($A249=\"\",ISERROR(VLOOKUP($A249,$A$5:$B248,2,FALSE))),\"\",VLOOKUP($A249,$A$5:$B248,2,FALSE))","v":""}]
[{"$f":"IF(CALENDARIO!B256=\"\",\"\",TRIM(UPPER(CALENDARIO!B256)))","v":""},"","","","",0,0,0,"",0,{"$f":"IF(OR($A250=\"\",ISERROR(VLOOKUP($A250,$A$5:$B249,2,FALSE))),\"\",VLOOKUP($A250,$A$5:$B249,2,FALSE))","v":""}]
[{"$f":"IF(CALENDARIO!B257=\"\",\"\",TRIM(UPPER(CALENDARIO!B257)))","v":""},"","","","",0,0,0,"",0,{"$f":"IF(OR($A251=\"\",ISERROR(VLOOKUP($A251,$A$5:$B250,2,FALSE))),\"\",VLOOKUP($A251,$A$5:$B250,2,FALSE))","v":""}]
[{"$f":"IF(CALENDARIO!B258=\"\",\"\",TRIM(UPPER(CALENDARIO!B258)))","v":""},"","","","",0,0,0,"",0,{"$f":"IF(OR($A252=\"\",ISERROR(VLOOKUP($A252,$A$5:$B251,2,FALSE))),\"\",VLOOKUP($A252,$A$5:$B251,2,FALSE))","v":""}]
[{"$f":"IF(CALENDARIO!B259=\"\",\"\",TRIM(UPPER(CALENDARIO!B259)))","v":""},"","","","",0,0,0,"",0,{"$f":"IF(OR($A253=\"\",ISERROR(VLOOKUP($A253,$A$5:$B252,2,FALSE))),\"\",VLOOKUP($A253,$A$5:$B252,2,FALSE))","v":""}]
[{"$f":"IF(CALENDARIO!B260=\"\",\"\",TRIM(UPPER(CALENDARIO!B260)))","v":""},"","","","",0,0,0,"",0,{"$f":"IF(OR($A254=\"\",ISERROR(VLOOKUP($A254,$A$5:$B253,2,FALSE))),\"\",VLOOKUP($A254,$A$5:$B253,2,FALSE))","v":""}]
[{"$f":"IF(CALENDARIO!B261=\"\",\"\",TRIM(UPPER(CALENDARIO!B261)))","v":""},"","","","",0,0,0,"",0,{"$f":"IF(OR($A255=\"\",ISERROR(VLOOKUP($A255,$A$5:$B254,2,FALSE))),\"\",VLOOKUP($A255,$A$5:$B254,2,FALSE))","v":""}]
[{"$f":"IF(CALENDARIO!B262=\"\",\"\",TRIM(UPPER(CALENDARIO!B262)))","v":""},"","","","",0,0,0,"",0,{"$f":"IF(OR($A256=\"\",ISERROR(VLOOKUP($A256,$A$5:$B255,2,FALSE))),\"\",VLOOKUP($A256,$A$5:$B255,2,FALSE))","v":""}]
[{"$f":"IF(CALENDARIO!B263=\"\",\"\",TRIM(UPPER(CALENDARIO!B263)))","v":""},"","","","",0,0,0,"",0,{"$f":"IF(OR($A257=\"\",ISERROR(VLOOKUP($A257,$A$5:$B256,2,FALSE))),\"\",VLOOKUP($A257,$A$5:$B256,2,FALSE))","v":""}]
[{"$f":"IF(CALENDARIO!B264=\"\",\"\",TRIM(UPPER(CALENDARIO!B264)))","v":""},"","","","",0,0,0,"",0,{"$f":"IF(OR($A258=\"\",ISERROR(VLOOKUP($A258,$A$5:$B257,2,FALSE))),\"\",VLOOKUP($A258,$A$5:$B257,2,FALSE))","v":""}]
[{"$f":"IF(CALENDARIO!B265=\"\",\"\",TRIM(UPPER(CALENDARIO!B265)))","v":""},"","","","",0,0,0,"",0,{"$f":"IF(OR($A259=\"\",ISERROR(VLOOKUP($A259,$A$5:$B258,2,FALSE))),\"\",VLOOKUP($A259,$A$5:$B258,2,FALSE))","v":""}]
[{"$f":"IF(CALENDARIO!B266=\"\",\"\",TRIM(UPPER(CALENDARIO!B266)))","v":""},"","","","",0,0,0,"",0,{"$f":"IF(OR($A260=\"\",ISERROR(VLOOKUP($A260,$A$5:$B259,2,FALSE))),\"\",VLOOKUP($A260,$A$5:$B259,2,FALSE))","v":""}]
[{"$f":"IF(CALENDARIO!B267=\"\",\"\",TRIM(UPPER(CALENDARIO!B267)))","v":""},"","","","",0,0,0,"",0,{"$f":"IF(OR($A261=\"\",ISERROR(VLOOKUP($A261,$A$5:$B260,2,FALSE))),\"\",VLOOKUP($A261,$A$5:$B260,2,FALSE))","v":""}]
[{"$f":"IF(CALENDARIO!B268=\"\",\"\",TRIM(UPPER(CALENDARIO!B268)))","v":""},{"$f":"IF(A262=\"\",\"\",IF(OR(UPPER(LEFT(A262))=\"X\",UPPER(LEFT(A262))=\"Y\",UPPER(LEFT(A262))=\"Z\"),MID(A262,2,LEN(A262)-2),LEFT(A262,LEN(A262)-1)))","v":""},{"$f":"IF(A262=\"\",\"\",RIGHT(A262,1))","v":""},{"$f":"IF(A262=\"\",\"\",IF(UPPER(LEFT(A262))=\"Y\",MOD(VALUE(\"1\"&B262),23),IF(UPPER(LEFT(A262))=\"Z\",MOD(VALUE(\"2\"&B262),23),MOD(B262,23))))","v":""},{"$f":"IF(A262=\"\",\"\",MID(\"TRWAGMYFPDXBNJZSQVHLCKE\",D262+1,1))","v":""},{"$f":"IF(AND(A262<>\"\",C262=E262),1,0)","v":0},{"$f":"IF(A262=\"\",0,1)","v":0},0,{"$f":"IF(A262=\"\",\"\",A262)","v":""},0,{"$f":"IF(OR($A262=\"\",ISERROR(VLOOKUP($A262,$A$5:$B261,2,FALSE))),\"\",VLOOKUP($A262,$A$5:$B261,2,FALSE))","v":""}]
[{"$f":"IF(CALENDARIO!B269=\"\",\"\",TRIM(UPPER(CALENDARIO!B269)))","v":""},"","","","",0,0,{"$f":"IF(A263=\"\",0,H262+1)","v":0},"",{"$f":"IF(K263=\"\",0,1)","v":0},{"$f":"IF(OR($A263=\"\",ISERROR(VLOOKUP($A263,$A$5:$B262,2,FALSE))),\"\",VLOOKUP($A263,$A$5:$B262,2,FALSE))","v":""}]
[{"$f":"IF(CALENDARIO!B270=\"\",\"\",TRIM(UPPER(CALENDARIO!B270)))","v":""},"","","","",0,0,0,"",0,{"$f":"IF(OR($A264=\"\",ISERROR(VLOOKUP($A264,$A$5:$B263,2,FALSE))),\"\",VLOOKUP($A264,$A$5:$B263,2,FALSE))","v":""}]
[{"$f":"IF(CALENDARIO!B271=\"\",\"\",TRIM(UPPER(CALENDARIO!B271)))","v":""},"","","","",0,0,0,"",0,{"$f":"IF(OR($A265=\"\",ISERROR(VLOOKUP($A265,$A$5:$B264,2,FALSE))),\"\",VLOOKUP($A265,$A$5:$B264,2,FALSE))","v":""}]
[{"$f":"IF(CALENDARIO!B272=\"\",\"\",TRIM(UPPER(CALENDARIO!B272)))","v":""},"","","","",0,0,0,"",0,{"$f":"IF(OR($A266=\"\",ISERROR(VLOOKUP($A266,$A$5:$B265,2,FALSE))),\"\",VLOOKUP($A266,$A$5:$B265,2,FALSE))","v":""}]
[{"$f":"IF(CALENDARIO!B273=\"\",\"\",TRIM(UPPER(CALENDARIO!B273)))","v":""},"","","","",0,0,0,"",0,{"$f":"IF(OR($A267=\"\",ISERROR(VLOOKUP($A267,$A$5:$B266,2,FALSE))),\"\",VLOOKUP($A267,$A$5:$B266,2,FALSE))","v":""}]
[{"$f":"IF(CALENDARIO!B274=\"\",\"\",TRIM(UPPER(CALENDARIO!B274)))","v":""},"","","","",0,0,0,"",0,{"$f":"IF(OR($A268=\"\",ISERROR(VLOOKUP($A268,$A$5:$B267,2,FALSE))),\"\",VLOOKUP($A268,$A$5:$B267,2,FALSE))","v":""}]
[{"$f":"IF(CALENDARIO!B275=\"\",\"\",TRIM(UPPER(CALENDARIO!B275)))","v":""},"","","","",0,0,0,"",0,{"$f":"IF(OR($A269=\"\",ISERROR(VLOOKUP($A269,$A$5:$B268,2,FALSE))),\"\",VLOOKUP($A269,$A$5:$B268,2,FALSE))","v":""}]
[{"$f":"IF(CALENDARIO!B276=\"\",\"\",TRIM(UPPER(CALENDARIO!B276)))","v":""},"","","","",0,0,0,"",0,{"$f":"IF(OR($A270=\"\",ISERROR(VLOOKUP($A270,$A$5:$B269,2,FALSE))),\"\",VLOOKUP($A270,$A$5:$B269,2,FALSE))","v":""}]
[{"$f":"IF(CALENDARIO!B277=\"\",\"\",TRIM(UPPER(CALENDARIO!B277)))","v":""},"","","","",0,0,0,"",0,{"$f":"IF(OR($A271=\"\",ISERROR(VLOOKUP($A271,$A$5:$B270,2,FALSE))),\"\",VLOOKUP($A271,$A$5:$B270,2,FALSE))","v":""}]
[{"$f":"IF(CALENDARIO!B278=\"\",\"\",TRIM(UPPER(CALENDARIO!B278)))","v":""},"","","","",0,0,0,"",0,{"$f":"IF(OR($A272=\"\",ISERROR(VLOOKUP($A272,$A$5:$B271,2,FALSE))),\"\",VLOOKUP($A272,$A$5:$B271,2,FALSE))","v":""}]
[{"$f":"IF(CALENDARIO!B279=\"\",\"\",TRIM(UPPER(CALENDARIO!B279)))","v":""},"","","","",0,0,0,"",0,{"$f":"IF(OR($A273=\"\",ISERROR(VLOOKUP($A273,$A$5:$B272,2,FALSE))),\"\",VLOOKUP($A273,$A$5:$B272,2,FALSE))","v":""}]
[{"$f":"IF(CALENDARIO!B280=\"\",\"\",TRIM(UPPER(CALENDARIO!B280)))","v":""},"","","","",0,0,0,"",0,{"$f":"IF(OR($A274=\"\",ISERROR(VLOOKUP($A274,$A$5:$B273,2,FALSE))),\"\",VLOOKUP($A274,$A$5:$B273,2,FALSE))","v":""}]
[{"$f":"IF(CALENDARIO!B281=\"\",\"\",TRIM(UPPER(CALENDARIO!B281)))","v":""},"","","","",0,0,0,"",0,{"$f":"IF(OR($A275=\"\",ISERROR(VLOOKUP($A275,$A$5:$B274,2,FALSE))),\"\",VLOOKUP($A275,$A$5:$B274,2,FALSE))","v":""}]
[{"$f":"IF(CALENDARIO!B282=\"\",\"\",TRIM(UPPER(CALENDARIO!B282)))","v":""},"","","","",0,0,0,"",0,{"$f":"IF(OR($A276=\"\",ISERROR(VLOOKUP($A276,$A$5:$B275,2,FALSE))),\"\",VLOOKUP($A276,$A$5:$B275,2,FALSE))","v":""}]
[{"$f":"IF(CALENDARIO!B283=\"\",\"\",TRIM(UPPER(CALENDARIO!B283)))","v":""},"","","","",0,0,0,"",0,{"$f":"IF(OR($A277=\"\",ISERROR(VLOOKUP($A277,$A$5:$B276,2,FALSE))),\"\",VLOOKUP($A277,$A$5:$B276,2,FALSE))","v":""}]
[{"$f":"IF(CALENDARIO!B284=\"\",\"\",TRIM(UPPER(CALENDARIO!B284)))","v":""},"","","","",0,0,0,"",0,{"$f":"IF(OR($A278=\"\",ISERROR(VLOOKUP($A278,$A$5:$B277,2,FALSE))),\"\",VLOOKUP($A278,$A$5:$B277,2,FALSE))","v":""}]
[{"$f":"IF(CALENDARIO!B285=\"\",\"\",TRIM(UPPER(CALENDARIO!B285)))","v":""},"","","","",0,0,0,"",0,{"$f":"IF(OR($A279=\"\",ISERROR(VLOOKUP($A279,$A$5:$B278,2,FALSE))),\"\",VLOOKUP($A279,$A$5:$B278,2,FALSE))","v":""}]
[{"$f":"IF(CALENDARIO!B286=\"\",\"\",TRIM(UPPER(CALENDARIO!B286)))","v":""},"","","","",0,0,0,"",0,{"$f":"IF(OR($A280=\"\",ISERROR(VLOOKUP($A280,$A$5:$B279,2,FALSE))),\"\",VLOOKUP($A280,$A$5:$B279,2,FALSE))","v":""}]
[{"$f":"IF(CALENDARIO!B287=\"\",\"\",TRIM(UPPER(CALENDARIO!B287)))","v":""},"","","","",0,0,0,"",0,{"$f":"IF(OR($A281=\"\",ISERROR(VLOOKUP($A281,$A$5:$B280,2,FALSE))),\"\",VLOOKUP($A281,$A$5:$B280,2,FALSE))","v":""}]
[{"$f":"IF(CALENDARIO!B288=\"\",\"\",TRIM(UPPER(CALENDARIO!B288)))","v":""},"","","","",0,0,0,"",0,{"$f":"IF(OR($A282=\"\",ISERROR(VLOOKUP($A282,$A$5:$B281,2,FALSE))),\"\",VLOOKUP($A282,$A$5:$B281,2,FALSE))","v":""}]
[{"$f":"IF(CALENDARIO!B289=\"\",\"\",TRIM(UPPER(CALENDARIO!B289)))","v":""},"","","","",0,0,0,"",0,{"$f":"IF(OR($A283=\"\",ISERROR(VLOOKUP($A283,$A$5:$B282,2,FALSE))),\"\",VLOOKUP($A283,$A$5:$B282,2,FALSE))","v":""}]
[{"$f":"IF(CALENDARIO!B290=\"\",\"\",TRIM(UPPER(CALENDARIO!B290)))","v":""},"","","","",0,0,0,"",0,{"$f":"IF(OR($A284=\"\",ISERROR(VLOOKUP($A284,$A$5:$B283,2,FALSE))),\"\",VLOOKUP($A284,$A$5:$B283,2,FALSE))","v":""}]
[{"$f":"IF(CALENDARIO!B291=\"\",\"\",TRIM(UPPER(CALENDARIO!B291)))","v":""},"","","","",0,0,0,"",0,{"$f":"IF(OR($A285=\"\",ISERROR(VLOOKUP($A285,$A$5:$B284,2,FALSE))),\"\",VLOOKUP($A285,$A$5:$B284,2,FALSE))","v":""}]
[{"$f":"IF(CALENDARIO!B292=\"\",\"\",TRIM(UPPER(CALENDARIO!B292)))","v":""},"","","","",0,0,0,"",0,{"$f":"IF(OR($A286=\"\",ISERROR(VLOOKUP($A286,$A$5:$B285,2,FALSE))),\"\",VLOOKUP($A286,$A$5:$B285,2,FALSE))","v":""}]
[{"$f":"IF(CALENDARIO!B293=\"\",\"\",TRIM(UPPER(CALENDARIO!B293)))","v":""},"","","","",0,0,0,"",0,{"$f":"IF(OR($A287=\"\",ISERROR(VLOOKUP($A287,$A$5:$B286,2,FALSE))),\"\",VLOOKUP($A287,$A$5:$B286,2,FALSE))","v":""}]
[{"$f":"IF(CALENDARIO!B294=\"\",\"\",TRIM(UPPER(CALENDARIO!B294)))","v":""},"","","","",0,0,0,"",0,{"$f":"IF(OR($A288=\"\",ISERROR(VLOOKUP($A288,$A$5:$B287,2,FALSE))),\"\",VLOOKUP($A288,$A$5:$B287,2,FALSE))","v":""}]
[{"$f":"IF(CALENDARIO!B295=\"\",\"\",TRIM(UPPER(CALENDARIO!B295)))","v":""},"","","","",0,0,0,"",0,{"$f":"IF(OR($A289=\"\",ISERROR(VLOOKUP($A289,$A$5:$B288,2,FALSE))),\"\",VLOOKUP($A289,$A$5:$B288,2,FALSE))","v":""}]
[{"$f":"IF(CALENDARIO!B296=\"\",\"\",TRIM(UPPER(CALENDARIO!B296)))","v":""},"","","","",0,0,0,"",0,{"$f":"IF(OR($A290=\"\",ISERROR(VLOOKUP($A290,$A$5:$B289,2,FALSE))),\"\",VLOOKUP($A290,$A$5:$B289,2,FALSE))","v":""}]
[{"$f":"IF(CALENDARIO!B297=\"\",\"\",TRIM(UPPER(CALENDARIO!B297)))","v":""},"","","","",0,0,0,"",0,{"$f":"IF(OR($A291=\"\",ISERROR(VLOOKUP($A291,$A$5:$B290,2,FALSE))),\"\",VLOOKUP($A291,$A$5:$B290,2,FALSE))","v":""}]
[{"$f":"IF(CALENDARIO!B298=\"\",\"\",TRIM(UPPER(CALENDARIO!B298)))","v":""},"","","","",0,0,0,"",0,{"$f":"IF(OR($A292=\"\",ISERROR(VLOOKUP($A292,$A$5:$B291,2,FALSE))),\"\",VLOOKUP($A292,$A$5:$B291,2,FALSE))","v":""}]
[{"$f":"IF(CALENDARIO!B299=\"\",\"\",TRIM(UPPER(CALENDARIO!B299)))","v":""},"","","","",0,0,0,"",0,{"$f":"IF(OR($A293=\"\",ISERROR(VLOOKUP($A293,$A$5:$B292,2,FALSE))),\"\",VLOOKUP($A293,$A$5:$B292,2,FALSE))","v":""}]
[{"$f":"IF(CALENDARIO!B300=\"\",\"\",TRIM(UPPER(CALENDARIO!B300)))","v":""},"","","","",0,0,0,"",0,{"$f":"IF(OR($A294=\"\",ISERROR(VLOOKUP($A294,$A$5:$B293,2,FALSE))),\"\",VLOOKUP($A294,$A$5:$B293,2,FALSE))","v":""}]
[{"$f":"IF(CALENDARIO!B301=\"\",\"\",TRIM(UPPER(CALENDARIO!B301)))","v":""},"","","","",0,0,0,"",0,{"$f":"IF(OR($A295=\"\",ISERROR(VLOOKUP($A295,$A$5:$B294,2,FALSE))),\"\",VLOOKUP($A295,$A$5:$B294,2,FALSE))","v":""}]
[{"$f":"IF(CALENDARIO!B302=\"\",\"\",TRIM(UPPER(CALENDARIO!B302)))","v":""},"","","","",0,0,0,"",0,{"$f":"IF(OR($A296=\"\",ISERROR(VLOOKUP($A296,$A$5:$B295,2,FALSE))),\"\",VLOOKUP($A296,$A$5:$B295,2,FALSE))","v":""}]
[{"$f":"IF(CALENDARIO!B303=\"\",\"\",TRIM(UPPER(CALENDARIO!B303)))","v":""},"","","","",0,0,0,"",0,{"$f":"IF(OR($A297=\"\",ISERROR(VLOOKUP($A297,$A$5:$B296,2,FALSE))),\"\",VLOOKUP($A297,$A$5:$B296,2,FALSE))","v":""}]
[{"$f":"IF(CALENDARIO!B304=\"\",\"\",TRIM(UPPER(CALENDARIO!B304)))","v":""},"","","","",0,0,0,"",0,{"$f":"IF(OR($A298=\"\",ISERROR(VLOOKUP($A298,$A$5:$B297,2,FALSE))),\"\",VLOOKUP($A298,$A$5:$B297,2,FALSE))","v":""}]
[{"$f":"IF(CALENDARIO!B305=\"\",\"\",TRIM(UPPER(CALENDARIO!B305)))","v":""},"","","","",0,0,0,"",0,{"$f":"IF(OR($A299=\"\",ISERROR(VLOOKUP($A299,$A$5:$B298,2,FALSE))),\"\",VLOOKUP($A299,$A$5:$B298,2,FALSE))","v":""}]
[{"$f":"IF(CALENDARIO!B306=\"\",\"\",TRIM(UPPER(CALENDARIO!B306)))","v":""},"","","","",0,0,0,"",0,{"$f":"IF(OR($A300=\"\",ISERROR(VLOOKUP($A300,$A$5:$B299,2,FALSE))),\"\",VLOOKUP($A300,$A$5:$B299,2,FALSE))","v":""}]
[{"$f":"IF(CALENDARIO!B307=\"\",\"\",TRIM(UPPER(CALENDARIO!B307)))","v":""},"","","","",0,0,0,"",0,{"$f":"IF(OR($A301=\"\",ISERROR(VLOOKUP($A301,$A$5:$B300,2,FALSE))),\"\",VLOOKUP($A301,$A$5:$B300,2,FALSE))","v":""}]
[{"$f":"IF(CALENDARIO!B308=\"\",\"\",TRIM(UPPER(CALENDARIO!B308)))","v":""},"","","","",0,0,0,"",0,{"$f":"IF(OR($A302=\"\",ISERROR(VLOOKUP($A302,$A$5:$B301,2,FALSE))),\"\",VLOOKUP($A302,$A$5:$B301,2,FALSE))","v":""}]
[{"$f":"IF(CALENDARIO!B309=\"\",\"\",TRIM(UPPER(CALENDARIO!B309)))","v":""},"","","","",0,0,0,"",0,{"$f":"IF(OR($A303=\"\",ISERROR(VLOOKUP($A303,$A$5:$B302,2,FALSE))),\"\",VLOOKUP($A303,$A$5:$B302,2,FALSE))","v":""}]
[{"$f":"IF(CALENDARIO!B310=\"\",\"\",TRIM(UPPER(CALENDARIO!B310)))","v":""},"","","","",0,0,0,"",0,{"$f":"IF(OR($A304=\"\",ISERROR(VLOOKUP($A304,$A$5:$B303,2,FALSE))),\"\",VLOOKUP($A304,$A$5:$B303,2,FALSE))","v":""}]
[{"$f":"IF(CALENDARIO!B311=\"\",\"\",TRIM(UPPER(CALENDARIO!B311)))","v":""},"","","","",0,0,0,"",0,{"$f":"IF(OR($A305=\"\",ISERROR(VLOOKUP($A305,$A$5:$B304,2,FALSE))),\"\",VLOOKUP($A305,$A$5:$B304,2,FALSE))","v":""}]
[{"$f":"IF(CALENDARIO!B312=\"\",\"\",TRIM(UPPER(CALENDARIO!B312)))","v":""},"","","","",0,0,0,"",0,{"$f":"IF(OR($A306=\"\",ISERROR(VLOOKUP($A306,$A$5:$B305,2,FALSE))),\"\",VLOOKUP($A306,$A$5:$B305,2,FALSE))","v":""}]
[{"$f":"IF(CALENDARIO!B313=\"\",\"\",TRIM(UPPER(CALENDARIO!B313)))","v":""},"","","","",0,0,0,"",0,{"$f":"IF(OR($A307=\"\",ISERROR(VLOOKUP($A307,$A$5:$B306,2,FALSE))),\"\",VLOOKUP($A307,$A$5:$B306,2,FALSE))","v":""}]
[{"$f":"IF(CALENDARIO!B314=\"\",\"\",TRIM(UPPER(CALENDARIO!B314)))","v":""},"","","","",0,0,0,"",0,{"$f":"IF(OR($A308=\"\",ISERROR(VLOOKUP($A308,$A$5:$B307,2,FALSE))),\"\",VLOOKUP($A308,$A$5:$B307,2,FALSE))","v":""}]
[{"$f":"IF(CALENDARIO!B315=\"\",\"\",TRIM(UPPER(CALENDARIO!B315)))","v":""},"","","","",0,0,0,"",0,{"$f":"IF(OR($A309=\"\",ISERROR(VLOOKUP($A309,$A$5:$B308,2,FALSE))),\"\",VLOOKUP($A309,$A$5:$B308,2,FALSE))","v":""}]
[{"$f":"IF(CALENDARIO!B316=\"\",\"\",TRIM(UPPER(CALENDARIO!B316)))","v":""},"","","","",0,0,0,"",0,{"$f":"IF(OR($A310=\"\",ISERROR(VLOOKUP($A310,$A$5:$B309,2,FALSE))),\"\",VLOOKUP($A310,$A$5:$B309,2,FALSE))","v":""}]
[{"$f":"IF(CALENDARIO!B317=\"\",\"\",TRIM(UPPER(CALENDARIO!B317)))","v":""},"","","","",0,0,0,"",0,{"$f":"IF(OR($A311=\"\",ISERROR(VLOOKUP($A311,$A$5:$B310,2,FALSE))),\"\",VLOOKUP($A311,$A$5:$B310,2,FALSE))","v":""}]
[{"$f":"IF(CALENDARIO!B318=\"\",\"\",TRIM(UPPER(CALENDARIO!B318)))","v":""},"","","","",0,0,0,"",0,{"$f":"IF(OR($A312=\"\",ISERROR(VLOOKUP($A312,$A$5:$B311,2,FALSE))),\"\",VLOOKUP($A312,$A$5:$B311,2,FALSE))","v":""}]
[{"$f":"IF(CALENDARIO!B319=\"\",\"\",TRIM(UPPER(CALENDARIO!B319)))","v":""},"","","","",0,0,0,"",0,{"$f":"IF(OR($A313=\"\",ISERROR(VLOOKUP($A313,$A$5:$B312,2,FALSE))),\"\",VLOOKUP($A313,$A$5:$B312,2,FALSE))","v":""}]
[{"$f":"IF(CALENDARIO!B320=\"\",\"\",TRIM(UPPER(CALENDARIO!B320)))","v":""},"","","","",0,0,0,"",0,{"$f":"IF(OR($A314=\"\",ISERROR(VLOOKUP($A314,$A$5:$B313,2,FALSE))),\"\",VLOOKUP($A314,$A$5:$B313,2,FALSE))","v":""}]
[{"$f":"IF(CALENDARIO!B321=\"\",\"\",TRIM(UPPER(CALENDARIO!B321)))","v":""},"","","","",0,0,0,"",0,{"$f":"IF(OR($A315=\"\",ISERROR(VLOOKUP($A315,$A$5:$B314,2,FALSE))),\"\",VLOOKUP($A315,$A$5:$B314,2,FALSE))","v":""}]
[{"$f":"IF(CALENDARIO!B322=\"\",\"\",TRIM(UPPER(CALENDARIO!B322)))","v":""},"","","","",0,0,0,"",0,{"$f":"IF(OR($A316=\"\",ISERROR(VLOOKUP($A316,$A$5:$B315,2,FALSE))),\"\",VLOOKUP($A316,$A$5:$B315,2,FALSE))","v":""}]
[{"$f":"IF(CALENDARIO!B323=\"\",\"\",TRIM(UPPER(CALENDARIO!B323)))","v":""},"","","","",0,0,0,"",0,{"$f":"IF(OR($A317=\"\",ISERROR(VLOOKUP($A317,$A$5:$B316,2,FALSE))),\"\",VLOOKUP($A317,$A$5:$B316,2,FALSE))","v":""}]
[{"$f":"IF(CALENDARIO!B324=\"\",\"\",TRIM(UPPER(CALENDARIO!B324)))","v":""},"","","","",0,0,0,"",0,{"$f":"IF(OR($A318=\"\",ISERROR(VLOOKUP($A318,$A$5:$B317,2,FALSE))),\"\",VLOOKUP($A318,$A$5:$B317,2,FALSE))","v":""}]
[{"$f":"IF(CALENDARIO!B325=\"\",\"\",TRIM(UPPER(CALENDARIO!B325)))","v":""},"","","","",0,0,0,"",0,{"$f":"IF(OR($A319=\"\",ISERROR(VLOOKUP($A319,$A$5:$B318,2,FALSE))),\"\",VLOOKUP($A319,$A$5:$B318,2,FALSE))","v":""}]
[{"$f":"IF(CALENDARIO!B326=\"\",\"\",TRIM(UPPER(CALENDARIO!B326)))","v":""},"","","","",0,0,0,"",0,{"$f":"IF(OR($A320=\"\",ISERROR(VLOOKUP($A320,$A$5:$B319,2,FALSE))),\"\",VLOOKUP($A320,$A$5:$B319,2,FALSE))","v":""}]
[{"$f":"IF(CALENDARIO!B327=\"\",\"\",TRIM(UPPER(CALENDARIO!B327)))","v":""},"","","","",0,0,0,"",0,{"$f":"IF(OR($A321=\"\",ISERROR(VLOOKUP($A321,$A$5:$B320,2,FALSE))),\"\",VLOOKUP($A321,$A$5:$B320,2,FALSE))","v":""}]
[{"$f":"IF(CALENDARIO!B328=\"\",\"\",TRIM(UPPER(CALENDARIO!B328)))","v":""},"","","","",0,0,0,"",0,{"$f":"IF(OR($A322=\"\",ISERROR(VLOOKUP($A322,$A$5:$B321,2,FALSE))),\"\",VLOOKUP($A322,$A$5:$B321,2,FALSE))","v":""}]
[{"$f":"IF(CALENDARIO!B329=\"\",\"\",TRIM(UPPER(CALENDARIO!B329)))","v":""},"","","","",0,0,0,"",0,{"$f":"IF(OR($A323=\"\",ISERROR(VLOOKUP($A323,$A$5:$B322,2,FALSE))),\"\",VLOOKUP($A323,$A$5:$B322,2,FALSE))","v":""}]
[{"$f":"IF(CALENDARIO!B330=\"\",\"\",TRIM(UPPER(CALENDARIO!B330)))","v":""},"","","","",0,0,0,"",0,{"$f":"IF(OR($A324=\"\",ISERROR(VLOOKUP($A324,$A$5:$B323,2,FALSE))),\"\",VLOOKUP($A324,$A$5:$B323,2,FALSE))","v":""}]
[{"$f":"IF(CALENDARIO!B331=\"\",\"\",TRIM(UPPER(CALENDARIO!B331)))","v":""},"","","","",0,0,0,"",0,{"$f":"IF(OR($A325=\"\",ISERROR(VLOOKUP($A325,$A$5:$B324,2,FALSE))),\"\",VLOOKUP($A325,$A$5:$B324,2,FALSE))","v":""}]
[{"$f":"IF(CALENDARIO!B332=\"\",\"\",TRIM(UPPER(CALENDARIO!B332)))","v":""},{"$f":"IF(A326=\"\",\"\",IF(OR(UPPER(LEFT(A326))=\"X\",UPPER(LEFT(A326))=\"Y\",UPPER(LEFT(A326))=\"Z\"),MID(A326,2,LEN(A326)-2),LEFT(A326,LEN(A326)-1)))","v":""},{"$f":"IF(A326=\"\",\"\",RIGHT(A326,1))","v":""},{"$f":"IF(A326=\"\",\"\",IF(UPPER(LEFT(A326))=\"Y\",MOD(VALUE(\"1\"&B326),23),IF(UPPER(LEFT(A326))=\"Z\",MOD(VALUE(\"2\"&B326),23),MOD(B326,23))))","v":""},{"$f":"IF(A326=\"\",\"\",MID(\"TRWAGMYFPDXBNJZSQVHLCKE\",D326+1,1))","v":""},{"$f":"IF(AND(A326<>\"\",C326=E326),1,0)","v":0},{"$f":"IF(A326=\"\",0,1)","v":0},0,{"$f":"IF(A326=\"\",\"\",A326)","v":""},0,{"$f":"IF(OR($A326=\"\",ISERROR(VLOOKUP($A326,$A$5:$B325,2,FALSE))),\"\",VLOOKUP($A326,$A$5:$B325,2,FALSE))","v":""}]
[{"$f":"IF(CALENDARIO!B333=\"\",\"\",TRIM(UPPER(CALENDARIO!B333)))","v":""},"","","","",0,0,{"$f":"IF(A327=\"\",0,H326+1)","v":0},"",{"$f":"IF(K327=\"\",0,1)","v":0},{"$f":"IF(OR($A327=\"\",ISERROR(VLOOKUP($A327,$A$5:$B326,2,FALSE))),\"\",VLOOKUP($A327,$A$5:$B326,2,FALSE))","v":""}]
[{"$f":"IF(CALENDARIO!B334=\"\",\"\",TRIM(UPPER(CALENDARIO!B334)))","v":""},"","","","",0,0,0,"",0,{"$f":"IF(OR($A328=\"\",ISERROR(VLOOKUP($A328,$A$5:$B327,2,FALSE))),\"\",VLOOKUP($A328,$A$5:$B327,2,FALSE))","v":""}]
[{"$f":"IF(CALENDARIO!B335=\"\",\"\",TRIM(UPPER(CALENDARIO!B335)))","v":""},"","","","",0,0,0,"",0,{"$f":"IF(OR($A329=\"\",ISERROR(VLOOKUP($A329,$A$5:$B328,2,FALSE))),\"\",VLOOKUP($A329,$A$5:$B328,2,FALSE))","v":""}]
[{"$f":"IF(CALENDARIO!B336=\"\",\"\",TRIM(UPPER(CALENDARIO!B336)))","v":""},"","","","",0,0,0,"",0,{"$f":"IF(OR($A330=\"\",ISERROR(VLOOKUP($A330,$A$5:$B329,2,FALSE))),\"\",VLOOKUP($A330,$A$5:$B329,2,FALSE))","v":""}]
[{"$f":"IF(CALENDARIO!B337=\"\",\"\",TRIM(UPPER(CALENDARIO!B337)))","v":""},"","","","",0,0,0,"",0,{"$f":"IF(OR($A331=\"\",ISERROR(VLOOKUP($A331,$A$5:$B330,2,FALSE))),\"\",VLOOKUP($A331,$A$5:$B330,2,FALSE))","v":""}]
[{"$f":"IF(CALENDARIO!B338=\"\",\"\",TRIM(UPPER(CALENDARIO!B338)))","v":""},"","","","",0,0,0,"",0,{"$f":"IF(OR($A332=\"\",ISERROR(VLOOKUP($A332,$A$5:$B331,2,FALSE))),\"\",VLOOKUP($A332,$A$5:$B331,2,FALSE))","v":""}]
[{"$f":"IF(CALENDARIO!B339=\"\",\"\",TRIM(UPPER(CALENDARIO!B339)))","v":""},"","","","",0,0,0,"",0,{"$f":"IF(OR($A333=\"\",ISERROR(VLOOKUP($A333,$A$5:$B332,2,FALSE))),\"\",VLOOKUP($A333,$A$5:$B332,2,FALSE))","v":""}]
[{"$f":"IF(CALENDARIO!B340=\"\",\"\",TRIM(UPPER(CALENDARIO!B340)))","v":""},"","","","",0,0,0,"",0,{"$f":"IF(OR($A334=\"\",ISERROR(VLOOKUP($A334,$A$5:$B333,2,FALSE))),\"\",VLOOKUP($A334,$A$5:$B333,2,FALSE))","v":""}]
[{"$f":"IF(CALENDARIO!B341=\"\",\"\",TRIM(UPPER(CALENDARIO!B341)))","v":""},"","","","",0,0,0,"",0,{"$f":"IF(OR($A335=\"\",ISERROR(VLOOKUP($A335,$A$5:$B334,2,FALSE))),\"\",VLOOKUP($A335,$A$5:$B334,2,FALSE))","v":""}]
[{"$f":"IF(CALENDARIO!B342=\"\",\"\",TRIM(UPPER(CALENDARIO!B342)))","v":""},"","","","",0,0,0,"",0,{"$f":"IF(OR($A336=\"\",ISERROR(VLOOKUP($A336,$A$5:$B335,2,FALSE))),\"\",VLOOKUP($A336,$A$5:$B335,2,FALSE))","v":""}]
[{"$f":"IF(CALENDARIO!B343=\"\",\"\",TRIM(UPPER(CALENDARIO!B343)))","v":""},"","","","",0,0,0,"",0,{"$f":"IF(OR($A337=\"\",ISERROR(VLOOKUP($A337,$A$5:$B336,2,FALSE))),\"\",VLOOKUP($A337,$A$5:$B336,2,FALSE))","v":""}]
[{"$f":"IF(CALENDARIO!B344=\"\",\"\",TRIM(UPPER(CALENDARIO!B344)))","v":""},"","","","",0,0,0,"",0,{"$f":"IF(OR($A338=\"\",ISERROR(VLOOKUP($A338,$A$5:$B337,2,FALSE))),\"\",VLOOKUP($A338,$A$5:$B337,2,FALSE))","v":""}]
[{"$f":"IF(CALENDARIO!B345=\"\",\"\",TRIM(UPPER(CALENDARIO!B345)))","v":""},"","","","",0,0,0,"",0,{"$f":"IF(OR($A339=\"\",ISERROR(VLOOKUP($A339,$A$5:$B338,2,FALSE))),\"\",VLOOKUP($A339,$A$5:$B338,2,FALSE))","v":""}]
[{"$f":"IF(CALENDARIO!B346=\"\",\"\",TRIM(UPPER(CALENDARIO!B346)))","v":""},"","","","",0,0,0,"",0,{"$f":"IF(OR($A340=\"\",ISERROR(VLOOKUP($A340,$A$5:$B339,2,FALSE))),\"\",VLOOKUP($A340,$A$5:$B339,2,FALSE))","v":""}]
[{"$f":"IF(CALENDARIO!B347=\"\",\"\",TRIM(UPPER(CALENDARIO!B347)))","v":""},"","","","",0,0,0,"",0,{"$f":"IF(OR($A341=\"\",ISERROR(VLOOKUP($A341,$A$5:$B340,2,FALSE))),\"\",VLOOKUP($A341,$A$5:$B340,2,FALSE))","v":""}]
[{"$f":"IF(CALENDARIO!B348=\"\",\"\",TRIM(UPPER(CALENDARIO!B348)))","v":""},"","","","",0,0,0,"",0,{"$f":"IF(OR($A342=\"\",ISERROR(VLOOKUP($A342,$A$5:$B341,2,FALSE))),\"\",VLOOKUP($A342,$A$5:$B341,2,FALSE))","v":""}]
[{"$f":"IF(CALENDARIO!B349=\"\",\"\",TRIM(UPPER(CALENDARIO!B349)))","v":""},"","","","",0,0,0,"",0,{"$f":"IF(OR($A343=\"\",ISERROR(VLOOKUP($A343,$A$5:$B342,2,FALSE))),\"\",VLOOKUP($A343,$A$5:$B342,2,FALSE))","v":""}]
[{"$f":"IF(CALENDARIO!B350=\"\",\"\",TRIM(UPPER(CALENDARIO!B350)))","v":""},"","","","",0,0,0,"",0,{"$f":"IF(OR($A344=\"\",ISERROR(VLOOKUP($A344,$A$5:$B343,2,FALSE))),\"\",VLOOKUP($A344,$A$5:$B343,2,FALSE))","v":""}]
[{"$f":"IF(CALENDARIO!B351=\"\",\"\",TRIM(UPPER(CALENDARIO!B351)))","v":""},"","","","",0,0,0,"",0,{"$f":"IF(OR($A345=\"\",ISERROR(VLOOKUP($A345,$A$5:$B344,2,FALSE))),\"\",VLOOKUP($A345,$A$5:$B344,2,FALSE))","v":""}]
[{"$f":"IF(CALENDARIO!B352=\"\",\"\",TRIM(UPPER(CALENDARIO!B352)))","v":""},"","","","",0,0,0,"",0,{"$f":"IF(OR($A346=\"\",ISERROR(VLOOKUP($A346,$A$5:$B345,2,FALSE))),\"\",VLOOKUP($A346,$A$5:$B345,2,FALSE))","v":""}]
[{"$f":"IF(CALENDARIO!B353=\"\",\"\",TRIM(UPPER(CALENDARIO!B353)))","v":""},"","","","",0,0,0,"",0,{"$f":"IF(OR($A347=\"\",ISERROR(VLOOKUP($A347,$A$5:$B346,2,FALSE))),\"\",VLOOKUP($A347,$A$5:$B346,2,FALSE))","v":""}]
[{"$f":"IF(CALENDARIO!B354=\"\",\"\",TRIM(UPPER(CALENDARIO!B354)))","v":""},"","","","",0,0,0,"",0,{"$f":"IF(OR($A348=\"\",ISERROR(VLOOKUP($A348,$A$5:$B347,2,FALSE))),\"\",VLOOKUP($A348,$A$5:$B347,2,FALSE))","v":""}]
[{"$f":"IF(CALENDARIO!B355=\"\",\"\",TRIM(UPPER(CALENDARIO!B355)))","v":""},"","","","",0,0,0,"",0,{"$f":"IF(OR($A349=\"\",ISERROR(VLOOKUP($A349,$A$5:$B348,2,FALSE))),\"\",VLOOKUP($A349,$A$5:$B348,2,FALSE))","v":""}]
[{"$f":"IF(CALENDARIO!B356=\"\",\"\",TRIM(UPPER(CALENDARIO!B356)))","v":""},"","","","",0,0,0,"",0,{"$f":"IF(OR($A350=\"\",ISERROR(VLOOKUP($A350,$A$5:$B349,2,FALSE))),\"\",VLOOKUP($A350,$A$5:$B349,2,FALSE))","v":""}]
[{"$f":"IF(CALENDARIO!B357=\"\",\"\",TRIM(UPPER(CALENDARIO!B357)))","v":""},"","","","",0,0,0,"",0,{"$f":"IF(OR($A351=\"\",ISERROR(VLOOKUP($A351,$A$5:$B350,2,FALSE))),\"\",VLOOKUP($A351,$A$5:$B350,2,FALSE))","v":""}]
[{"$f":"IF(CALENDARIO!B358=\"\",\"\",TRIM(UPPER(CALENDARIO!B358)))","v":""},"","","","",0,0,0,"",0,{"$f":"IF(OR($A352=\"\",ISERROR(VLOOKUP($A352,$A$5:$B351,2,FALSE))),\"\",VLOOKUP($A352,$A$5:$B351,2,FALSE))","v":""}]
[{"$f":"IF(CALENDARIO!B359=\"\",\"\",TRIM(UPPER(CALENDARIO!B359)))","v":""},"","","","",0,0,0,"",0,{"$f":"IF(OR($A353=\"\",ISERROR(VLOOKUP($A353,$A$5:$B352,2,FALSE))),\"\",VLOOKUP($A353,$A$5:$B352,2,FALSE))","v":""}]
[{"$f":"IF(CALENDARIO!B360=\"\",\"\",TRIM(UPPER(CALENDARIO!B360)))","v":""},"","","","",0,0,0,"",0,{"$f":"IF(OR($A354=\"\",ISERROR(VLOOKUP($A354,$A$5:$B353,2,FALSE))),\"\",VLOOKUP($A354,$A$5:$B353,2,FALSE))","v":""}]
[{"$f":"IF(CALENDARIO!B361=\"\",\"\",TRIM(UPPER(CALENDARIO!B361)))","v":""},"","","","",0,0,0,"",0,{"$f":"IF(OR($A355=\"\",ISERROR(VLOOKUP($A355,$A$5:$B354,2,FALSE))),\"\",VLOOKUP($A355,$A$5:$B354,2,FALSE))","v":""}]
[{"$f":"IF(CALENDARIO!B362=\"\",\"\",TRIM(UPPER(CALENDARIO!B362)))","v":""},"","","","",0,0,0,"",0,{"$f":"IF(OR($A356=\"\",ISERROR(VLOOKUP($A356,$A$5:$B355,2,FALSE))),\"\",VLOOKUP($A356,$A$5:$B355,2,FALSE))","v":""}]
[{"$f":"IF(CALENDARIO!B363=\"\",\"\",TRIM(UPPER(CALENDARIO!B363)))","v":""},"","","","",0,0,0,"",0,{"$f":"IF(OR($A357=\"\",ISERROR(VLOOKUP($A357,$A$5:$B356,2,FALSE))),\"\",VLOOKUP($A357,$A$5:$B356,2,FALSE))","v":""}]
[{"$f":"IF(CALENDARIO!B364=\"\",\"\",TRIM(UPPER(CALENDARIO!B364)))","v":""},"","","","",0,0,0,"",0,{"$f":"IF(OR($A358=\"\",ISERROR(VLOOKUP($A358,$A$5:$B357,2,FALSE))),\"\",VLOOKUP($A358,$A$5:$B357,2,FALSE))","v":""}]
[{"$f":"IF(CALENDARIO!B365=\"\",\"\",TRIM(UPPER(CALENDARIO!B365)))","v":""},"","","","",0,0,0,"",0,{"$f":"IF(OR($A359=\"\",ISERROR(VLOOKUP($A359,$A$5:$B358,2,FALSE))),\"\",VLOOKUP($A359,$A$5:$B358,2,FALSE))","v":""}]
[{"$f":"IF(CALENDARIO!B366=\"\",\"\",TRIM(UPPER(CALENDARIO!B366)))","v":""},"","","","",0,0,0,"",0,{"$f":"IF(OR($A360=\"\",ISERROR(VLOOKUP($A360,$A$5:$B359,2,FALSE))),\"\",VLOOKUP($A360,$A$5:$B359,2,FALSE))","v":""}]
[{"$f":"IF(CALENDARIO!B367=\"\",\"\",TRIM(UPPER(CALENDARIO!B367)))","v":""},"","","","",0,0,0,"",0,{"$f":"IF(OR($A361=\"\",ISERROR(VLOOKUP($A361,$A$5:$B360,2,FALSE))),\"\",VLOOKUP($A361,$A$5:$B360,2,FALSE))","v":""}]
[{"$f":"IF(CALENDARIO!B368=\"\",\"\",TRIM(UPPER(CALENDARIO!B368)))","v":""},"","","","",0,0,0,"",0,{"$f":"IF(OR($A362=\"\",ISERROR(VLOOKUP($A362,$A$5:$B361,2,FALSE))),\"\",VLOOKUP($A362,$A$5:$B361,2,FALSE))","v":""}]
[{"$f":"IF(CALENDARIO!B369=\"\",\"\",TRIM(UPPER(CALENDARIO!B369)))","v":""},"","","","",0,0,0,"",0,{"$f":"IF(OR($A363=\"\",ISERROR(VLOOKUP($A363,$A$5:$B362,2,FALSE))),\"\",VLOOKUP($A363,$A$5:$B362,2,FALSE))","v":""}]
[{"$f":"IF(CALENDARIO!B370=\"\",\"\",TRIM(UPPER(CALENDARIO!B370)))","v":""},"","","","",0,0,0,"",0,{"$f":"IF(OR($A364=\"\",ISERROR(VLOOKUP($A364,$A$5:$B363,2,FALSE))),\"\",VLOOKUP($A364,$A$5:$B363,2,FALSE))","v":""}]
[{"$f":"IF(CALENDARIO!B371=\"\",\"\",TRIM(UPPER(CALENDARIO!B371)))","v":""},"","","","",0,0,0,"",0,{"$f":"IF(OR($A365=\"\",ISERROR(VLOOKUP($A365,$A$5:$B364,2,FALSE))),\"\",VLOOKUP($A365,$A$5:$B364,2,FALSE))","v":""}]
[{"$f":"IF(CALENDARIO!B372=\"\",\"\",TRIM(UPPER(CALENDARIO!B372)))","v":""},"","","","",0,0,0,"",0,{"$f":"IF(OR($A366=\"\",ISERROR(VLOOKUP($A366,$A$5:$B365,2,FALSE))),\"\",VLOOKUP($A366,$A$5:$B365,2,FALSE))","v":""}]
[{"$f":"IF(CALENDARIO!B373=\"\",\"\",TRIM(UPPER(CALENDARIO!B373)))","v":""},"","","","",0,0,0,"",0,{"$f":"IF(OR($A367=\"\",ISERROR(VLOOKUP($A367,$A$5:$B366,2,FALSE))),\"\",VLOOKUP($A367,$A$5:$B366,2,FALSE))","v":""}]
[{"$f":"IF(CALENDARIO!B374=\"\",\"\",TRIM(UPPER(CALENDARIO!B374)))","v":""},"","","","",0,0,0,"",0,{"$f":"IF(OR($A368=\"\",ISERROR(VLOOKUP($A368,$A$5:$B367,2,FALSE))),\"\",VLOOKUP($A368,$A$5:$B367,2,FALSE))","v":""}]
[{"$f":"IF(CALENDARIO!B375=\"\",\"\",TRIM(UPPER(CALENDARIO!B375)))","v":""},"","","","",0,0,0,"",0,{"$f":"IF(OR($A369=\"\",ISERROR(VLOOKUP($A369,$A$5:$B368,2,FALSE))),\"\",VLOOKUP($A369,$A$5:$B368,2,FALSE))","v":""}]
[{"$f":"IF(CALENDARIO!B376=\"\",\"\",TRIM(UPPER(CALENDARIO!B376)))","v":""},"","","","",0,0,0,"",0,{"$f":"IF(OR($A370=\"\",ISERROR(VLOOKUP($A370,$A$5:$B369,2,FALSE))),\"\",VLOOKUP($A370,$A$5:$B369,2,FALSE))","v":""}]
[{"$f":"IF(CALENDARIO!B377=\"\",\"\",TRIM(UPPER(CALENDARIO!B377)))","v":""},"","","","",0,0,0,"",0,{"$f":"IF(OR($A371=\"\",ISERROR(VLOOKUP($A371,$A$5:$B370,2,FALSE))),\"\",VLOOKUP($A371,$A$5:$B370,2,FALSE))","v":""}]
[{"$f":"IF(CALENDARIO!B378=\"\",\"\",TRIM(UPPER(CALENDARIO!B378)))","v":""},"","","","",0,0,0,"",0,{"$f":"IF(OR($A372=\"\",ISERROR(VLOOKUP($A372,$A$5:$B371,2,FALSE))),\"\",VLOOKUP($A372,$A$5:$B371,2,FALSE))","v":""}]
[{"$f":"IF(CALENDARIO!B379=\"\",\"\",TRIM(UPPER(CALENDARIO!B379)))","v":""},"","","","",0,0,0,"",0,{"$f":"IF(OR($A373=\"\",ISERROR(VLOOKUP($A373,$A$5:$B372,2,FALSE))),\"\",VLOOKUP($A373,$A$5:$B372,2,FALSE))","v":""}]
[{"$f":"IF(CALENDARIO!B380=\"\",\"\",TRIM(UPPER(CALENDARIO!B380)))","v":""},"","","","",0,0,0,"",0,{"$f":"IF(OR($A374=\"\",ISERROR(VLOOKUP($A374,$A$5:$B373,2,FALSE))),\"\",VLOOKUP($A374,$A$5:$B373,2,FALSE))","v":""}]
[{"$f":"IF(CALENDARIO!B381=\"\",\"\",TRIM(UPPER(CALENDARIO!B381)))","v":""},"","","","",0,0,0,"",0,{"$f":"IF(OR($A375=\"\",ISERROR(VLOOKUP($A375,$A$5:$B374,2,FALSE))),\"\",VLOOKUP($A375,$A$5:$B374,2,FALSE))","v":""}]
[{"$f":"IF(CALENDARIO!B382=\"\",\"\",TRIM(UPPER(CALENDARIO!B382)))","v":""},"","","","",0,0,0,"",0,{"$f":"IF(OR($A376=\"\",ISERROR(VLOOKUP($A376,$A$5:$B375,2,FALSE))),\"\",VLOOKUP($A376,$A$5:$B375,2,FALSE))","v":""}]
[{"$f":"IF(CALENDARIO!B383=\"\",\"\",TRIM(UPPER(CALENDARIO!B383)))","v":""},"","","","",0,0,0,"",0,{"$f":"IF(OR($A377=\"\",ISERROR(VLOOKUP($A377,$A$5:$B376,2,FALSE))),\"\",VLOOKUP($A377,$A$5:$B376,2,FALSE))","v":""}]
[{"$f":"IF(CALENDARIO!B384=\"\",\"\",TRIM(UPPER(CALENDARIO!B384)))","v":""},"","","","",0,0,0,"",0,{"$f":"IF(OR($A378=\"\",ISERROR(VLOOKUP($A378,$A$5:$B377,2,FALSE))),\"\",VLOOKUP($A378,$A$5:$B377,2,FALSE))","v":""}]
[{"$f":"IF(CALENDARIO!B385=\"\",\"\",TRIM(UPPER(CALENDARIO!B385)))","v":""},"","","","",0,0,0,"",0,{"$f":"IF(OR($A379=\"\",ISERROR(VLOOKUP($A379,$A$5:$B378,2,FALSE))),\"\",VLOOKUP($A379,$A$5:$B378,2,FALSE))","v":""}]
[{"$f":"IF(CALENDARIO!B386=\"\",\"\",TRIM(UPPER(CALENDARIO!B386)))","v":""},"","","","",0,0,0,"",0,{"$f":"IF(OR($A380=\"\",ISERROR(VLOOKUP($A380,$A$5:$B379,2,FALSE))),\"\",VLOOKUP($A380,$A$5:$B379,2,FALSE))","v":""}]
[{"$f":"IF(CALENDARIO!B387=\"\",\"\",TRIM(UPPER(CALENDARIO!B387)))","v":""},"","","","",0,0,0,"",0,{"$f":"IF(OR($A381=\"\",ISERROR(VLOOKUP($A381,$A$5:$B380,2,FALSE))),\"\",VLOOKUP($A381,$A$5:$B380,2,FALSE))","v":""}]
[{"$f":"IF(CALENDARIO!B388=\"\",\"\",TRIM(UPPER(CALENDARIO!B388)))","v":""},"","","","",0,0,0,"",0,{"$f":"IF(OR($A382=\"\",ISERROR(VLOOKUP($A382,$A$5:$B381,2,FALSE))),\"\",VLOOKUP($A382,$A$5:$B381,2,FALSE))","v":""}]
[{"$f":"IF(CALENDARIO!B389=\"\",\"\",TRIM(UPPER(CALENDARIO!B389)))","v":""},"","","","",0,0,0,"",0,{"$f":"IF(OR($A383=\"\",ISERROR(VLOOKUP($A383,$A$5:$B382,2,FALSE))),\"\",VLOOKUP($A383,$A$5:$B382,2,FALSE))","v":""}]
[{"$f":"IF(CALENDARIO!B390=\"\",\"\",TRIM(UPPER(CALENDARIO!B390)))","v":""},"","","","",0,0,0,"",0,{"$f":"IF(OR($A384=\"\",ISERROR(VLOOKUP($A384,$A$5:$B383,2,FALSE))),\"\",VLOOKUP($A384,$A$5:$B383,2,FALSE))","v":""}]
[{"$f":"IF(CALENDARIO!B391=\"\",\"\",TRIM(UPPER(CALENDARIO!B391)))","v":""},"","","","",0,0,0,"",0,{"$f":"IF(OR($A385=\"\",ISERROR(VLOOKUP($A385,$A$5:$B384,2,FALSE))),\"\",VLOOKUP($A385,$A$5:$B384,2,FALSE))","v":""}]
[{"$f":"IF(CALENDARIO!B392=\"\",\"\",TRIM(UPPER(CALENDARIO!B392)))","v":""},"","","","",0,0,0,"",0,{"$f":"IF(OR($A386=\"\",ISERROR(VLOOKUP($A386,$A$5:$B385,2,FALSE))),\"\",VLOOKUP($A386,$A$5:$B385,2,FALSE))","v":""}]
[{"$f":"IF(CALENDARIO!B393=\"\",\"\",TRIM(UPPER(CALENDARIO!B393)))","v":""},"","","","",0,0,0,"",0,{"$f":"IF(OR($A387=\"\",ISERROR(VLOOKUP($A387,$A$5:$B386,2,FALSE))),\"\",VLOOKUP($A387,$A$5:$B386,2,FALSE))","v":""}]
[{"$f":"IF(CALENDARIO!B394=\"\",\"\",TRIM(UPPER(CALENDARIO!B394)))","v":""},"","","","",0,0,0,"",0,{"$f":"IF(OR($A388=\"\",ISERROR(VLOOKUP($A388,$A$5:$B387,2,FALSE))),\"\",VLOOKUP($A388,$A$5:$B387,2,FALSE))","v":""}]
[{"$f":"IF(CALENDARIO!B395=\"\",\"\",TRIM(UPPER(CALENDARIO!B395)))","v":""},"","","","",0,0,0,"",0,{"$f":"IF(OR($A389=\"\",ISERROR(VLOOKUP($A389,$A$5:$B388,2,FALSE))),\"\",VLOOKUP($A389,$A$5:$B388,2,FALSE))","v":""}]
[{"$f":"IF(CALENDARIO!B396=\"\",\"\",TRIM(UPPER(CALENDARIO!B396)))","v":""},{"$f":"IF(A390=\"\",\"\",IF(OR(UPPER(LEFT(A390))=\"X\",UPPER(LEFT(A390))=\"Y\",UPPER(LEFT(A390))=\"Z\"),MID(A390,2,LEN(A390)-2),LEFT(A390,LEN(A390)-1)))","v":""},{"$f":"IF(A390=\"\",\"\",RIGHT(A390,1))","v":""},{"$f":"IF(A390=\"\",\"\",IF(UPPER(LEFT(A390))=\"Y\",MOD(VALUE(\"1\"&B390),23),IF(UPPER(LEFT(A390))=\"Z\",MOD(VALUE(\"2\"&B390),23),MOD(B390,23))))","v":""},{"$f":"IF(A390=\"\",\"\",MID(\"TRWAGMYFPDXBNJZSQVHLCKE\",D390+1,1))","v":""},{"$f":"IF(AND(A390<>\"\",C390=E390),1,0)","v":0},{"$f":"IF(A390=\"\",0,1)","v":0},0,{"$f":"IF(A390=\"\",\"\",A390)","v":""},0,{"$f":"IF(OR($A390=\"\",ISERROR(VLOOKUP($A390,$A$5:$B389,2,FALSE))),\"\",VLOOKUP($A390,$A$5:$B389,2,FALSE))","v":""}]
[{"$f":"IF(CALENDARIO!B397=\"\",\"\",TRIM(UPPER(CALENDARIO!B397)))","v":""},"","","","",0,0,{"$f":"IF(A391=\"\",0,H390+1)","v":0},"",{"$f":"IF(K391=\"\",0,1)","v":0},{"$f":"IF(OR($A391=\"\",ISERROR(VLOOKUP($A391,$A$5:$B390,2,FALSE))),\"\",VLOOKUP($A391,$A$5:$B390,2,FALSE))","v":""}]
[{"$f":"IF(CALENDARIO!B398=\"\",\"\",TRIM(UPPER(CALENDARIO!B398)))","v":""},"","","","",0,0,0,"",0,{"$f":"IF(OR($A392=\"\",ISERROR(VLOOKUP($A392,$A$5:$B391,2,FALSE))),\"\",VLOOKUP($A392,$A$5:$B391,2,FALSE))","v":""}]
[{"$f":"IF(CALENDARIO!B399=\"\",\"\",TRIM(UPPER(CALENDARIO!B399)))","v":""},"","","","",0,0,0,"",0,{"$f":"IF(OR($A393=\"\",ISERROR(VLOOKUP($A393,$A$5:$B392,2,FALSE))),\"\",VLOOKUP($A393,$A$5:$B392,2,FALSE))","v":""}]
[{"$f":"IF(CALENDARIO!B400=\"\",\"\",TRIM(UPPER(CALENDARIO!B400)))","v":""},"","","","",0,0,0,"",0,{"$f":"IF(OR($A394=\"\",ISERROR(VLOOKUP($A394,$A$5:$B393,2,FALSE))),\"\",VLOOKUP($A394,$A$5:$B393,2,FALSE))","v":""}]
[{"$f":"IF(CALENDARIO!B401=\"\",\"\",TRIM(UPPER(CALENDARIO!B401)))","v":""},"","","","",0,0,0,"",0,{"$f":"IF(OR($A395=\"\",ISERROR(VLOOKUP($A395,$A$5:$B394,2,FALSE))),\"\",VLOOKUP($A395,$A$5:$B394,2,FALSE))","v":""}]
[{"$f":"IF(CALENDARIO!B402=\"\",\"\",TRIM(UPPER(CALENDARIO!B402)))","v":""},"","","","",0,0,0,"",0,{"$f":"IF(OR($A396=\"\",ISERROR(VLOOKUP($A396,$A$5:$B395,2,FALSE))),\"\",VLOOKUP($A396,$A$5:$B395,2,FALSE))","v":""}]
[{"$f":"IF(CALENDARIO!B403=\"\",\"\",TRIM(UPPER(CALENDARIO!B403)))","v":""},"","","","",0,0,0,"",0,{"$f":"IF(OR($A397=\"\",ISERROR(VLOOKUP($A397,$A$5:$B396,2,FALSE))),\"\",VLOOKUP($A397,$A$5:$B396,2,FALSE))","v":""}]
[{"$f":"IF(CALENDARIO!B404=\"\",\"\",TRIM(UPPER(CALENDARIO!B404)))","v":""},"","","","",0,0,0,"",0,{"$f":"IF(OR($A398=\"\",ISERROR(VLOOKUP($A398,$A$5:$B397,2,FALSE))),\"\",VLOOKUP($A398,$A$5:$B397,2,FALSE))","v":""}]
[{"$f":"IF(CALENDARIO!B405=\"\",\"\",TRIM(UPPER(CALENDARIO!B405)))","v":""},"","","","",0,0,0,"",0,{"$f":"IF(OR($A399=\"\",ISERROR(VLOOKUP($A399,$A$5:$B398,2,FALSE))),\"\",VLOOKUP($A399,$A$5:$B398,2,FALSE))","v":""}]
[{"$f":"IF(CALENDARIO!B406=\"\",\"\",TRIM(UPPER(CALENDARIO!B406)))","v":""},"","","","",0,0,0,"",0,{"$f":"IF(OR($A400=\"\",ISERROR(VLOOKUP($A400,$A$5:$B399,2,FALSE))),\"\",VLOOKUP($A400,$A$5:$B399,2,FALSE))","v":""}]
[{"$f":"IF(CALENDARIO!B407=\"\",\"\",TRIM(UPPER(CALENDARIO!B407)))","v":""},"","","","",0,0,0,"",0,{"$f":"IF(OR($A401=\"\",ISERROR(VLOOKUP($A401,$A$5:$B400,2,FALSE))),\"\",VLOOKUP($A401,$A$5:$B400,2,FALSE))","v":""}]
[{"$f":"IF(CALENDARIO!B408=\"\",\"\",TRIM(UPPER(CALENDARIO!B408)))","v":""},"","","","",0,0,0,"",0,{"$f":"IF(OR($A402=\"\",ISERROR(VLOOKUP($A402,$A$5:$B401,2,FALSE))),\"\",VLOOKUP($A402,$A$5:$B401,2,FALSE))","v":""}]
[{"$f":"IF(CALENDARIO!B409=\"\",\"\",TRIM(UPPER(CALENDARIO!B409)))","v":""},"","","","",0,0,0,"",0,{"$f":"IF(OR($A403=\"\",ISERROR(VLOOKUP($A403,$A$5:$B402,2,FALSE))),\"\",VLOOKUP($A403,$A$5:$B402,2,FALSE))","v":""}]
[{"$f":"IF(CALENDARIO!B410=\"\",\"\",TRIM(UPPER(CALENDARIO!B410)))","v":""},"","","","",0,0,0,"",0,{"$f":"IF(OR($A404=\"\",ISERROR(VLOOKUP($A404,$A$5:$B403,2,FALSE))),\"\",VLOOKUP($A404,$A$5:$B403,2,FALSE))","v":""}]